Department Family,Entity,Date,Expense Type,Expense Area ,Supplier,Transaction No,Sum of Amount,Item Text,Postal Code,,
Department for Transport,Department for Transport,01/07/2013,Agents Fees,Roads,GROUPM UK LIMITED,2000006996,131.87,#,WC1X 8RX,,
Department for Transport,Department for Transport,01/07/2013,Agents Fees,Roads,GROUPM UK LIMITED,2000006996,-19.77,#,WC1X 8RX,,
Department for Transport,Department for Transport,01/07/2013,Agents Fees,Roads,GROUPM UK LIMITED,2000006996,194.39,#,WC1X 8RX,,
Department for Transport,Department for Transport,01/07/2013,Cap Grt Pri Sec-Cos.,Greener Transport & International,Chargemaster,2000006998,121000,Chargemaster #121k May,LU1 3LU,,
Department for Transport,Department for Transport,01/07/2013,Childcare Voucher Co,Group HR,COMPUTERSHARE VOUCHER SERVICES,2000006941,27662,#,WS13 8SX,,
Department for Transport,Department for Transport,01/07/2013,CurrGrtPriSec-P&NPIS,Greener Transport & International,ENERGY SAVING TRUST,2000006992,14200,PIFI May 2013 #14.2k,SW1H 9BP,,
Department for Transport,Department for Transport,01/07/2013,HR Consultancy,Group HR,BENEFEX LIMITED,2000006994,630,#,SO15 2JU,,
Department for Transport,Department for Transport,01/07/2013,IT Ser Running Costs,Refran Prog Off,QinetiQ Commerce Decisions Ltd,2000006993,240000,#,OX4 4GE,,
Department for Transport,Department for Transport,01/07/2013,NLF Interest pay,Aviation,HM TREASURY - NATIONAL LOANS FUND,2000006989,158678.73,NLF CAA July 2013 Loan Repay - Interest Amount,SW1A 2HQ,,
Department for Transport,Department for Transport,01/07/2013,NLF Principal Paid,Aviation,HM TREASURY - NATIONAL LOANS FUND,2000006989,984033.84,NLF CAA July 2013 Loan Repay - Principle Amount,SW1A 2HQ,,
Department for Transport,Department for Transport,01/07/2013,Other Professional F,Group HR,COMPUTERSHARE VOUCHER SERVICES,2000006941,663.89,#,WS13 8SX,,
Department for Transport,Department for Transport,01/07/2013,Printing,DASH,WILLIAMS LEA LIMITED,2000006995,4188.8,#,NR3 1PD,,
Department for Transport,Department for Transport,01/07/2013,Printing,DASH,WILLIAMS LEA LIMITED,2000006995,1200,#,NR3 1PD,,
Department for Transport,Department for Transport,01/07/2013,Publicity,Roads,GROUPM UK LIMITED,2000006996,158248.79,#,WC1X 8RX,,
Department for Transport,Department for Transport,01/07/2013,Publicity,Roads,GROUPM UK LIMITED,2000006996,-23736.53,#,WC1X 8RX,,
Department for Transport,Department for Transport,01/07/2013,Publicity,Roads,GROUPM UK LIMITED,2000006996,-233272.9,#,WC1X 8RX,,
Department for Transport,Department for Transport,01/07/2013,Publicity,Roads,GROUPM UK LIMITED,2000006996,233272.9,#,WC1X 8RX,,
Department for Transport,Department for Transport,01/07/2013,Publicity,Roads,TNS UK LTD,2000006991,20541,#,W5 1UA,,
Department for Transport,Department for Transport,01/07/2013,Subsidies Private Se,Local,WEST MIDS SPECIAL NEEDS TRANSPORT,2000006990,265979.39,WEST MIDLANDS SPECIAL NEEDS TRANSPORT LTD,B6 5PL,,
Department for Transport,Department for Transport,02/07/2013,Agency Staff Costs,Group Finance,MICHAEL PAGE INTERNATIONAL,2000007066,3210,#,SL1 3SA,,
Department for Transport,Department for Transport,02/07/2013,Agency Staff Costs,Group Finance,MICHAEL PAGE INTERNATIONAL,2000007066,4896,#,SL1 3SA,,
Department for Transport,Department for Transport,02/07/2013,Agency Staff Costs,Group Finance,MICHAEL PAGE INTERNATIONAL,2000007066,2192.4,#,SL1 3SA,,
Department for Transport,Department for Transport,02/07/2013,Agency Staff Costs,Rail Commercial Contracts,MICHAEL PAGE INTERNATIONAL,2000007066,-1968.29,#,SL1 3SA,,
Department for Transport,Department for Transport,02/07/2013,Agency Staff Costs,Rail Commercial Contracts,MICHAEL PAGE INTERNATIONAL,2000007066,2449.74,#,SL1 3SA,,
Department for Transport,Department for Transport,02/07/2013,Agency Staff Costs,Refran Prog Off,FIRST CLASS PARTNERSHIPS LTD,2000007067,37620,#,YO10 3EB,,
Department for Transport,Department for Transport,02/07/2013,Agency Staff Costs,Refran Prog Off,FIRST CLASS PARTNERSHIPS LTD,2000007067,-1710,#,YO10 3EB,,
Department for Transport,Department for Transport,02/07/2013,Agency Staff Costs,Refran Prog Off,MICHAEL PAGE INTERNATIONAL,2000007066,1968.29,PE 31.03.13,SL1 3SA,,
Department for Transport,Department for Transport,02/07/2013,Agency Staff Costs,Refran Prog Off,MICHAEL PAGE INTERNATIONAL,2000007066,1476.22,#,SL1 3SA,,
Department for Transport,Department for Transport,02/07/2013,Agency Staff Costs,Refran Prog Off,MICHAEL PAGE INTERNATIONAL,2000007066,-1968.29,#,SL1 3SA,,
Department for Transport,Department for Transport,02/07/2013,Agency Staff Costs,Refran Prog Off,MICHAEL PAGE INTERNATIONAL,2000007066,-1476.22,#,SL1 3SA,,
Department for Transport,Department for Transport,02/07/2013,Agency Staff Costs,Refran Prog Off,MICHAEL PAGE INTERNATIONAL,2000007066,-2460.36,#,SL1 3SA,,
Department for Transport,Department for Transport,02/07/2013,Agency Staff Costs,Refran Prog Off,MICHAEL PAGE INTERNATIONAL,2000007066,-2460.36,#,SL1 3SA,,
Department for Transport,Department for Transport,02/07/2013,Agency Staff Costs,Refran Prog Off,MICHAEL PAGE INTERNATIONAL,2000007066,-1968.29,PE 31.03.13,SL1 3SA,,
Department for Transport,Department for Transport,02/07/2013,Agency Staff Costs,Refran Prog Off,MICHAEL PAGE INTERNATIONAL,2000007066,-1476.22,#,SL1 3SA,,
Department for Transport,Department for Transport,02/07/2013,Agency Staff Costs,Refran Prog Off,MICHAEL PAGE INTERNATIONAL,2000007066,2449.74,#,SL1 3SA,,
Department for Transport,Department for Transport,02/07/2013,Agency Staff Costs,Refran Prog Off,MICHAEL PAGE INTERNATIONAL,2000007066,5616,#,SL1 3SA,,
Department for Transport,Department for Transport,02/07/2013,Building Service Cha,Business Transformation,AMEY COMMUNITY LTD,2000007076,32088.06,#,OX4 4DQ,,
Department for Transport,Department for Transport,02/07/2013,Cap Grt Pri Sec-Cos.,Local,SUSTRANS LTD,8100002349,5000000,Growth Fund - Cycling 2013-14,BS1 5DD,,
Department for Transport,Department for Transport,02/07/2013,Cap Grt Pri Sec-Cos.,Local,SUSTRANS LTD,8100002349,-5000000,Growth Fund - Cycling 2013-14,BS1 5DD,,
Department for Transport,Department for Transport,02/07/2013,Cap Grt Pri Sec-Cos.,Local,SUSTRANS LTD,8100002354,-5000000,Growth Fund - Cycling 2013-14,BS1 5DD,,
Department for Transport,Department for Transport,02/07/2013,Cap Grt Pri Sec-Cos.,Local,SUSTRANS LTD,8100002354,5000000,Growth Fund - Cycling 2013-14,BS1 5DD,,
Department for Transport,Department for Transport,02/07/2013,Eurotunnel Admin Pay,Rail Commercial Contracts,SNCF CAISSE GENERALE,2000007018,5795053.48,#,75008,,
Department for Transport,Department for Transport,02/07/2013,Eurotunnel Admin Pay,Rail Commercial Contracts,SNCF TRESORERIE ENC RHT VFE,2000007019,6334484.71,#,75014,,
Department for Transport,Department for Transport,02/07/2013,Machinery Rental,Analysis/Science,CANON (UK) LTD,2000007063,533.08,#,RH2 8BF,,
Department for Transport,Department for Transport,02/07/2013,Rent - L&B (non-PFI),Business Transformation,HOME OFFICE SHARED SERVICE CENTRE,2000007060,1189.54,"Rent at 2 Marsham Street, London",NP20 9BB,,
Department for Transport,Department for Transport,02/07/2013,Rent - L&B (non-PFI),Business Transformation,HOME OFFICE SHARED SERVICE CENTRE,2000007060,126670,#,NP20 9BB,,
Department for Transport,Department for Transport,02/07/2013,Research,Local,NATIONAL CENTRE FOR SOCIAL RESEARCH,2000007064,29625,#,EC1V 0AX,,
Department for Transport,Department for Transport,02/07/2013,Services prov by OGD,Analysis/Science,OFFICE FOR NATIONAL STATISTICS,2000007061,6380.18,#,NP10 8XG,,
Department for Transport,Department for Transport,02/07/2013,Training,Rail Accident Investigation Branch,SIGNET SOLUTIONS LTD,2000007065,4000,#,DE24 8UP,,
Department for Transport,Department for Transport,03/07/2013,Agency Staff Costs,Group HR,HAYS PERSONNEL SERVICE LTD,2000007122,4154.1,#,KT3 4JQ,,
Department for Transport,Department for Transport,03/07/2013,Agency Staff Costs,Group Finance,ALLEN LANE FINANCIAL RECRUITMENT,2000007124,4036.38,#,BN11 2BW,,
Department for Transport,Department for Transport,03/07/2013,Agency Staff Costs,Group Finance,ALLEN LANE FINANCIAL RECRUITMENT,2000007124,4036.38,#,BN11 2BW,,
Department for Transport,Department for Transport,03/07/2013,Agency Staff Costs,Group Finance,MICHAEL PAGE INTERNATIONAL,2000007134,3210,#,SL1 3SA,,
Department for Transport,Department for Transport,03/07/2013,Agency Staff Costs,Rail and Road Projects,EXPERIS LTD,2000007128,643.34,#,EC1R 3DR,,
Department for Transport,Department for Transport,03/07/2013,Agency Staff Costs,Rail,EXPERIS LTD,2000007128,7700.64,#,EC1R 3DR,,
Department for Transport,Department for Transport,03/07/2013,Agency Staff Costs,Group Finance,EXPERIS LTD,2000007128,8705.16,#,EC1R 3DR,,
Department for Transport,Department for Transport,03/07/2013,Agency Staff Costs,Refran Prog Off,EXPERIS LTD,2000007128,11053.44,#,EC1R 3DR,,
Department for Transport,Department for Transport,03/07/2013,Agency Staff Costs,Group Finance,MICHAEL PAGE INTERNATIONAL,2000007134,3942.84,#,SL1 3SA,,
Department for Transport,Department for Transport,03/07/2013,Agency Staff Costs,Group Finance,MICHAEL PAGE INTERNATIONAL,2000007134,5184,#,SL1 3SA,,
Department for Transport,Department for Transport,03/07/2013,Agency Staff Costs,Group Finance,PARITY RESOURCES LTD,2000007135,10800,#,SW19 3RU,,
Department for Transport,Department for Transport,03/07/2013,Agency Staff Costs,Refran Prog Off,EXPERIS LTD,2000007128,13412.16,#,EC1R 3DR,,
Department for Transport,Department for Transport,03/07/2013,Audit Fees (cash),Transport Direct and Travel information,AUDIT BUREAU OF CIRCULATIONS LTD,2000007144,2448,#,HP4 1AD,,
Department for Transport,Department for Transport,03/07/2013,Car Tax & Insurance,Rail Accident Investigation Branch,WILLIS LTD,2000007123,1556.08,#,BS8 1BQ,,
Department for Transport,Department for Transport,03/07/2013,Cars Maintenance,Motoring Services,Quarterman Windscreen Ltd,2000007147,419,#,DA1 1JZ,,
Department for Transport,Department for Transport,03/07/2013,Contract Cleaning,Rail Accident Investigation Branch,OFFICE CARE LTD,2000007140,1279.75,#,DE24 8AN,,
Department for Transport,Department for Transport,03/07/2013,Eurotunnel Admin Pay,Rail Commercial Contracts,EUROTUNNEL,2000007092,5049987.44,#,CT18 8XY,,
Department for Transport,Department for Transport,03/07/2013,Eurotunnel Admin Pay,Rail Commercial Contracts,EUROTUNNEL (EURO PAYMENTS),2000007093,5711420.41,#,CT18 8X,,
Department for Transport,Department for Transport,03/07/2013,IT Consultancy,Rail Commercial Contracts,ATOS IT SERVICES UK LTD,2000007125,14071.36,#,WV10 6UH,,
Department for Transport,Department for Transport,03/07/2013,IT Ser Running Costs,Business Transformation,CENTERPRISE INTERNATIONAL LIMITED,2000007141,1302.42,#,RG24 8GQ,,
Department for Transport,Department for Transport,03/07/2013,Machinery Rental,Group Finance,RICOH UK LTD,2000007129,843.76,#,NN4 7YB,,
Department for Transport,Department for Transport,03/07/2013,Other Advertising,Local,PENNA COMMUNICATIONS,2000007138,7527.36,#,EC4M 7RD,,
Department for Transport,Department for Transport,03/07/2013,Other Advertising,Local,PENNA COMMUNICATIONS,2000007138,6270.97,#,EC4M 7RD,,
Department for Transport,Department for Transport,03/07/2013,Other Advertising,Local,PENNA COMMUNICATIONS,2000007138,2609.12,#,EC4M 7RD,,
Department for Transport,Department for Transport,03/07/2013,Other Professional F,Rail and Road Projects,WILLIS LIMITED,2000007120,182850,#,IP1  1TA,,
Department for Transport,Department for Transport,03/07/2013,Prog&ProjMgmt Consul,Rail,OVE ARUP & PARTNERS,2000007132,41600.4,#,NE1 3PL,,
Department for Transport,Department for Transport,03/07/2013,Publications for Res,Aviation,CREATIVE CHOICE CIC,2000007143,2162.22,#,SW1H 0DJ,,
Department for Transport,Department for Transport,03/07/2013,Publications for Res,Aviation,CREATIVE CHOICE CIC,2000007143,3302,#,SW1H 0DJ,,
Department for Transport,Department for Transport,03/07/2013,Publications for Res,Aviation,CREATIVE CHOICE CIC,2000007143,-3302,#,SW1H 0DJ,,
Department for Transport,Department for Transport,03/07/2013,Services prov by OGD,Transport Security Strategy,DEFENCE BUSINESS SERVICES,2000007142,2265.67,#,YO10 4AS,,
Department for Transport,Department for Transport,03/07/2013,Transport  Consult,Rail and Road Projects,MOTT MACDONALD,2000007131,73899.11,#,CR9 2UL,,
Department for Transport,Department for Transport,03/07/2013,Transport  Consult,Rail and Road Projects,OVE ARUP & PARTNERS,2000007132,37316.75,#,NE1 3PL,,
Department for Transport,Department for Transport,03/07/2013,Transport  Consult,Transport Security Strategy,QinetiQ Processing Centre,2000007133,30720,#,GU14 0LX,,
Department for Transport,Department for Transport,04/07/2013,Agency Staff Costs,Local,SPRING TECHNOLOGY LTD  ALSO T/A,2000007268,765.9,#,B37 7YE,,
Department for Transport,Department for Transport,04/07/2013,Agency Staff Costs,Rail Commercial Contracts,BADENOCH & CLARK,2000007246,1376.98,#,EC4V 4BG,,
Department for Transport,Department for Transport,04/07/2013,Agency Staff Costs,Local,EXPERIS LTD,2000007248,1788.24,#,EC1R 3DR,,
Department for Transport,Department for Transport,04/07/2013,Agency Staff Costs,Rail,BADENOCH & CLARK,2000007246,3786.66,#,EC4V 4BG,,
Department for Transport,Department for Transport,04/07/2013,Agency Staff Costs,Rail,BADENOCH & CLARK,2000007246,3029.33,#,EC4V 4BG,,
Department for Transport,Department for Transport,04/07/2013,Agency Staff Costs,Rail,BADENOCH & CLARK,2000007246,3786.66,#,EC4V 4BG,,
Department for Transport,Department for Transport,04/07/2013,Agency Staff Costs,Rail,BADENOCH & CLARK,2000007246,3029.33,#,EC4V 4BG,,
Department for Transport,Department for Transport,04/07/2013,Agency Staff Costs,DASH,BADENOCH & CLARK,2000007246,4180.61,#,EC4V 4BG,,
Department for Transport,Department for Transport,04/07/2013,Agency Staff Costs,DASH,BADENOCH & CLARK,2000007246,5225.76,#,EC4V 4BG,,
Department for Transport,Department for Transport,04/07/2013,Agency Staff Costs,DASH,BADENOCH & CLARK,2000007246,4180.61,#,EC4V 4BG,,
Department for Transport,Department for Transport,04/07/2013,Agency Staff Costs,DASH,BADENOCH & CLARK,2000007246,4180.61,#,EC4V 4BG,,
Department for Transport,Department for Transport,04/07/2013,Agency Staff Costs,Refran Prog Off,BADENOCH & CLARK,2000007246,4792.99,#,EC4V 4BG,,
Department for Transport,Department for Transport,04/07/2013,Agency Staff Costs,Refran Prog Off,BADENOCH & CLARK,2000007246,4792.99,#,EC4V 4BG,,
Department for Transport,Department for Transport,04/07/2013,Agency Staff Costs,Refran Prog Off,BADENOCH & CLARK,2000007246,5392.12,#,EC4V 4BG,,
Department for Transport,Department for Transport,04/07/2013,Agency Staff Costs,Refran Prog Off,BADENOCH & CLARK,2000007246,5392.12,#,EC4V 4BG,,
Department for Transport,Department for Transport,04/07/2013,Agency Staff Costs,Refran Prog Off,BADENOCH & CLARK,2000007246,3270.3,#,EC4V 4BG,,
Department for Transport,Department for Transport,04/07/2013,Agency Staff Costs,Refran Prog Off,BADENOCH & CLARK,2000007246,2943.28,#,EC4V 4BG,,
Department for Transport,Department for Transport,04/07/2013,Agency Staff Costs,Refran Prog Off,BADENOCH & CLARK,2000007246,2616.24,#,EC4V 4BG,,
Department for Transport,Department for Transport,04/07/2013,Building Service Cha,Business Transformation,AMEY COMMUNITY LTD,2000007278,225358.01,#,OX4 4DQ,,
Department for Transport,Department for Transport,04/07/2013,Cap Grt Pri Sec-Cos.,Rail and Road Projects,LONDON UNDERGROUND,2000007271,77720.25,Prov of the Restated Development Agreement 2003,NW1 2AH,,
Department for Transport,Department for Transport,04/07/2013,Computer Consumables,Permanent Secretary,XMA LIMITED GOSC,2000007276,734.16,#,NG11 7EP,,
Department for Transport,Department for Transport,04/07/2013,CurrGrtPriSec-P&NPIS,Local,CORNWALL MOBILITY CENTRE LTD,2000007256,60158,Mobility Centres Payments Q2 2013-14,TR1 3LJ,,
Department for Transport,Department for Transport,04/07/2013,CurrGrtPriSec-P&NPIS,Local,DERBY HOSPITALS,2000007257,51518,Mobility Centres Payments Q2 2013-14,DE1 2QY,,
Department for Transport,Department for Transport,04/07/2013,CurrGrtPriSec-P&NPIS,Local,DISABLED LIVING CENTRE,2000007258,57812,Mobility Centres Payments Q2 2013-14,BS16 2QQ,,
Department for Transport,Department for Transport,04/07/2013,CurrGrtPriSec-P&NPIS,Local,EAST ANGLIAN DRIVEABILITY,2000007259,82045,Mobility Centres Payments Q2 2013-14,IP24 3RL,,
Department for Transport,Department for Transport,04/07/2013,CurrGrtPriSec-P&NPIS,Local,FORUM OF MOBILITY CENTRES,2000007270,25373,Mobility Centres Payments Q2 2013-14,IP24 3RL,,
Department for Transport,Department for Transport,04/07/2013,CurrGrtPriSec-P&NPIS,Local,HERTFORDSHIRE ACTION ON DISABILITY,2000007269,35948,Mobility Centres Payments Q2 2013-14,AL7 4DD,,
Department for Transport,Department for Transport,04/07/2013,CurrGrtPriSec-P&NPIS,Local,KENT COMMUNITY HEALTH NHS TRUST,2000007286,60663,Mobility Centres Payments Q2 2013-14,CT1 3NG,,
Department for Transport,Department for Transport,04/07/2013,CurrGrtPriSec-P&NPIS,Local,NHS ASHTON LEIGH & WIGAN PROVIDER,2000007282,62264,Mobility Centres Payments Q2 2013-14,WN1 1AH,,
Department for Transport,Department for Transport,04/07/2013,CurrGrtPriSec-P&NPIS,Local,NORTHUMBERLAND TYNE & WEAR NHS TRUS,2000007260,45860,Mobility Centres Payments Q2 2013-14,NE3 3XT,,
Department for Transport,Department for Transport,04/07/2013,CurrGrtPriSec-P&NPIS,Local,QUEEN ELIZABETHS FOUNDATION,2000007261,82132,Mobility Centres Payments Q2 2013-14,SM5 4NR,,
Department for Transport,Department for Transport,04/07/2013,CurrGrtPriSec-P&NPIS,Local,REGIONAL DRIVING ASSESSMENT CENTRE,2000007262,112834,Mobility Centres Payments Q2 2013-14,B8 1AU,,
Department for Transport,Department for Transport,04/07/2013,CurrGrtPriSec-P&NPIS,Local,WESSEX DRIVEABILITY,2000007263,57957,Mobility Centres Payments Q2 2013-14,SO17 2LJ,,
Department for Transport,Department for Transport,04/07/2013,CurrGrtPriSec-P&NPIS,Local,WILLIAM MERRITT DISABLED LIVING,2000007264,45421,Mobility Centres Payments Q2 2013-14,LS12 3QE,,
Department for Transport,Department for Transport,04/07/2013,Data Supply - TD,Transport Direct and Travel information,Rail Settlement Plan,2000007252,1755.6,#,EC1A 4HD,,
Department for Transport,Department for Transport,04/07/2013,IT Ser Running Costs,Business Transformation,CENTERPRISE INTERNATIONAL LIMITED,2000007273,2147.05,#,RG24 8GQ,,
Department for Transport,Department for Transport,04/07/2013,IT Ser Running Costs,Business Transformation,SELEX ES LTD,2000007274,11491.2,#,BS16 1EJ,,
Department for Transport,Department for Transport,04/07/2013,IT Ser Running Costs,Transport Security - Security Compliance Division ,SELEX ES LTD,2000007274,13770,#,BS16 1EJ,,
Department for Transport,Department for Transport,04/07/2013,Printing,Air Accident Investigation Branch,WILLIAMS LEA LIMITED,2000007275,1848.26,#,NR3 1PD,,
Department for Transport,Department for Transport,04/07/2013,Printing,Local,WILLIAMS LEA LIMITED,2000007275,451,#,NR3 1PD,,
Department for Transport,Department for Transport,04/07/2013,Printing,DASH,WILLIAMS LEA LIMITED,2000007275,1452,#,NR3 1PD,,
Department for Transport,Department for Transport,04/07/2013,Purchasing Card Char,Highspeed 2,BARCLAYS BANK PLC,2000007247,4391.6,DFT RAIL GROUP JULY 2013,NN4 7SG,,
Department for Transport,Department for Transport,04/07/2013,Research,Local,TRANSPORT RESEARCH LABORATORY,2000007254,4000,#,RG40 3GA,,
Department for Transport,Department for Transport,04/07/2013,Small Software,Business Transformation,INSIGHT DIRECT (UK) LTD,2000007244,33828,#,UB8 1PH,,
Department for Transport,Department for Transport,04/07/2013,Small Software,Business Transformation,INSIGHT DIRECT (UK) LTD,2000007244,273386,#,UB8 1PH,,
Department for Transport,Department for Transport,04/07/2013,Support Services,DASH,ENVIRONMENTAL SCIENTIFICS GROUP LTD,2000007245,4910.4,#,DE15 0YZ,,
Department for Transport,Department for Transport,04/07/2013,Support Services,Permanent Secretary,HIGHWAYS AGENCY,2000007285,4101.09,#,B1 1RN,,
Department for Transport,Department for Transport,04/07/2013,Support Services,Greener Transport & International,FCO FOREIGN & COMMONWEALTH OFFICE,2000007284,1574.16,FCO EU translation/interpretation costs 24.04.13,MK10 1PX,,
Department for Transport,Department for Transport,04/07/2013,Support Services,Greener Transport & International,FCO FOREIGN & COMMONWEALTH OFFICE,2000007284,-1574.16,CREDIT FOR INVOICE 6038937,MK10 1PX,,
Department for Transport,Department for Transport,04/07/2013,Support Services,Aviation,HOME OFFICE,2000007249,1203.31,#,NP20 9BB,,
Department for Transport,Department for Transport,04/07/2013,Support Services,Aviation Security ,FCO FOREIGN & COMMONWEALTH OFFICE,2000007284,9408.55,#,MK10 1PX,,
Department for Transport,Department for Transport,04/07/2013,Support Services,Group Finance,DD ACCRAILWAY PENS TRUSTEE,2000007265,3016.06,#,DL3 6XR,,
Department for Transport,Department for Transport,04/07/2013,Support Services,Group Finance,RAILWAYS PENSION MANAGEMENT LT,2000007267,1070000,#,DL3 6EH,,
Department for Transport,Department for Transport,04/07/2013,Traffic Survey & Cou,Roads,JACOBS UK LTD,2000007250,16395,#,G2 7HX,,
Department for Transport,Department for Transport,04/07/2013,Traffic Survey & Cou,Roads,JACOBS UK LTD,2000007250,20544,#,G2 7HX,,
Department for Transport,Department for Transport,04/07/2013,Traffic Survey & Cou,Roads,JACOBS UK LTD,2000007250,32672.5,#,G2 7HX,,
Department for Transport,Department for Transport,04/07/2013,Traffic Survey & Cou,Roads,JACOBS UK LTD,2000007250,25678,#,G2 7HX,,
Department for Transport,Department for Transport,04/07/2013,Traffic Survey & Cou,Roads,JACOBS UK LTD,2000007250,21152,#,G2 7HX,,
Department for Transport,Department for Transport,04/07/2013,Traffic Survey & Cou,Roads,JACOBS UK LTD,2000007250,20556,#,G2 7HX,,
Department for Transport,Department for Transport,04/07/2013,Traffic Survey & Cou,Roads,JACOBS UK LTD,2000007250,25385,#,G2 7HX,,
Department for Transport,Department for Transport,04/07/2013,Traffic Survey & Cou,Roads,JACOBS UK LTD,2000007250,6814,#,G2 7HX,,
Department for Transport,Department for Transport,04/07/2013,Traffic Survey & Cou,Roads,JACOBS UK LTD,2000007250,22220,#,G2 7HX,,
Department for Transport,Department for Transport,04/07/2013,Traffic Survey & Cou,Roads,JACOBS UK LTD,2000007250,10870,#,G2 7HX,,
Department for Transport,Department for Transport,04/07/2013,Traffic Survey & Cou,Roads,JACOBS UK LTD,2000007250,17683,#,G2 7HX,,
Department for Transport,Department for Transport,04/07/2013,Training,Marine Accident Investigation Branch,MARTIN MANSER,2000007272,2750,#,HP19 9QY,,
Department for Transport,Department for Transport,04/07/2013,Transport  Consult,Rail,MOTT MACDONALD,2000007251,10685,#,CR9 2UL,,
Department for Transport,Department for Transport,04/07/2013,Travel Expenses UK,Group Finance,RAIL STAFF TRAVEL LTD,2000007266,2816.85,#,WC1N 1BY,,
Department for Transport,Department for Transport,05/07/2013,Agency Staff Costs,Group Internal Audit,REED SPECIALIST RECRUITMENT LTD,2000007340,2341.2,#,SW20 0BA,,
Department for Transport,Department for Transport,05/07/2013,Agency Staff Costs,Rail Commercial Contracts,BADENOCH & CLARK,2000007335,1721.22,#,EC4V 4BG,,
Department for Transport,Department for Transport,05/07/2013,Agency Staff Costs,Rail Commercial Contracts,BADENOCH & CLARK,2000007335,688.49,#,EC4V 4BG,,
Department for Transport,Department for Transport,05/07/2013,Agency Staff Costs,Rail Commercial Contracts,BADENOCH & CLARK,2000007335,1721.22,#,EC4V 4BG,,
Department for Transport,Department for Transport,05/07/2013,Agency Staff Costs,Rail Commercial Contracts,EXPERIS LTD,2000007337,4017.76,#,EC1R 3DR,,
Department for Transport,Department for Transport,05/07/2013,Agency Staff Costs,Rail,BADENOCH & CLARK,2000007335,3786.66,#,EC4V 4BG,,
Department for Transport,Department for Transport,05/07/2013,Agency Staff Costs,Rail,BADENOCH & CLARK,2000007335,3408,#,EC4V 4BG,,
Department for Transport,Department for Transport,05/07/2013,Agency Staff Costs,Managing Director Motoring Services,BADENOCH & CLARK,2000007335,3705,#,EC4V 4BG,,
Department for Transport,Department for Transport,05/07/2013,Agency Staff Costs,Managing Director Motoring Services,BADENOCH & CLARK,2000007335,3705,#,EC4V 4BG,,
Department for Transport,Department for Transport,05/07/2013,Agency Staff Costs,Refran Prog Off,BADENOCH & CLARK,2000007335,5991.24,#,EC4V 4BG,,
Department for Transport,Department for Transport,05/07/2013,Agency Staff Costs,Refran Prog Off,CAPITA RESOURCING LTD,2000007344,4181.4,#,DL1 9HN,,
Department for Transport,Department for Transport,05/07/2013,Audit Fees (cash),Rail Commercial Contracts,PRICEWATERHOUSECOOPERS LLP,2000007339,15921.85,#,E14 9SQ,,
Department for Transport,Department for Transport,05/07/2013,Computer Consumables,General Counsel's Office,XMA LIMITED GOSC,2000007351,489.24,Q1338AC Hp Lj 4200 Smartprint Toner Cart,NG11 7EP,,
Department for Transport,Department for Transport,05/07/2013,Computer Consumables,General Counsel's Office,XMA LIMITED GOSC,2000007351,258.59,Q5942A Hp Laserjet Smart Toner 4250Dtn B,NG11 7EP,,
Department for Transport,Department for Transport,05/07/2013,Contract Cleaning,Marine Accident Investigation Branch,PROGRESS CLEANING SERVICES,2000007333,702,#,SO30 2FQ,,
Department for Transport,Department for Transport,05/07/2013,Eurocontrol Contr,Aviation,EUROCONTROL,2000007330,10276662.22,"Eurocontrol Euro Payment (11,990,184.50 Euros)",1130,,
Department for Transport,Department for Transport,05/07/2013,Legal Consultancy,Group HR,TREASURY SOLICITOR,2000007327,5034.96,#,WC2B 4TS,,
Department for Transport,Department for Transport,05/07/2013,Legal Consultancy,DASH,DLA PIPER UK LLP,2000007336,19542.72,#,M2 3DL,,
Department for Transport,Department for Transport,05/07/2013,Maintenance Other,Motoring Services,ARVAL PHH,2000007334,0,Vehicle Repairs and Maintenance,SN5 6PE,,
Department for Transport,Department for Transport,05/07/2013,Maintenance Other,Motoring Services,ARVAL PHH,2000007334,7324.87,#,SN5 6PE,,
Department for Transport,Department for Transport,05/07/2013,Property Maintenance,Rail Accident Investigation Branch,INTERSERVE,2000007348,766.81,#,BS32 4NH,,
Department for Transport,Department for Transport,05/07/2013,Property Maintenance,Rail Accident Investigation Branch,INTERSERVE,2000007348,1411.35,#,BS32 4NH,,
Department for Transport,Department for Transport,05/07/2013,Subsidies Private Se,Roads,Mode Shift Revenue Support,2000007343,743062.43,MSRS - Rail Period 3 Pd 3,#,,
Department for Transport,Department for Transport,05/07/2013,Support Services,Group HR,TREASURY SOLICITOR (CLIENT MONIES),2000007329,5389,#,WC2B 4TS,,
Department for Transport,Department for Transport,05/07/2013,Support Services,Aviation Security ,FCO FOREIGN & COMMONWEALTH OFFICE,2000007331,48792.44,#,MK10 1PX,,
Department for Transport,Department for Transport,05/07/2013,Support Services,Local,HIGHWAYS AGENCY,2000007332,1525.95,#,B1 1RN,,
Department for Transport,Department for Transport,05/07/2013,Support Services,Aviation,FCO FOREIGN & COMMONWEALTH OFFICE,2000007331,3302.55,#,MK10 1PX,,
Department for Transport,Department for Transport,05/07/2013,Telephone charges,Business Transformation,VERIZON BUSINESS,2000007341,13976.57,Verizon - internet charges,RG2 6DA,,
Department for Transport,Department for Transport,05/07/2013,Telephone charges,Business Transformation,VERIZON BUSINESS,2000007341,8397.58,Verizon - internet charges,RG2 6DA,,
Department for Transport,Department for Transport,05/07/2013,Transport  Consult,Rail and Road Projects,OVE ARUP & PARTNERS,2000007338,38206.92,#,NE1 3PL,,
Department for Transport,Department for Transport,05/07/2013,Travel Expenses UK,Rail Accident Investigation Branch,REDFERN TRAVEL LTD,2000007345,4650.6,Redfern - June 2013,BD1 3AZ,,
Department for Transport,Department for Transport,08/07/2013,Agency Staff Costs,Group HR,HAYS PERSONNEL SERVICE LTD,2000007418,4154.1,#,KT3 4JQ,,
Department for Transport,Department for Transport,08/07/2013,Agency Staff Costs,Group Finance,MICHAEL PAGE INTERNATIONAL,2000007428,4080,#,SL1 3SA,,
Department for Transport,Department for Transport,08/07/2013,Agency Staff Costs,Group Finance,MICHAEL PAGE INTERNATIONAL,2000007428,3210,#,SL1 3SA,,
Department for Transport,Department for Transport,08/07/2013,Agency Staff Costs,Group Finance,MICHAEL PAGE INTERNATIONAL,2000007428,3132,#,SL1 3SA,,
Department for Transport,Department for Transport,08/07/2013,Agency Staff Costs,Rail Commercial Contracts,MICHAEL PAGE INTERNATIONAL,2000007428,2449.74,#,SL1 3SA,,
Department for Transport,Department for Transport,08/07/2013,Agency Staff Costs,Rail,EXPERIS LTD,2000007424,5390.45,#,EC1R 3DR,,
Department for Transport,Department for Transport,08/07/2013,Agency Staff Costs,Managing Director Motoring Services,BADENOCH & CLARK,2000007420,2964,#,EC4V 4BG,,
Department for Transport,Department for Transport,08/07/2013,Agency Staff Costs,Highspeed 2,BADENOCH & CLARK,2000007420,1755.66,#,EC4V 4BG,,
Department for Transport,Department for Transport,08/07/2013,Agency Staff Costs,Refran Prog Off,MICHAEL PAGE INTERNATIONAL,2000007428,3510,#,SL1 3SA,,
Department for Transport,Department for Transport,08/07/2013,Agency Staff Costs,Group Finance,MICHAEL PAGE INTERNATIONAL,2000007428,3942.84,#,SL1 3SA,,
Department for Transport,Department for Transport,08/07/2013,Agency Staff Costs,Refran Prog Off,NETWORKERS INTERNATIONAL (UK) PLC,2000007431,883.92,#,BR1 1HP,,
Department for Transport,Department for Transport,08/07/2013,Cap Grt Loc Auth,Local,CITY OF YORK COUNCIL,2000007440,186125,Green Bus Fund Local Authority Payments,Y01 7WH,,
Department for Transport,Department for Transport,08/07/2013,Cap Grt Loc Auth,Local,LONDON BUSES SERVICES LIMITED,2000007435,5000000,Green Bus Fund Local Authority Payments,SE1 8NJ,,
Department for Transport,Department for Transport,08/07/2013,Cap Grt Loc Auth,Local,MANCHESTER CITY COUNCIL,2000007436,853124,Green Bus Fund Local Authority Payments,M1 3BG,,
Department for Transport,Department for Transport,08/07/2013,Cap Grt Loc Auth,Local,NOTTINGHAM CITY COUNCIL,2000007430,1517256,Green Bus Fund Local Authority Payments,NG1 5NT,,
Department for Transport,Department for Transport,08/07/2013,Computer equipment,Business Transformation,SPECIALIST COMPUTER CENTRES PLC,2000007432,1001.19,#,B11 2LE,,
Department for Transport,Department for Transport,08/07/2013,Computer equipment,Business Transformation,SPECIALIST COMPUTER CENTRES PLC,2000007432,36852.65,#,B11 2LE,,
Department for Transport,Department for Transport,08/07/2013,CurrGrt Las in AEF/A,Rail,TRANSPORT FOR LONDON,2000007429,2208700.87,TfL LOROL Grant July 2013 Claim,SW1H 0TL,,
Department for Transport,Department for Transport,08/07/2013,Printing,Roads,WILLIAMS LEA LIMITED,2000007438,799.6,#,NR3 1PD,,
Department for Transport,Department for Transport,08/07/2013,Purchasing Card Char,Group Finance,BARCLAYS BANK PLC,2000007421,18121.04,DFT/RT&L JULY 2013,NN4 7SG,,
Department for Transport,Department for Transport,08/07/2013,Purchasing Card Char,Group Finance,BARCLAYS BANK PLC,2000007421,1594.31,DFT RT&L JULY 2013,NN4 7SG,,
Department for Transport,Department for Transport,08/07/2013,Purchasing Card Char,Centrally held prog,BARCLAYS BANK PLC,2000007421,29262.93,DFT/ISE JULY 2013,NN4 7SG,,
Department for Transport,Department for Transport,08/07/2013,Purchasing Card Char,Centrally held prog,BARCLAYS BANK PLC,2000007421,41759.22,DFT ISE JULY 2013,NN4 7SG,,
Department for Transport,Department for Transport,08/07/2013,Purchasing Card Char,Group Finance,BARCLAYS BANK PLC,2000007421,20028.23,DFT/R&S JULY 2013,NN4 7SG,,
Department for Transport,Department for Transport,08/07/2013,Purchasing Card Char,Group Finance,BARCLAYS BANK PLC,2000007421,3193.35,DFT R+S JULY 2013,NN4 7SG,,
Department for Transport,Department for Transport,08/07/2013,Storage & Distributi,Business Transformation,WILLIAMS LEA LIMITED,2000007438,18616.17,#,NR3 1PD,,
Department for Transport,Department for Transport,08/07/2013,Support Services,Aviation,BOURNEMOUTH INTERNATIONAL AIRPORT,2000007422,29988,#,BH23 6SE,,
Department for Transport,Department for Transport,08/07/2013,Support Services,Aviation,INFRATIL KENT AIRPORT LTD,2000007433,24501,#,CT12 5BP,,
Department for Transport,Department for Transport,08/07/2013,Travel Expenses UK,Marine Accident Investigation Branch,REDFERN TRAVEL LTD,2000007434,2731.78,Redfern - June 2013 - MAIB,BD1 3AZ,,
Department for Transport,Department for Transport,09/07/2013,Agency Staff Costs,Group Finance,MICHAEL PAGE INTERNATIONAL,2000007505,2192.4,#,SL1 3SA,,
Department for Transport,Department for Transport,09/07/2013,Agency Staff Costs,Rail and Road Projects,EXPERIS LTD,2000007493,11087.99,#,EC1R 3DR,,
Department for Transport,Department for Transport,09/07/2013,Agency Staff Costs,Rail and Road Projects,LEND LEASE CONSULTING (EMEA) LTD,2000007506,12960,#,NW1 3BF,,
Department for Transport,Department for Transport,09/07/2013,Agency Staff Costs,Rail Commercial Contracts,CAPITA RESOURCING LTD,2000007507,16320,#,DL1 9HN,,
Department for Transport,Department for Transport,09/07/2013,Agency Staff Costs,Rail Commercial Contracts,MICHAEL PAGE INTERNATIONAL,2000007505,2832.19,#,SL1 3SA,,
Department for Transport,Department for Transport,09/07/2013,Agency Staff Costs,Rail,EXPERIS LTD,2000007493,7700.64,#,EC1R 3DR,,
Department for Transport,Department for Transport,09/07/2013,Agency Staff Costs,Rail,EXPERIS LTD,2000007493,6930.58,#,EC1R 3DR,,
Department for Transport,Department for Transport,09/07/2013,Agency Staff Costs,Rail,BADENOCH & CLARK,2000007489,3786.66,#,EC4V 4BG,,
Department for Transport,Department for Transport,09/07/2013,Agency Staff Costs,Rail,BADENOCH & CLARK,2000007489,3029.33,#,EC4V 4BG,,
Department for Transport,Department for Transport,09/07/2013,Agency Staff Costs,Refran Prog Off,CAPITA RESOURCING LTD,2000007507,4181.4,#,DL1 9HN,,
Department for Transport,Department for Transport,09/07/2013,Agency Staff Costs,Refran Prog Off,CAPITA RESOURCING LTD,2000007507,23452.88,#,DL1 9HN,,
Department for Transport,Department for Transport,09/07/2013,Agency Staff Costs,Group Finance,MICHAEL PAGE INTERNATIONAL,2000007505,5184,#,SL1 3SA,,
Department for Transport,Department for Transport,09/07/2013,Agency Staff Costs,Refran Prog Off,MICHAEL PAGE INTERNATIONAL,2000007505,660,#,SL1 3SA,,
Department for Transport,Department for Transport,09/07/2013,Agency Staff Costs,Refran Prog Off,CAPITA RESOURCING LTD,2000007507,16521.98,#,DL1 9HN,,
Department for Transport,Department for Transport,09/07/2013,Agency Staff Costs,Refran Prog Off,CAPITA RESOURCING LTD,2000007507,13877.52,#,DL1 9HN,,
Department for Transport,Department for Transport,09/07/2013,Agency Staff Costs,Refran Prog Off,METHODS CONSULTING LTD,2000007497,16216.56,#,WC2H 8AD,,
Department for Transport,Department for Transport,09/07/2013,Agency Staff Costs,Rail Commercial Contracts,MICHAEL PAGE INTERNATIONAL,2000007505,5485.68,#,SL1 3SA,,
Department for Transport,Department for Transport,09/07/2013,Agency Staff Costs,Refran Prog Off,MICHAEL PAGE INTERNATIONAL,2000007505,3333,#,SL1 3SA,,
Department for Transport,Department for Transport,09/07/2013,Car Hire and Leasing,Motoring Services,LEX AUTOLEASE LTD,2000007488,433.94,#,BL9 8RT,,
Department for Transport,Department for Transport,09/07/2013,Cars Maintenance,Motoring Services,Clifford Thames (Holdings) Limited,2000007522,2644.34,#,CM2 5TH,,
Department for Transport,Department for Transport,09/07/2013,CurrGrt Las in AEF/A,London and Olympics,GREATER LONDON AUTHORITY,2000007486,76479000,#,SE1 2UT,,
Department for Transport,Department for Transport,09/07/2013,Financial Consultanc,Refran Prog Off,PRICEWATERHOUSECOOPERS LLP,2000007500,51003.6,#,E14 9SQ,,
Department for Transport,Department for Transport,09/07/2013,IT Consultancy,Rail,AMOR BUSINESS TECHNOLOGY,2000007515,1800,#,PA4 9LH,,
Department for Transport,Department for Transport,09/07/2013,Legal Consultancy,Business Transformation,CRIPPS HARRIES HALL LLP,2000007513,3028.8,#,TN1 1EG,,
Department for Transport,Department for Transport,09/07/2013,Machinery Rental,Air Accident Investigation Branch,Canon (UK) Ltd,2000007498,975.72,#,RH2 8BF,,
Department for Transport,Department for Transport,09/07/2013,Management Consultan,Rail Commercial Contracts,RAIL MANCHE FINANCE EEIG,2000007508,11875,Accountancy Services quarter ending 30/9/13,N1 9AW,,
Department for Transport,Department for Transport,09/07/2013,Prog&ProjMgmt Consul,DASH,Rail Settlement Plan,2000007501,143632.8,#,EC1A 4HD,,
Department for Transport,Department for Transport,09/07/2013,Publications for Res,Group Finance,THE STATIONERY OFFICE LTD,2000007504,4698,#,NR3 1PD,,
Department for Transport,Department for Transport,09/07/2013,Stationery (Non-stk),Roads,Banner Business Services Ltd,2000007516,526.56,9150050 Banner A4 Recycled Copier Paper,NR3 1QU,,
Department for Transport,Department for Transport,09/07/2013,Support Services,Aviation,BRISTOL INTERNATIONAL AIRPORT,2000007490,29988,#,BS48 3DY,,
Department for Transport,Department for Transport,09/07/2013,Support Services,Aviation,EXETER & DEVON AIRPORT LIMITED,2000007494,29988,#,EX5 2BD,,
Department for Transport,Department for Transport,09/07/2013,Support Services,Managing Director Motoring Services,MARITIME & COASTGUARD AGENCY,2000007487,2380000,#,SO15 1EG,,
Department for Transport,Department for Transport,09/07/2013,Traffic Survey & Cou,Roads,PARSONS BRINCKERHOFF LTD,2000007499,24871,#,NE4 7YQ,,
Department for Transport,Department for Transport,09/07/2013,Traffic Survey & Cou,Roads,PARSONS BRINCKERHOFF LTD,2000007499,16087,#,NE4 7YQ,,
Department for Transport,Department for Transport,09/07/2013,Traffic Survey & Cou,Roads,PARSONS BRINCKERHOFF LTD,2000007499,31920,#,NE4 7YQ,,
Department for Transport,Department for Transport,09/07/2013,Traffic Survey & Cou,Roads,PARSONS BRINCKERHOFF LTD,2000007499,29588,#,NE4 7YQ,,
Department for Transport,Department for Transport,09/07/2013,Training,Rail and Road Projects,PROVEK LIMITED,2000007511,1880,#,RG14 5SJ,,
Department for Transport,Department for Transport,09/07/2013,Transport  Consult,Rail and Road Projects,FIRST GREATER WESTERN,2000007509,61237.07,#,SN1 1HL,,
Department for Transport,Department for Transport,09/07/2013,Transport  Consult,Aviation,FRAZER-NASH CONSULTANCY LTD,2000007514,2640,#,RH4 1HJ,,
Department for Transport,Department for Transport,10/07/2013,Agency Staff Costs,Business Transformation,LA INTERNATIONAL COMPUTER,2000007600,5377.69,#,ST1 5UB,,
Department for Transport,Department for Transport,10/07/2013,Agency Staff Costs,Group Finance,NETWORKERS INTERNATIONAL (UK) PLC,2000007616,2714.88,#,BR1 1HP,,
Department for Transport,Department for Transport,10/07/2013,Agency Staff Costs,Rail Accident Investigation Branch,SPRING TECHNOLOGY LTD  ALSO T/A,2000007618,609.98,#,B37 7YE,,
Department for Transport,Department for Transport,10/07/2013,Agency Staff Costs,Rail Commercial Contracts,LEND LEASE CONSULTING (EMEA) LTD,2000007615,1608,#,NW1 3BF,,
Department for Transport,Department for Transport,10/07/2013,Agency Staff Costs,Rail Commercial Contracts,LEND LEASE CONSULTING (EMEA) LTD,2000007615,810,#,NW1 3BF,,
Department for Transport,Department for Transport,10/07/2013,Agency Staff Costs,Rail Commercial Contracts,NETWORKERS INTERNATIONAL (UK) PLC,2000007616,4194,#,BR1 1HP,,
Department for Transport,Department for Transport,10/07/2013,Agency Staff Costs,Rail,BADENOCH & CLARK,2000007593,3029.33,#,EC4V 4BG,,
Department for Transport,Department for Transport,10/07/2013,Agency Staff Costs,Group Finance,NETWORKERS INTERNATIONAL (UK) PLC,2000007616,868.74,#,BR1 1HP,,
Department for Transport,Department for Transport,10/07/2013,Agency Staff Costs,Group Finance,LA INTERNATIONAL COMPUTER,2000007600,10950.26,#,ST1 5UB,,
Department for Transport,Department for Transport,10/07/2013,Agency Staff Costs,Group Finance,PARITY RESOURCES LTD,2000007614,20475,#,SW19 3RU,,
Department for Transport,Department for Transport,10/07/2013,Agency Staff Costs,Group Finance,PARITY RESOURCES LTD,2000007614,21600,#,SW19 3RU,,
Department for Transport,Department for Transport,10/07/2013,Agency Staff Costs,Group Finance,PARITY RESOURCES LTD,2000007614,10800,#,SW19 3RU,,
Department for Transport,Department for Transport,10/07/2013,Agency Staff Costs,Group Finance,PARITY RESOURCES LTD,2000007614,11880,#,SW19 3RU,,
Department for Transport,Department for Transport,10/07/2013,Agency Staff Costs,Group Finance,PARITY RESOURCES LTD,2000007614,960,#,SW19 3RU,,
Department for Transport,Department for Transport,10/07/2013,Agency Staff Costs,Refran Prog Off,LA INTERNATIONAL COMPUTER,2000007600,15671.28,#,ST1 5UB,,
Department for Transport,Department for Transport,10/07/2013,Agency Staff Costs,Refran Prog Off,NETWORKERS INTERNATIONAL (UK) PLC,2000007616,-883.92,#,BR1 1HP,,
Department for Transport,Department for Transport,10/07/2013,Agency Staff Costs,Refran Prog Off,NETWORKERS INTERNATIONAL (UK) PLC,2000007616,1679.45,#,BR1 1HP,,
Department for Transport,Department for Transport,10/07/2013,Cap Grt Loc Auth,Local,EAST RIDING OF YORKSHIRE COUNCIL,2000007611,1000000,2013/14 Local Pinch Point Fund payment,HU17 9BA,,
Department for Transport,Department for Transport,10/07/2013,Cap Grt Loc Auth,Local,KENT COUNTY COUNCIL,2000007635,600000,2013/14 Local Pinch Point Fund payment,ME14 1XQ,,
Department for Transport,Department for Transport,10/07/2013,Cap Grt Loc Auth,Local,KINGSTON UPON HULL CITY COUNCIL,2000007613,572000,2013/14 Local Pinch Point Fund payment,HU1 2AB,,
Department for Transport,Department for Transport,10/07/2013,Cap Grt Loc Auth,Local,PETERBOROUGH CITY COUNCIL,2000007636,3385000,2013/14 Local Pinch Point Fund payment,PE1 1FF,,
Department for Transport,Department for Transport,10/07/2013,Cars Maintenance,Motoring Services,ATS EUROMASTER LTD,2000007590,4676.16,#,S98 1AF,,
Department for Transport,Department for Transport,10/07/2013,Data Supply - TD,Transport Direct and Travel information,BASEMAP LIMITED,2000007626,2110.8,#,GU2 7YG,,
Department for Transport,Department for Transport,10/07/2013,IT Ser Running Costs,Local,KENDA ELECTRONIC SYSTEMS LTD,2000007621,7872,#,SO40 3NB,,
Department for Transport,Department for Transport,10/07/2013,IT Ser Running Costs,Roads,CENTERPRISE INTERNATIONAL LIMITED,2000007624,548.83,#,RG24 8GQ,,
Department for Transport,Department for Transport,10/07/2013,Legal Consultancy,General Counsel's Office,#,2000007633,5080,#,#,,
Department for Transport,Department for Transport,10/07/2013,Machinery Rental,Marine Accident Investigation Branch,CANON (UK) LTD,2000007594,431.85,#,RH2 8BF,,
Department for Transport,Department for Transport,10/07/2013,Machinery Rental,General Counsel's Office,DANWOOD GROUP LTD,2000007596,472.14,#,LN6 3DG,,
Department for Transport,Department for Transport,10/07/2013,Medical Advisory Ser,Group HR,HEALTH MANAGEMENT LTD,2000007598,1425,#,BN8 5NN,,
Department for Transport,Department for Transport,10/07/2013,Mobile Phone charges,Centrally held prog,VODAFONE LTD,2000007610,12172.73,Monthly,RG14 5FF,,
Department for Transport,Department for Transport,10/07/2013,Mobile Phone charges,Centrally held prog,VODAFONE LTD,2000007610,6120,Quartely,RG14 5FF,,
Department for Transport,Department for Transport,10/07/2013,Mobile Phone charges,Group Finance,T-MOBILE (UK) LTD,2000007608,676.22,Jun-13,AL10 9BW,,
Department for Transport,Department for Transport,10/07/2013,Newspapers,Business Transformation,JONES YARRELL LEADENHALL,2000007599,543.8,CD Serials and Periodicals Apr-June 13,E3 3JH,,
Department for Transport,Department for Transport,10/07/2013,Prog&ProjMgmt Consul,Local,STEER DAVIES & GLEAVE LTD,2000007606,42236.03,#,SE1 9PD,,
Department for Transport,Department for Transport,10/07/2013,Prog&ProjMgmt Consul,Local,STEER DAVIES & GLEAVE LTD,2000007606,33275.27,#,SE1 9PD,,
Department for Transport,Department for Transport,10/07/2013,Prog&ProjMgmt Consul,DASH,Rail Settlement Plan,2000007603,147906,#,EC1A 4HD,,
Department for Transport,Department for Transport,10/07/2013,Research,Aviation,CIVIL AVIATION AUTHORITY,2000007595,46585,#,RH10 0YR,,
Department for Transport,Department for Transport,10/07/2013,Research,Aviation,CIVIL AVIATION AUTHORITY,2000007595,48022,#,RH10 0YR,,
Department for Transport,Department for Transport,10/07/2013,Research,Aviation,STEER DAVIES & GLEAVE LTD,2000007606,20225,#,SE1 9PD,,
Department for Transport,Department for Transport,10/07/2013,Security,General Counsel's Office,FCO SERVICES,2000007544,8857.2,#,MK19 7BH,,
Department for Transport,Department for Transport,10/07/2013,Small Software,Transport Direct and Travel information,TRAPEZE GROUP (UK) LTD,2000007609,15721.2,#,BA14 6PH,,
Department for Transport,Department for Transport,10/07/2013,Small Software,Transport Security - Security Compliance Division ,SOFTCAT LTD,2000007622,5895.19,#,SL7 1TB,,
Department for Transport,Department for Transport,10/07/2013,Support Services,Aviation,TAG FARNBOROUGH AIRPORT LTD,2000007607,29988,#,GU14 6XA,,
Department for Transport,Department for Transport,10/07/2013,Support Services,Aviation Security ,#,2000007602,2214.5,#,#,,
Department for Transport,Department for Transport,11/07/2013,Agency Staff Costs,Commercial & Technical Services,#,2000007692,1260,#,#,,
Department for Transport,Department for Transport,11/07/2013,Agency Staff Costs,Centrally held prog,LA INTERNATIONAL COMPUTER,2000007688,2108.88,#,ST1 5UB,,
Department for Transport,Department for Transport,11/07/2013,Agency Staff Costs,Group Finance,BADENOCH & CLARK,2000007680,3229.1,#,EC4V 4BG,,
Department for Transport,Department for Transport,11/07/2013,Agency Staff Costs,Group Finance,BADENOCH & CLARK,2000007680,4036.38,#,EC4V 4BG,,
Department for Transport,Department for Transport,11/07/2013,Agency Staff Costs,Rail Commercial Contracts,LEND LEASE CONSULTING (EMEA) LTD,2000007705,6696,#,NW1 3BF,,
Department for Transport,Department for Transport,11/07/2013,Agency Staff Costs,Rail,EXPERIS LTD,2000007685,4766.76,Payment for contractor,EC1R 3DR,,
Department for Transport,Department for Transport,11/07/2013,Agency Staff Costs,Group Finance,METHODS CONSULTING LTD,2000007691,4384.5,#,WC2H 8AD,,
Department for Transport,Department for Transport,11/07/2013,Agency Staff Costs,Managing Director Motoring Services,BADENOCH & CLARK,2000007680,3705,#,EC4V 4BG,,
Department for Transport,Department for Transport,11/07/2013,Agency Staff Costs,Refran Prog Off,CAPITA RESOURCING LTD,2000007706,15405.73,#,DL1 9HN,,
Department for Transport,Department for Transport,11/07/2013,Agency Staff Costs,Aviation,NETWORKERS INTERNATIONAL (UK) PLC,2000007710,1508.76,#,BR1 1HP,,
Department for Transport,Department for Transport,11/07/2013,Audit Fees (cash),Group Internal Audit,PRICEWATERHOUSECOOPERS LLP,2000007693,35782.75,#,E14 9SQ,,
Department for Transport,Department for Transport,11/07/2013,Audit Fees (cash),Group Internal Audit,PRICEWATERHOUSECOOPERS LLP,2000007693,4375,#,E14 9SQ,,
Department for Transport,Department for Transport,11/07/2013,Audit Fees (cash),Group Internal Audit,PRICEWATERHOUSECOOPERS LLP,2000007693,31660,#,E14 9SQ,,
Department for Transport,Department for Transport,11/07/2013,Cap Grt Pri Sec-Cos.,Greener Transport & International,Pod Point,2000007731,11996.07,POD Point 2May13 - 27May13 ?11.9k,E1 1EE,,
Department for Transport,Department for Transport,11/07/2013,Computer Consumables,Business Transformation,XMA LIMITED GOSC,2000007724,260.06,CB384A Hp (Cb384A) Or Compatible Black (,NG11 7EP,,
Department for Transport,Department for Transport,11/07/2013,Computer Consumables,Business Transformation,XMA LIMITED GOSC,2000007724,243.74,CB386A Hp (Cb386A) Or Compatible Yellow,NG11 7EP,,
Department for Transport,Department for Transport,11/07/2013,Computer Consumables,Business Transformation,XMA LIMITED GOSC,2000007724,1230.48,#,NG11 7EP,,
Department for Transport,Department for Transport,11/07/2013,Computer Consumables,Business Transformation,XMA LIMITED GOSC,2000007724,2016.86,#,NG11 7EP,,
Department for Transport,Department for Transport,11/07/2013,Computer Consumables,Roads,XMA LIMITED GOSC,2000007724,93.51,003R99721 Xerox HP LJ 5500 Black Toner,NG11 7EP,,
Department for Transport,Department for Transport,11/07/2013,Computer Consumables,Roads,XMA LIMITED GOSC,2000007724,110.06,003R99722 Xerox HP LJ 5500 Cyan Toner,NG11 7EP,,
Department for Transport,Department for Transport,11/07/2013,Computer Consumables,Roads,XMA LIMITED GOSC,2000007724,110.06,003R99724 Xerox HP LJ 5500 Magenta Toner,NG11 7EP,,
Department for Transport,Department for Transport,11/07/2013,Computer Consumables,Roads,XMA LIMITED GOSC,2000007724,196.95,C9732A Hp Colour Lj5500 Col Smart Toner,NG11 7EP,,
Department for Transport,Department for Transport,11/07/2013,Contract Cleaning,Air Accident Investigation Branch,INTERSERVE,2000007717,2218.46,#,BS32 4NH,,
Department for Transport,Department for Transport,11/07/2013,Data Supply - TD,Transport Direct and Travel information,INRIX MEDIA LTD,2000007711,18499.2,#,WA14 1EP,,
Department for Transport,Department for Transport,11/07/2013,Financial Consultanc,Business Transformation,PRGX UK LIMITED,2000007714,8176.8,#,LU1 3LU,,
Department for Transport,Department for Transport,11/07/2013,Financial Consultanc,Refran Prog Off,GRANT THORNTON UK LLP,2000007709,99815.63,#,NN4 7YE,,
Department for Transport,Department for Transport,11/07/2013,Grt Aid to NDPBs,DASH,HS2,2000007713,7000000,HS2 July Grant 2013 2nd Tranche,SW1E 5DU,,
Department for Transport,Department for Transport,11/07/2013,IT Consultancy,Marine Accident Investigation Branch,AVENCA LTD,2000007678,1860,#,SP5 3PJ,,
Department for Transport,Department for Transport,11/07/2013,IT Equip Cap Cost,Air Accident Investigation Branch,BASSOM COMPUTER CONSULTANCY,2000007681,10344.62,#,GU9 8LS,,
Department for Transport,Department for Transport,11/07/2013,IT Ser Running Costs,Business Transformation,COMPUTACENTER,2000007701,6199.98,#,AL10 9TW,,
Department for Transport,Department for Transport,11/07/2013,IT Ser Running Costs,Marine Accident Investigation Branch,AVENCA LTD,2000007678,264,#,SP5 3PJ,,
Department for Transport,Department for Transport,11/07/2013,Legal Consultancy,Centrally held prog,ALLEN & OVERY,2000007704,5745.72,#,E1 6AO,,
Department for Transport,Department for Transport,11/07/2013,Legal Consultancy,General Counsel's Office,Anderson Strathem LLP,2000007715,2668.8,#,EH3 8EY,,
Department for Transport,Department for Transport,11/07/2013,Maintenance Other,Motoring Services,ARVAL PHH,2000007676,1248.45,#,SN5 6PE,,
Department for Transport,Department for Transport,11/07/2013,Property Maintenance,Air Accident Investigation Branch,INTERSERVE,2000007717,15277.11,#,BS32 4NH,,
Department for Transport,Department for Transport,11/07/2013,Research,Aviation,MANCHESTER METROPOLITAN UNIV,2000007690,28976,#,M1 5GD,,
Department for Transport,Department for Transport,11/07/2013,Research,Transport Security Strategy,QinetiQ Processing Centre,2000007694,27412,#,GU14 0LX,,
Department for Transport,Department for Transport,11/07/2013,Research,Rail,ATKINS LTD (TRANSPORT PLANNING),2000007677,29760,#,WR5 1TX,,
Department for Transport,Department for Transport,11/07/2013,Security,Air Accident Investigation Branch,INTERSERVE,2000007717,-0.01,#,BS32 4NH,,
Department for Transport,Department for Transport,11/07/2013,Small Software,Analysis/Science,S A S SOFTWARE LTD,2000007696,3288,#,SL7 2EB,,
Department for Transport,Department for Transport,11/07/2013,Small Software,Business Transformation,THE PRESS ASSOCIATION LTD,2000007712,875.56,#,SW1V 1A,,
Department for Transport,Department for Transport,11/07/2013,Small Software,Transport Security - Security Compliance Division ,TRIAD GROUP PLC,2000007698,4680,#,GU7 1XE,,
Department for Transport,Department for Transport,11/07/2013,Support Services,Aviation,CARDIFF INTNL AIRPORT LTD,2000007684,24501,#,CF62 3BD,,
Department for Transport,Department for Transport,11/07/2013,Support Services,Aviation,CAA INTERNATIONAL LTD,2000007682,4000,#,RH6 0YR,,
Department for Transport,Department for Transport,11/07/2013,Support Services,Group Finance,DD ACCRAILWAY PENS TRUSTEE,2000007707,1051.04,#,DL3 6XR,,
Department for Transport,Department for Transport,11/07/2013,Support Services,Group Finance,EXEL UK LIMITED (STAFF TRAVEL),2000007708,100107,#,RG12 1AN,,
Department for Transport,Department for Transport,11/07/2013,Traffic Survey & Cou,Roads,TDC SYSTEMS LIMITED,2000007697,8701.5,#,BS24 9BP,,
Department for Transport,Department for Transport,11/07/2013,Training,Air Accident Investigation Branch,FLIGHTSAFETY INTERNATIONAL,2000007686,830,#,GU14 6XA,,
Department for Transport,Department for Transport,11/07/2013,Travel Exp Overseas,Rail Accident Investigation Branch,A1 RUSHMOOR RADIO TAXIS LTD,2000007718,534.8,#,GU11 1SJ,,
Department for Transport,Department for Transport,12/07/2013,Agency Staff Costs,Group HR,HAYS PERSONNEL SERVICE LTD,2000007786,4154.1,#,KT3 4JQ,,
Department for Transport,Department for Transport,12/07/2013,Agency Staff Costs,Local,SPRING TECHNOLOGY LTD  ALSO T/A,2000007810,765.9,#,B37 7YE,,
Department for Transport,Department for Transport,12/07/2013,Agency Staff Costs,Rail,EXPERIS LTD,2000007792,4766.76,#,EC1R 3DR,,
Department for Transport,Department for Transport,12/07/2013,Agency Staff Costs,Highspeed 2,BADENOCH & CLARK,2000007789,1755.66,#,EC4V 4BG,,
Department for Transport,Department for Transport,12/07/2013,Audit Fees (cash),Group Internal Audit,PRICEWATERHOUSECOOPERS LLP,2000007798,36334.2,#,E14 9SQ,,
Department for Transport,Department for Transport,12/07/2013,Cap Grt Pri Sec-Cos.,Rail and Road Projects,LONDON UNDERGROUND,2000007811,15544.05,Prov of the Restated Dev Agreement 2003- Amendment,NW1 2AH,,
Department for Transport,Department for Transport,12/07/2013,Grant Payments,Rail Commercial Contracts,GREATER MANCHESTER PTA,2000007807,5331286.21,1404 Wk3 PTE Subsidy incl indexation - Transport f,M1 3BG,,
Department for Transport,Department for Transport,12/07/2013,Grant Payments,Rail Commercial Contracts,MERSEYTRAVEL,2000007804,1155549.72,1404 Wk3 PTE Subsidy incl Indexation - MerseyRail,L3 2AN,,
Department for Transport,Department for Transport,12/07/2013,Grant Payments,Rail Commercial Contracts,NEXUS (TYNE & WEAR),2000007805,315149.92,1404 Wk3 PTE Subsidy incl Indexation - Nexus,NE1 4AX,,
Department for Transport,Department for Transport,12/07/2013,Grant Payments,Rail Commercial Contracts,SOUTH YORKSHIRE PTE,2000007806,2022212.01,1404 Wk3 PTE Subsidy incl Indexation - South Yorks,S2 5YT,,
Department for Transport,Department for Transport,12/07/2013,Grant Payments,Rail Commercial Contracts,WEST YORKSHIRE PTA,2000007808,4858561.33,1404 Wk3 PTE Subsidy incl indexation - West Yorksh,LS1 2DE,,
Department for Transport,Department for Transport,12/07/2013,IT Ser Running Costs,Greener Transport & International,NETFUNDI LTD,2000007796,810,#,LA1 1SQ,,
Department for Transport,Department for Transport,12/07/2013,IT Ser Running Costs,Greener Transport & International,NETFUNDI LTD,2000007796,810,#,LA1 1SQ,,
Department for Transport,Department for Transport,12/07/2013,Legal Consultancy,Rail and Road Projects,C M S CAMERON MCKENNA,2000007790,596.45,#,EC1A 4DD,,
Department for Transport,Department for Transport,12/07/2013,Machinery Rental,Rail Accident Investigation Branch,KONICA MINOLTA BUS. SOLUTIONS  (UK),2000007785,609.57,#,SS14 3AR,,
Department for Transport,Department for Transport,12/07/2013,Minor Purchases,Air Accident Investigation Branch,TK WATER SYSTEMS,2000007802,720,#,SL5 7NT,,
Department for Transport,Department for Transport,12/07/2013,Printing,Roads,PRINT STATION (HASTINGS) LTD,2000007799,901.2,#,TN39 3PB,,
Department for Transport,Department for Transport,12/07/2013,Prog&ProjMgmt Consul,Greener Transport & International,MOORHOUSE CONSULTING LIMITED,2000007813,43556.4,#,EC1N 2TD,,
Department for Transport,Department for Transport,12/07/2013,Pte Cost Of Servs Ch,Rail Commercial Contracts,GREATER MANCHESTER PTA,2000007807,111860.02,1404 Wk3 PTE Admin Grant incl Indexation - Transpo,M1 3BG,,
Department for Transport,Department for Transport,12/07/2013,Pte Cost Of Servs Ch,Rail Commercial Contracts,NEXUS (TYNE & WEAR),2000007805,19076.13,1404 Wk3 PTE Admin Grant incl Indexation - Nexus,NE1 4AX,,
Department for Transport,Department for Transport,12/07/2013,Pte Cost Of Servs Ch,Rail Commercial Contracts,SOUTH YORKSHIRE PTE,2000007806,91984.9,1404 Wk3 PTE Admin Grant incl Indexation - South Y,S2 5YT,,
Department for Transport,Department for Transport,12/07/2013,Pte Cost Of Servs Ch,Rail Commercial Contracts,WEST YORKSHIRE PTA,2000007808,67016.14,1404 Wk3 PTE Admin Grant incl indexation - West Yo,LS1 2DE,,
Department for Transport,Department for Transport,12/07/2013,Research,Aviation,MANCHESTER METROPOLITAN UNIV,2000007794,40000,#,M1 5GD,,
Department for Transport,Department for Transport,12/07/2013,Software Lic Cap,Commercial & Technical Services,SPECIALIST COMPUTER CENTRES PLC,2000007809,103485.6,#,B11 2LE,,
Department for Transport,Department for Transport,12/07/2013,Support Services,Aviation,NEWCASTLE INTERNATIONAL AIRPORT LTD,2000007797,29988,#,NE13 8BZ,,
Department for Transport,Department for Transport,12/07/2013,Traffic Survey & Cou,Roads,LEEDS CITY COUNCIL,2000007803,22825,#,LS2 8JR,,
Department for Transport,Department for Transport,12/07/2013,Traffic Survey & Cou,Roads,SKY HIGH PLC,2000007814,22868,#,LS24 9AB,,
Department for Transport,Department for Transport,12/07/2013,Traffic Survey & Cou,Roads,SKY HIGH PLC,2000007814,13049,#,LS24 9AB,,
Department for Transport,Department for Transport,12/07/2013,Transport  Consult,Rail and Road Projects,PARSONS BRINCKERHOFF LTD,100010138,60128.42,Professional Fees - to 22.04.2013,NE4 7YQ,,
Department for Transport,Department for Transport,12/07/2013,Transport  Consult,Rail and Road Projects,PARSONS BRINCKERHOFF LTD,100010138,-60128.42,Credit for inv 166002,NE4 7YQ,,
Department for Transport,Department for Transport,12/07/2013,Transport  Consult,Rail Commercial Contracts,DIRECTLY OPERATED RAILWAYS LTD,2000007812,175363.3,#,WC2B 4AN,,
Department for Transport,Department for Transport,12/07/2013,Transport  Consult,Rail,STEER DAVIES & GLEAVE LTD,2000007801,39264,#,SE1 9PD,,
Department for Transport,Department for Transport,12/07/2013,Transport  Consult,Refran Prog Off,ATKINS LTD (TRANSPORT PLANNING),2000007788,54085.42,#,WR5 1TX,,
Department for Transport,Department for Transport,12/07/2013,Transport  Consult,Refran Prog Off,ATKINS LTD (TRANSPORT PLANNING),2000007788,58645.7,#,WR5 1TX,,
Department for Transport,Department for Transport,15/07/2013,Agency Staff Costs,Group Finance,ALLEN LANE FINANCIAL RECRUITMENT,2000008076,4843.66,#,BN11 2BW,,
Department for Transport,Department for Transport,15/07/2013,Agency Staff Costs,Group Finance,ALLEN LANE FINANCIAL RECRUITMENT,2000008076,3632.75,#,BN11 2BW,,
Department for Transport,Department for Transport,15/07/2013,Cap Grt Pri Sec-Cos.,Greener Transport & International,CITROEN AUTOMOBILES UK LTD,2000008098,64450,PiCG Citroen June 2013 #64.5k,CV3 1ND,,
Department for Transport,Department for Transport,15/07/2013,Cap Grt Pri Sec-Cos.,Greener Transport & International,MERCEDES BENZ UK LTD,2000008100,32000,PiVG Mercedes June 2013 #32k,MK15 8BA,,
Department for Transport,Department for Transport,15/07/2013,Cap Grt Pri Sec-Cos.,Greener Transport & International,RENAULT,2000008101,231006.41,PiCG Renault June 2013 #231k,WD3 9YS,,
Department for Transport,Department for Transport,15/07/2013,Car Hire and Leasing,Group Finance,ENTERPRISE RENT-A-CAR,2000008099,15261.19,Enterprise - Car Hire - JUNE 13,TW20 8RX,,
Department for Transport,Department for Transport,15/07/2013,Cars Fuel,Air Accident Investigation Branch,ALLSTAR BUSINESS SOLUTIONS LIMITED,2000008077,883.98,#,SN5 6PS,,
Department for Transport,Department for Transport,15/07/2013,Computer equipment,Air Accident Investigation Branch,Probrand Ltd,2000008074,967.98,PROBRAND NON ETHOS IPAD CHARGERS 01/07,B1 3BP,,
Department for Transport,Department for Transport,15/07/2013,CurrGrt Las in AEF/A,Local,Acme Bus Co Ltd,2000008070,616.38,Acme Bus Company Ltd T/A Acme Transport Services,CM22 6PF,,
Department for Transport,Department for Transport,15/07/2013,CurrGrt Las in AEF/A,Local,BLACKPOOL TRANSPORT SERVICES LTD,2000007845,282835.82,Blackpool Transport Services Ltd,FY1 5DD,,
Department for Transport,Department for Transport,15/07/2013,CurrGrt Las in AEF/A,Local,BOURNEMOUTH TRANSPORT LTD,2000007848,300061.5,Bournemouth Transport Ltd,BH8 0BQ,,
Department for Transport,Department for Transport,15/07/2013,CurrGrt Las in AEF/A,Local,CT PLUS CIC,2000008069,36276.88,CT Plus Community Interest Company,EC1V 9HU,,
Department for Transport,Department for Transport,15/07/2013,CurrGrt Las in AEF/A,Local,HACT,2000008071,916.11,Huntingdonshire Association for CT (HACT),PE15 0AY,,
Department for Transport,Department for Transport,15/07/2013,CurrGrt Las in AEF/A,Local,Leicester Bus & Truck Services Ltd,2000008072,1476.85,Leicester Bus & Truck Services Ltd,LE3 9BJ,,
Department for Transport,Department for Transport,15/07/2013,CurrGrt Las in AEF/A,Local,WARRINGTON BOROUGH TRANS LTD,2000007992,371733.84,Warrington Borough Transport Ltd,WA4 6PT,,
Department for Transport,Department for Transport,15/07/2013,Legal Consultancy,Refran Prog Off,EVERSHEDS LLP,2000008080,18693.24,#,LS11 5DR,,
Department for Transport,Department for Transport,15/07/2013,Legal Consultancy,Refran Prog Off,LINKLATERS,2000008083,37089.8,#,EC2Y 8HQ,,
Department for Transport,Department for Transport,15/07/2013,Office Fur & Equip,Maritime,#,2000008103,45527.77,#,#,,
Department for Transport,Department for Transport,15/07/2013,Office Fur & Equip,Maritime,CAPITA SYMONDS LTD,2000008079,6480,#,DL1 9HN,,
Department for Transport,Department for Transport,15/07/2013,Prog&ProjMgmt Consul,Commercial & Technical Services,TEAM ANIMATION LTD,2000008102,8400,#,KT11 2HU,,
Department for Transport,Department for Transport,15/07/2013,Property Consultancy,Business Transformation,LONDON&CONTINENTAL RAILWAYS LTD,2000008093,9012.12,Re-charges - Crowthorne Business Estate (stage 1),NW1 1AY,,
Department for Transport,Department for Transport,15/07/2013,Recruitment Fees,Group HR,GATENBY SANDERSON LTD,2000008094,5400,#,LS1 2HL,,
Department for Transport,Department for Transport,15/07/2013,Research,Roads,ATKINS LTD (TRANSPORT PLANNING),2000008078,9252.15,#,WR5 1TX,,
Department for Transport,Department for Transport,15/07/2013,Small Software,Business Transformation,SPECIALIST COMPUTER CENTRES PLC,2000008089,33631.2,#,B11 2LE,,
Department for Transport,Department for Transport,15/07/2013,Subsidies Private Se,Local,1ST BUS STOP MINIBUS,2000008038,1381.63,1st Bus Stop Minibus,DA13 9EW,,
Department for Transport,Department for Transport,15/07/2013,Subsidies Private Se,Local,ACE TRAVEL (NORTH WEST) LTD,2000007830,69890.15,ACE TRAVEL (NORTH WEST) LTD,L9 7AU,,
Department for Transport,Department for Transport,15/07/2013,Subsidies Private Se,Local,ACKLAM COACHES LTD,2000008022,4381.41,Acklams Coaches Ltd,HU17 0LA,,
Department for Transport,Department for Transport,15/07/2013,Subsidies Private Se,Local,AINTREE COACHES (INTERNATIONAL) LTD,2000008067,7459.35,Aintree Coaches (International) Ltd,CH66 1NH,,
Department for Transport,Department for Transport,15/07/2013,Subsidies Private Se,Local,ALANSWAY COACHES LTD,2000007831,31779.46,Alansway Coaches Ltd T/A Country Bus,TQ12 6UT,,
Department for Transport,Department for Transport,15/07/2013,Subsidies Private Se,Local,AXE VALLEY MINI TRAVEL,2000007834,6697.5,Axe Valley Mini Travel,EX12 2NA,,
Department for Transport,Department for Transport,15/07/2013,Subsidies Private Se,Local,B & N COACHES,2000007835,1307.01,B&N COACHES LTD,BB1 5NS,,
Department for Transport,Department for Transport,15/07/2013,Subsidies Private Se,Local,BAKER BUS,2000007836,62217.53,Baker Bus,ST8 7PL,,
Department for Transport,Department for Transport,15/07/2013,Subsidies Private Se,Local,BARRATTS COACHES LTD,2000007838,3004.39,BARRATTS COACHES LTD,CW5 6LT,,
Department for Transport,Department for Transport,15/07/2013,Subsidies Private Se,Local,BAYNES TAXIS,2000007839,874.62,BAYNES TAXIS,NE47 9NF,,
Department for Transport,Department for Transport,15/07/2013,Subsidies Private Se,Local,BEAR BUSES,2000007840,3212,BEAR BUSES,TW14 0LG,,
Department for Transport,Department for Transport,15/07/2013,Subsidies Private Se,Local,BELLE VUE MAN LIMITED,2000007843,773.88,BELLE VUE (MANCHESTER) LTD,SK4 5DZ,,
Department for Transport,Department for Transport,15/07/2013,Subsidies Private Se,Local,BENNETTS COACHES LTD,2000007844,21927.1,BENNETTS COACHES LTD,GL4 4LP,,
Department for Transport,Department for Transport,15/07/2013,Subsidies Private Se,Local,BLACK VELVET TRAVEL LTD,2000008024,56081.75,Black Velvet Travel Ltd,SO50 5L,,
Department for Transport,Department for Transport,15/07/2013,Subsidies Private Se,Local,BLUEWORKS PRIVATE HIRE,2000007846,6083.4,BLUEWORKS PRIVATE HIRE,LA12 8PX,,
Department for Transport,Department for Transport,15/07/2013,Subsidies Private Se,Local,BOULTONS OF SHROPSHIRE LTD,2000007847,1272.2,BOULTONS of SHROPSHIRE LTD,SY6 7JZ,,
Department for Transport,Department for Transport,15/07/2013,Subsidies Private Se,Local,BRADSHAW COACHES,2000007849,1049.65,Bradshaw Coaches Ltd,M28 3LX,,
Department for Transport,Department for Transport,15/07/2013,Subsidies Private Se,Local,C BODMAN & SON,2000007850,31620.1,C Bodman & Sons,SN10 5RU,,
Department for Transport,Department for Transport,15/07/2013,Subsidies Private Se,Local,CALNE TRAVEL,2000008054,4301.64,Calne Travel,SN11 0AL,,
Department for Transport,Department for Transport,15/07/2013,Subsidies Private Se,Local,CARLONE LIMITED,2000008104,1437.51,Carlone Limited,TW19 6HG,,
Department for Transport,Department for Transport,15/07/2013,Subsidies Private Se,Local,CARMEL COACHES LTD,2000007851,4638.07,Carmel Coaches Ltd,EX20 3BN,,
Department for Transport,Department for Transport,15/07/2013,Subsidies Private Se,Local,CAROUSEL BUSES LTD,2000007852,69429.07,Carousel Buses Ltd,HP13 5SG,,
Department for Transport,Department for Transport,15/07/2013,Subsidies Private Se,Local,CASTLEWAYS (WINCHOMBE) LTD,2000007853,10791.11,CASTLEWAYS (WINCHCOMBE) LTD,GL54 5PU,,
Department for Transport,Department for Transport,15/07/2013,Subsidies Private Se,Local,CELTIC TRAVEL,2000008056,1909.97,Celtic Travel,SY18 6EH,,
Department for Transport,Department for Transport,15/07/2013,Subsidies Private Se,Local,CLARKES OF LONDON,2000007829,31417.22,Clarkes of London,SE26 5AT,,
Department for Transport,Department for Transport,15/07/2013,Subsidies Private Se,Local,CLEARWAY OF CATSHILL,2000007854,1128.5,CLEARWAY OF CATSHILL,B61 0JL,,
Department for Transport,Department for Transport,15/07/2013,Subsidies Private Se,Local,CLOWES COACHES,2000007855,9754.05,G A & K M Clowes,SK17 0QP,,
Department for Transport,Department for Transport,15/07/2013,Subsidies Private Se,Local,COACH HIRE COACHES LTD,2000007856,17878.24,COACH HIRE COACHES LTD,BN5 9UU,,
Department for Transport,Department for Transport,15/07/2013,Subsidies Private Se,Local,COACH HIRE EXECUTIVE TRAVEL LTD,2000007837,1971.73,BANK VIEW TRAVEL,PR1 9SS,,
Department for Transport,Department for Transport,15/07/2013,Subsidies Private Se,Local,COACHES EXCETERA,2000008043,38208.86,Croydon Coaches UK Ltd T/A Coaches Etc,CR9 4ND,,
Department for Transport,Department for Transport,15/07/2013,Subsidies Private Se,Local,Coastal Coaches Of Warton,2000008030,15203.18,COASTAL COACHES OF WARTON,PR4 1AH,,
Department for Transport,Department for Transport,15/07/2013,Subsidies Private Se,Local,COASTAL LINER LTD,2000007857,1427.95,COASTAL LINER LIMITED,WV13 3RG,,
Department for Transport,Department for Transport,15/07/2013,Subsidies Private Se,Local,COMMUNITY TRANSPORT SOUTH WILTSHIRE,2000007859,634.68,Community Transport South Wiltshire,SP2 7NP,,
Department for Transport,Department for Transport,15/07/2013,Subsidies Private Se,Local,COMPASS COMMUNITY TRANSPORT,2000007860,7107.44,Compass Community Transport,SR2 9TP,,
Department for Transport,Department for Transport,15/07/2013,Subsidies Private Se,Local,COUNTRY LION (NORTHAMPTON) LTD,2000007861,2800.48,COUNTRY LION (NORTHAMPTON) LTD,NN4 7BH,,
Department for Transport,Department for Transport,15/07/2013,Subsidies Private Se,Local,COZY TRAVEL LTD,2000008027,7327.38,Cozy Travel Ltd,SG8 5JH,,
Department for Transport,Department for Transport,15/07/2013,Subsidies Private Se,Local,D JONES & SON,2000007862,2672.11,D Jones & Sons,LL14 1TP,,
Department for Transport,Department for Transport,15/07/2013,Subsidies Private Se,Local,DAC COACHES LTD,2000007863,10635.07,DAC Coaches Ltd,PL18 9HW,,
Department for Transport,Department for Transport,15/07/2013,Subsidies Private Se,Local,DARTLINE COACHES,2000007864,20345.96,DARTLINE COACHES,EX5 1AF,,
Department for Transport,Department for Transport,15/07/2013,Subsidies Private Se,Local,DUDLEY'S COACHES LTD,2000007865,5114.24,DUDLEY'S COACHES LTD,WR7 4LS,,
Department for Transport,Department for Transport,15/07/2013,Subsidies Private Se,Local,E STOTT & SONS LTD,2000007866,15083.54,E.STOTT & SONS LTD,HD3 4PG,,
Department for Transport,Department for Transport,15/07/2013,Subsidies Private Se,Local,EMBLINGS COACHES LTD,2000007868,2986.99,EMBLINGS COACHES LTD,PE13 4ED,,
Department for Transport,Department for Transport,15/07/2013,Subsidies Private Se,Local,ERIC W BOWERS COACHES LTD,2000007869,111927.07,Bowers Coaches Ltd,LE4 9HU,,
Department for Transport,Department for Transport,15/07/2013,Subsidies Private Se,Local,ESK VALLEY COACHES LTD,2000007870,4769.58,ESK VALLEY COACHES LTD,YO22 4PU,,
Department for Transport,Department for Transport,15/07/2013,Subsidies Private Se,Local,EXPRESS LINES LTD,2000007872,1901.89,Expresslines Ltd,MK42 0HB,,
Department for Transport,Department for Transport,15/07/2013,Subsidies Private Se,Local,FARESAVER BUSES,2000007876,65321.5,FARESAVER BUSES,SN14 6NQ,,
Department for Transport,Department for Transport,15/07/2013,Subsidies Private Se,Local,FARGO COACHES,2000007873,1275.44,FARGO COACHES,RG12 2NB,,
Department for Transport,Department for Transport,15/07/2013,Subsidies Private Se,Local,FELIX TAXIS,2000007874,1128.9,Felix Taxis,CO10 9AD,,
Department for Transport,Department for Transport,15/07/2013,Subsidies Private Se,Local,FILERS TRAVEL LTD,2000007875,21432.6,FILER'S TRAVEL LTD,EX34 8LB,,
Department for Transport,Department for Transport,15/07/2013,Subsidies Private Se,Local,FOURWAYS COACHES,2000008028,3754.92,Fourways Coaches,CM1 3QL,,
Department for Transport,Department for Transport,15/07/2013,Subsidies Private Se,Local,#,2000007877,8893.08,#,#,,
Department for Transport,Department for Transport,15/07/2013,Subsidies Private Se,Local,GARDBUS,2000008046,3198.69,Gardbus,BH24 3AL,,
Department for Transport,Department for Transport,15/07/2013,Subsidies Private Se,Local,GELDARDS COACHES LTD,2000007878,42289.55,GELDARDS COACHES LTD,LS12 5JB,,
Department for Transport,Department for Transport,15/07/2013,Subsidies Private Se,Local,GLEN VALLEY TOURS LTD,2000007880,10809.23,GLEN VALLEY TOURS LTD,NE71 6SP,,
Department for Transport,Department for Transport,15/07/2013,Subsidies Private Se,Local,GLOVERS COACHES LTD,2000007881,6363.81,GLOVERS COACHES Ltd,DE6 1HD,,
Department for Transport,Department for Transport,15/07/2013,Subsidies Private Se,Local,GO-COACHHIRE LTD,2000008032,11224.17,GO-COACH HIRE LIMITED,BR8 7HQ,,
Department for Transport,Department for Transport,15/07/2013,Subsidies Private Se,Local,GOODWINS COACHES,2000007882,30497.72,GO GOODWINS COACHES LTD,M30 9QG,,
Department for Transport,Department for Transport,15/07/2013,Subsidies Private Se,Local,GRAND PRIX SERVICES,2000007883,7362.16,GRAND PRIX SERVICES,CA17 4AY,,
Department for Transport,Department for Transport,15/07/2013,Subsidies Private Se,Local,GRANT PALMER LIMITED,2000007885,41482.59,Grant Palmer Limited,MK45 5BP,,
Department for Transport,Department for Transport,15/07/2013,Subsidies Private Se,Local,GRIFFIN COACHES T/A RELIANCE TRAVEL,2000007884,14358.64,Griffin Coaches T/A Reliance Travel,DA12 2PS,,
Department for Transport,Department for Transport,15/07/2013,Subsidies Private Se,Local,HAMS TRAVEL,2000007886,5156.01,HAMS TRAVEL,TN5 7PL,,
Department for Transport,Department for Transport,15/07/2013,Subsidies Private Se,Local,HANNELL OF HALTON,2000007887,533.53,HANNEL OF HALTON T/A MERSEYPRIDE TRAVEL,L24 1YH,,
Department for Transport,Department for Transport,15/07/2013,Subsidies Private Se,Local,HANSONS (WORDSLEY) LTD,2000007888,42472.4,HANSONS (WORDSLEY) LTD,DY9 8RD,,
Department for Transport,Department for Transport,15/07/2013,Subsidies Private Se,Local,HATTS COACHES,2000007889,22792.54,HATTS TRAVEL,SN15 4NB,,
Department for Transport,Department for Transport,15/07/2013,Subsidies Private Se,Local,HENSHAW'S EXECUTIVE TRAVEL LTD,2000008029,6427.24,HENSHAW'S EXECUTIVE TRAVEL LTD,GL56 0HH,,
Department for Transport,Department for Transport,15/07/2013,Subsidies Private Se,Local,HOLMESWOOD COACHES,2000007890,83056.75,HOLMESWOOD COACHES LTD,L40 1UB,,
Department for Transport,Department for Transport,15/07/2013,Subsidies Private Se,Local,HOPLEY'S COACHES LTD,2000007891,4344.79,HOPLEY'S COACHES LTD,TR4 8BH,,
Department for Transport,Department for Transport,15/07/2013,Subsidies Private Se,Local,HUDDERSFIELD COACH HIRE LTD,2000008068,910.02,Huddersfield Coach Hire Ltd,HD1 6HA,,
Department for Transport,Department for Transport,15/07/2013,Subsidies Private Se,Local,IMPERIAL BUS COMPANY LTD,2000007893,21724.82,Imperial Bus Company Limited,PE14 8SH,,
Department for Transport,Department for Transport,15/07/2013,Subsidies Private Se,Local,IRVINGS COACH HIRE LTD,2000007894,3036.43,Irvings Coach Hire Ltd,CA1 2DE,,
Department for Transport,Department for Transport,15/07/2013,Subsidies Private Se,Local,J & D TRAVEL,2000008040,2097.34,J & D Travel,SG17 5HL,,
Department for Transport,Department for Transport,15/07/2013,Subsidies Private Se,Local,J & P EXECUTIVE TRAVEL,2000007896,57875.81,J P Executive Travel,M24 2AZ,,
Department for Transport,Department for Transport,15/07/2013,Subsidies Private Se,Local,#,2000008107,2724.54,#,#,,
Department for Transport,Department for Transport,15/07/2013,Subsidies Private Se,Local,JACKSONS OF SILSDEN (1988) LTD,2000007898,2871.91,JACKSONS OF SILSDEN 1988 LTD,BD20 0EF,,
Department for Transport,Department for Transport,15/07/2013,Subsidies Private Se,Local,JAMES BEVAN (LYDNEY) LTD,2000007899,5983.32,JAMES BEVAN (LYDNEY) LTD,GL15 5DA,,
Department for Transport,Department for Transport,15/07/2013,Subsidies Private Se,Local,JJ TRAVEL AND TRANSPORT LTD,2000008035,616.29,JJ Travel and Transport Ltd,WA3 6PW,,
Department for Transport,Department for Transport,15/07/2013,Subsidies Private Se,Local,JOHN FISHWICK & SONS,2000007900,27723.7,JOHN FISHWICK & SONS,PR25 3LE,,
Department for Transport,Department for Transport,15/07/2013,Subsidies Private Se,Local,JOHNSON BROTHERS TOURS LTD,2000007901,56540.71,JOHNSON BROTHERS TOURS LTD,S81 7BQ,,
Department for Transport,Department for Transport,15/07/2013,Subsidies Private Se,Local,KIRKBY LONSDALE COACH HIRE LTD,2000007903,11463.7,KIRKBY LONSDALE COACH HIRE LTD,LA5 9EU,,
Department for Transport,Department for Transport,15/07/2013,Subsidies Private Se,Local,L C B TRAVEL,2000008042,5453.16,L.C.B Travel,CM19 4QY,,
Department for Transport,Department for Transport,15/07/2013,Subsidies Private Se,Local,LORDS COACHES,2000008017,508.95,LORDS COACHES,HU11 4EX,,
Department for Transport,Department for Transport,15/07/2013,Subsidies Private Se,Local,LUGG VALLEY TRAVEL LTD,2000007906,7684.17,LUGG VALLEY TRAVEL,HR6 8PX,,
Department for Transport,Department for Transport,15/07/2013,Subsidies Private Se,Local,M J CURLEY T/A,2000008106,741.95,Coach of Langtoft / Langtoft Private Hire,PE6 9LS,,
Department for Transport,Department for Transport,15/07/2013,Subsidies Private Se,Local,M TRAVEL LIMITED,2000007907,25300.41,DARREN MAYES T/A M TRAVEL,WF6 2QU,,
Department for Transport,Department for Transport,15/07/2013,Subsidies Private Se,Local,M TRAVEL MINIBUSES LTD,2000008037,12464.44,M TRAVEL MINIBUSES LTD,M12 4BW,,
Department for Transport,Department for Transport,15/07/2013,Subsidies Private Se,Local,MARCHANTS COACHES,2000007908,9134.55,MARCHANT'S COACHES LTD,GL50 3LB,,
Department for Transport,Department for Transport,15/07/2013,Subsidies Private Se,Local,MARETTS,2000007909,2116.95,Maretts Chariots,NR11 8RA,,
Department for Transport,Department for Transport,15/07/2013,Subsidies Private Se,Local,MAS SPECIAL ENGINEERING LTD,2000007910,39073.92,MAS SPECIAL ENGINEERING LTD,LN5 8LG,,
Department for Transport,Department for Transport,15/07/2013,Subsidies Private Se,Local,MATTHEWS TRAVEL,2000008045,1082.1,Matthew Newall T/A Matthews Travel,OL9 9ER,,
Department for Transport,Department for Transport,15/07/2013,Subsidies Private Se,Local,MEREDITHS COACHES LIMITED,2000007912,2989.91,Merediths Coaches Ltd,SY14 8DE,,
Department for Transport,Department for Transport,15/07/2013,Subsidies Private Se,Local,METROBUS LTD,2000007913,1364142.95,Metrobus Ltd,RH10 9UA,,
Department for Transport,Department for Transport,15/07/2013,Subsidies Private Se,Local,MH ELCOCK AND SON LTD,2000007915,705.47,M H Elcock & Son Ltd,TF7 5HA,,
Department for Transport,Department for Transport,15/07/2013,Subsidies Private Se,Local,MIKE DE COURCEY TRAVEL LTD,2000007916,106823.2,MIKE DE COURCEY TRAVEL LTD,CV3 4FG,,
Department for Transport,Department for Transport,15/07/2013,Subsidies Private Se,Local,#,2000008049,587.49,#,#,,
Department for Transport,Department for Transport,15/07/2013,Subsidies Private Se,Local,#,2000007917,1447.75,Coach Hire,#,,
Department for Transport,Department for Transport,15/07/2013,Subsidies Private Se,Local,NIP ON TRANSPORT SERVICE,2000007919,10846.62,Nip-On Transport Service,WA9 4AF,,
Department for Transport,Department for Transport,15/07/2013,Subsidies Private Se,Local,NIPPY BUS LTD,2000007920,16598.92,NIPPY BUS LTD,TA12 6HB,,
Department for Transport,Department for Transport,15/07/2013,Subsidies Private Se,Local,NORSE TRANSPORT,2000007921,26354.62,Norse Commercial Services Ltd,NR6 6EQ,,
Department for Transport,Department for Transport,15/07/2013,Subsidies Private Se,Local,O T S MINIBUS,2000007922,1337.68,O T S Minibus,TR11 5AB,,
Department for Transport,Department for Transport,15/07/2013,Subsidies Private Se,Local,ORIGINAL LONDON SIGHTSEEING TOUR LT,2000007923,22976.36,ARRIVA - The Original London Sightseeing Tour Ltd,SW18 1TB,,
Department for Transport,Department for Transport,15/07/2013,Subsidies Private Se,Local,OURHIRE,2000007924,3596.77,OURHIRE,NR133E,,
Department for Transport,Department for Transport,15/07/2013,Subsidies Private Se,Local,PAUL S WINSON (COACHES) LTD,2000007925,29493.68,PAUL S WINSON COACHES LTD,LE11 5XR,,
Department for Transport,Department for Transport,15/07/2013,Subsidies Private Se,Local,PEOPLESBUS LTD,2000008036,6065.06,Peoplesbus,L30 6UQ,,
Department for Transport,Department for Transport,15/07/2013,Subsidies Private Se,Local,PETER REYNOLDS COACHES,2000008058,3846.13,Peter Reynolds Coaches,HA6 3EF,,
Department for Transport,Department for Transport,15/07/2013,Subsidies Private Se,Local,PILKINGTONS (ACCRINGTON) LTD,2000007926,15362.37,PILKINGTONS (ACCRINGTON) LTD,BB5 1DQ,,
Department for Transport,Department for Transport,15/07/2013,Subsidies Private Se,Local,POWELLS BUS CO LTD,2000007928,40232.19,POWELLS BUS CO LTD,S66 8HN,,
Department for Transport,Department for Transport,15/07/2013,Subsidies Private Se,Local,PREMIER BUS & COACH HIRE,2000007930,3384.37,PREMIER BUS & COACH LTD,NE24 4RN,,
Department for Transport,Department for Transport,15/07/2013,Subsidies Private Se,Local,PRESTON BUS LIMITED,2000007931,159930.49,Preston Bus Limited,PR1 6NY,,
Department for Transport,Department for Transport,15/07/2013,Subsidies Private Se,Local,PRIMROSE MOTOR SERVICES LTD,2000007932,14289.21,LUGG VALLEY PRIMROSE TRAVEL LTD,HR6 8PX,,
Department for Transport,Department for Transport,15/07/2013,Subsidies Private Se,Local,PROCTERS COACHES,2000007933,49123.88,PROCTERS OF BEDALE,DL7 9UJ,,
Department for Transport,Department for Transport,15/07/2013,Subsidies Private Se,Local,PULHAM & SON (COACHES) LTD,2000007934,24408.02,PULHAM & SONS LTD,GL542EN,,
Department for Transport,Department for Transport,15/07/2013,Subsidies Private Se,Local,R & B TRAVEL,2000008033,7229.12,R & B TRAVEL,SY8 3NL,,
Department for Transport,Department for Transport,15/07/2013,Subsidies Private Se,Local,R HANDLEY & SONS LTD,2000007935,710.77,R HANDLEY & SONS LTD,DL8 4PJ,,
Department for Transport,Department for Transport,15/07/2013,Subsidies Private Se,Local,R S TYRER LIMITED,2000008015,14367.65,R S TYRER LIMITED,PR6 9LQ,,
Department for Transport,Department for Transport,15/07/2013,Subsidies Private Se,Local,R&R COACHES LIMITED,2000007841,1527.67,R & R COACHES LIMITED,BA12 9HQ,,
Department for Transport,Department for Transport,15/07/2013,Subsidies Private Se,Local,RAPID TRAVEL,2000007937,858.33,RAPID TRAVEL LTD,WN8 8LA,,
Department for Transport,Department for Transport,15/07/2013,Subsidies Private Se,Local,RED BUS,2000008047,4965.78,Red Bus,PE22 8RG,,
Department for Transport,Department for Transport,15/07/2013,Subsidies Private Se,Local,RED KITE COMMERCIAL SERVICES,2000007938,9012.9,RED KITE COMMERICAL SERVICES,LU7 9PU,,
Department for Transport,Department for Transport,15/07/2013,Subsidies Private Se,Local,REDLINE BUSES,2000007939,50323.34,REDLINE BUSES,HP19 8DB,,
Department for Transport,Department for Transport,15/07/2013,Subsidies Private Se,Local,REGENT COACHES,2000008039,10559.48,Regent Coaches,CT5 2QJ,,
Department for Transport,Department for Transport,15/07/2013,Subsidies Private Se,Local,REGS COACHES LTD,2000007940,2439.19,Reg's Coaches Ltd,AL6 9TY,,
Department for Transport,Department for Transport,15/07/2013,Subsidies Private Se,Local,REPTONS COACHES,2000008066,1824.38,AJ & ERA Repton,KT23 4HB,,
Department for Transport,Department for Transport,15/07/2013,Subsidies Private Se,Local,RICHMOND'S COACHES,2000007941,3839.93,H V Richmond Ltd,SG8 8JA,,
Department for Transport,Department for Transport,15/07/2013,Subsidies Private Se,Local,ROSSENDALE TRANSPORT LIMITED,2000007944,168752.27,Rossendale Transport Ltd,BB4 4RS,,
Department for Transport,Department for Transport,15/07/2013,Subsidies Private Se,Local,ROUTEMASTER BUSES,2000008055,1017.41,Routemaster Buses,CW2 6UE,,
Department for Transport,Department for Transport,15/07/2013,Subsidies Private Se,Local,SAFEGUARD COACHES LTD,2000007945,15341.05,Safeguard Coaches Ltd,GU2 7TH,,
Department for Transport,Department for Transport,15/07/2013,Subsidies Private Se,Local,SARGEANT BROS,2000007946,19231.88,SARGEANT BROS,HR5 3AL,,
Department for Transport,Department for Transport,15/07/2013,Subsidies Private Se,Local,SECOND CITY TRAVEL,2000007949,1073.4,SECOND CITY TRAVEL,B24 9QL,,
Department for Transport,Department for Transport,15/07/2013,Subsidies Private Se,Local,SHORELINE SUNCRUISERS,2000007950,7821.65,SHORELINE SUNCRUISERS,YO12 5BP,,
Department for Transport,Department for Transport,15/07/2013,Subsidies Private Se,Local,SLEAFORDIAN COACHES,2000007951,10343.43,Sleafordian Coaches,NG34 7EH,,
Department for Transport,Department for Transport,15/07/2013,Subsidies Private Se,Local,SMITH MOTORS LEDBURY LTD,2000007952,515.54,Smiths Motors (Ledbury) Ltd,HR8 1BA,,
Department for Transport,Department for Transport,15/07/2013,Subsidies Private Se,Local,SOUL BROTHERS LTD,2000008026,10034.18,Soul Brothers,MK46 5EA,,
Department for Transport,Department for Transport,15/07/2013,Subsidies Private Se,Local,SOUTHDOWN PSV LTD,2000007953,45544.12,Southdown PSV Ltd,RH10 3EN,,
Department for Transport,Department for Transport,15/07/2013,Subsidies Private Se,Local,SPANGAP LTD,2000007954,6293.93,SPANGAP LTD T/A A&M GROUP,CV33 9PL,,
Department for Transport,Department for Transport,15/07/2013,Subsidies Private Se,Local,STAGECOACH OXFORD,2000007955,486396.84,STAGECOACH IN OXFORD,SK3 0DU,,
Department for Transport,Department for Transport,15/07/2013,Subsidies Private Se,Local,SULLIVAN BUSES,2000007956,57639.45,SULLIVAN BUS & COACH T/A SULLIVAN BUSES,EN6 3NE,,
Department for Transport,Department for Transport,15/07/2013,Subsidies Private Se,Local,SUMMERCOURT TRAVEL LTD,2000007957,14585.75,SUMMERCOURT TRAVEL,TR8 5DR,,
Department for Transport,Department for Transport,15/07/2013,Subsidies Private Se,Local,SW COACHES LTD,2000007958,36513.48,SOUTH WEST COACHES LTD,BA9 9EB,,
Department for Transport,Department for Transport,15/07/2013,Subsidies Private Se,Local,SWANBROOK TRANSPORT LTD,2000007961,7859.3,Swanbrook Transport Ltd,GL51 0TE,,
Department for Transport,Department for Transport,15/07/2013,Subsidies Private Se,Local,SWEYNE COACHES & CO,2000007962,7095.2,Sweyne Coaches,DN14 8EL,,
Department for Transport,Department for Transport,15/07/2013,Subsidies Private Se,Local,TALLYHO COACHES,2000007964,11461.74,TALLY HO! COACHES LTD,TQ7 1ES,,
Department for Transport,Department for Transport,15/07/2013,Subsidies Private Se,Local,TARGET TRAVEL,2000007968,20119.49,TARGET TRAVEL,PL7 5BG,,
Department for Transport,Department for Transport,15/07/2013,Subsidies Private Se,Local,TELLINGS GOLDEN MILLER COACHES,2000008090,9271.83,Tellings Golden Miller Coaches,TW6 2DW,,
Department for Transport,Department for Transport,15/07/2013,Subsidies Private Se,Local,THAMES TRAVEL (WALLINGFORD) LTD,2000007972,145297.34,THAMES TRAVEL (WALLINGFORD) LTD,OX10 9TA,,
Department for Transport,Department for Transport,15/07/2013,Subsidies Private Se,Local,THAMESDOWN TRANSPORT LTD,2000007974,174193.25,THAMESDOWN TRANSPORT LTD,SN2 2DJ,,
Department for Transport,Department for Transport,15/07/2013,Subsidies Private Se,Local,THE KINGS FERRY TRAVEL GROUP,2000007902,42852.46,THE KING'S FERRY LTD,ME8 6HW,,
Department for Transport,Department for Transport,15/07/2013,Subsidies Private Se,Local,THE VILLAGER COMMUNITY,2000007986,588.21,THE VILLAGER COMMUNITY BUS SERVICES LTD,OX7 6NU,,
Department for Transport,Department for Transport,15/07/2013,Subsidies Private Se,Local,THIRD SECTOR SERVICES,2000008048,725.61,Third Sector Services,GL53 7HX,,
Department for Transport,Department for Transport,15/07/2013,Subsidies Private Se,Local,TM TRAVEL,2000007976,187140.49,T M Travel Ltd,S20 3GZ,,
Department for Transport,Department for Transport,15/07/2013,Subsidies Private Se,Local,TOMLINSON TRAVEL,2000008063,768,Tomlinson Travel,CW7 1JR,,
Department for Transport,Department for Transport,15/07/2013,Subsidies Private Se,Local,TRAVEL WITH HUNNY BUS -,2000008031,12681.54,TRAVEL WITH HUNNY,RM5 2BH,,
Department for Transport,Department for Transport,15/07/2013,Subsidies Private Se,Local,TRAVELLERS CHOICE,2000007978,20278.76,TRAVELLERS CHOICE,LA5 9RQ,,
Department for Transport,Department for Transport,15/07/2013,Subsidies Private Se,Local,TURNERS TOURS,2000007979,9666.4,Turner's Tours,EX18 7AA,,
Department for Transport,Department for Transport,15/07/2013,Subsidies Private Se,Local,UK PRIVATE VEHICLE HIRE,2000008025,5527.53,UK Private Vehicle Hire Ltd,BL6 5UE,,
Department for Transport,Department for Transport,15/07/2013,Subsidies Private Se,Local,UNIVERSITYBUS,2000007981,206034.65,UNIVERSITYBUS,AL10 9BS,,
Department for Transport,Department for Transport,15/07/2013,Subsidies Private Se,Local,UTOPIA COACHES LTD,2000007984,8684.5,UTOPIA COACHES LTD,LS25 6EZ,,
Department for Transport,Department for Transport,15/07/2013,Subsidies Private Se,Local,WALSALL COMMUNITY TRANSPORT,2000008050,5632.16,Walsall Community Transport,WS3 3DH,,
Department for Transport,Department for Transport,15/07/2013,Subsidies Private Se,Local,WALTON COACH HIRE LTD,2000007990,909.82,Walton Coach Hire Ltd,PR4 1UN,,
Department for Transport,Department for Transport,15/07/2013,Subsidies Private Se,Local,WEARDALE MOTOR SERVICES,2000007996,20352.52,Weardale Motor Services Ltd,DL13 2YQ,,
Department for Transport,Department for Transport,15/07/2013,Subsidies Private Se,Local,WEBBERBUS LIMITED,2000007998,75310.29,WEBBERBUS LTD,TA6 5LT,,
Department for Transport,Department for Transport,15/07/2013,Subsidies Private Se,Local,WESTERN GREYHOUND LTD,2000008000,211932.99,WESTERN GREYHOUND LTD,TR8 5DR,,
Department for Transport,Department for Transport,15/07/2013,Subsidies Private Se,Local,WESTWARD TRAVEL,2000008002,4429.86,Westward Travel,GL12 8RT,,
Department for Transport,Department for Transport,15/07/2013,Subsidies Private Se,Local,WIGHT COMMUNITY ACCESS LTD,2000008064,719.47,Wight Community Access Ltd,PO39 0AX,,
Department for Transport,Department for Transport,15/07/2013,Subsidies Private Se,Local,YARRANTON BROTHERS LTD,2000008007,5578.03,YARRANTON BROS LTD,WR15 8JL,,
Department for Transport,Department for Transport,15/07/2013,Subsidies Private Se,Local,YEOMANS CANYON TRAVEL,2000008009,17596.62,YEOMANS CANYON TRAVEL,HR4 9PU,,
Department for Transport,Department for Transport,15/07/2013,Subsidies Private Se,Local,YORK PULLMAN BUS CO. LTD,2000008020,1848.18,YORK PULLMAN BUS COMPANY LTD,YO23 3QA,,
Department for Transport,Department for Transport,15/07/2013,Subsidies Private Se,Local,YORKSHIRE TERRIER LTD,2000008011,360583.1,Stagecoach Yorkshire,SK3 0DU,,
Department for Transport,Department for Transport,15/07/2013,Subsidies Private Se,Local,ARRIVA LONDON,2000007832,3681630.51,Arriva London,LU4 8DS,,
Department for Transport,Department for Transport,15/07/2013,Subsidies Private Se,Local,EAST LONDON BUS AND,2000007867,2049109.44,East London Bus & Coach Company Ltd,E16 4SA,,
Department for Transport,Department for Transport,15/07/2013,Subsidies Private Se,Local,HR RICHMOND LTD TA EPSOMCOACHES,2000007892,202353.23,Epsom Coaches,KT19 9AF,,
Department for Transport,Department for Transport,15/07/2013,Subsidies Private Se,Local,LONDON SOVEREIGN LTD,2000007904,396719.38,LONDON SOVEREIGN LTD,TW2 5NX,,
Department for Transport,Department for Transport,15/07/2013,Subsidies Private Se,Local,LONDON UNITED BUSWAYS LTD,2000007905,2448811.68,LONDON UNITED BUSWAYS LTD,TW2 5NX,,
Department for Transport,Department for Transport,15/07/2013,Subsidies Private Se,Local,METROLINE TRAVEL LTD,2000007914,2989251.16,METROLINE TRAVEL LTD,NW2 6JP,,
Department for Transport,Department for Transport,15/07/2013,Subsidies Private Se,Local,SOUTH EAST LONDON &,2000007948,1128748.89,SOUTH EAST LONDON & KENT BUS COMPANY LTD,E16 4SA,,
Department for Transport,Department for Transport,15/07/2013,Support Services,DASH,VEHICLE CERTIFICATION AGENCY,2000008088,6871.96,#,BS5 6XX,,
Department for Transport,Department for Transport,15/07/2013,Support Services,Aviation Security ,FCO FOREIGN & COMMONWEALTH OFFICE,2000008073,13901.71,#,MK10 1PX,,
Department for Transport,Department for Transport,15/07/2013,Traffic Survey & Cou,Roads,SKY HIGH PLC,2000008097,31916,#,LS24 9AB,,
Department for Transport,Department for Transport,15/07/2013,Traffic Survey & Cou,Roads,SKY HIGH PLC,2000008097,23451,#,LS24 9AB,,
Department for Transport,Department for Transport,15/07/2013,Traffic Survey & Cou,Roads,SKY HIGH PLC,2000008097,22664,#,LS24 9AB,,
Department for Transport,Department for Transport,15/07/2013,Traffic Survey & Cou,Roads,SKY HIGH PLC,2000008097,22362,#,LS24 9AB,,
Department for Transport,Department for Transport,15/07/2013,Traffic Survey & Cou,Local,NATIONWIDE DATA COLLECTION MIDLANDS,2000008092,46731.25,#,CV35 7LS,,
Department for Transport,Department for Transport,15/07/2013,Training,Business Transformation,Strategic Technology,2000008108,2640,#,RH17 5PB,,
Department for Transport,Department for Transport,15/07/2013,Training,Business Transformation,SPECIALIST COMPUTER CENTRES PLC,2000008089,4006.8,#,B11 2LE,,
Department for Transport,Department for Transport,15/07/2013,Transport  Consult,Greener Transport & International,ECOFYS UK LTD,2000008091,10527.6,#,E1 8DE,,
Department for Transport,Department for Transport,15/07/2013,Transport  Consult,Rail,STEER DAVIES & GLEAVE LTD,2000008087,19156.5,#,SE1 9PD,,
Department for Transport,Department for Transport,15/07/2013,Travel Expenses UK,Group Finance,REDFERN TRAVEL LTD,2000008095,131666.16,REDFERN - DFTC - JUNE 2013,BD1 3AZ,,
Department for Transport,Department for Transport,16/07/2013,Agency Staff Costs,Group Finance,MICHAEL PAGE INTERNATIONAL,2000008172,1566,#,SL1 3SA,,
Department for Transport,Department for Transport,16/07/2013,Agency Staff Costs,Group Finance,MICHAEL PAGE INTERNATIONAL,2000008172,4080,#,SL1 3SA,,
Department for Transport,Department for Transport,16/07/2013,Agency Staff Costs,Group Finance,MICHAEL PAGE INTERNATIONAL,2000008172,3210,#,SL1 3SA,,
Department for Transport,Department for Transport,16/07/2013,Agency Staff Costs,Group Finance,NETWORKERS INTERNATIONAL (UK) PLC,2000008177,2714.88,#,BR1 1HP,,
Department for Transport,Department for Transport,16/07/2013,Agency Staff Costs,Rail Commercial Contracts,MICHAEL PAGE INTERNATIONAL,2000008172,3540.24,#,SL1 3SA,,
Department for Transport,Department for Transport,16/07/2013,Agency Staff Costs,Refran Prog Off,CAPITA RESOURCING LTD,2000008174,4181.4,#,DL1 9HN,,
Department for Transport,Department for Transport,16/07/2013,Agency Staff Costs,Group Finance,MICHAEL PAGE INTERNATIONAL,2000008172,4608,#,SL1 3SA,,
Department for Transport,Department for Transport,16/07/2013,Agency Staff Costs,Refran Prog Off,MICHAEL PAGE INTERNATIONAL,2000008172,660,#,SL1 3SA,,
Department for Transport,Department for Transport,16/07/2013,Agency Staff Costs,Refran Prog Off,MICHAEL PAGE INTERNATIONAL,2000008172,3510,#,SL1 3SA,,
Department for Transport,Department for Transport,16/07/2013,Agency Staff Costs,Group Finance,MICHAEL PAGE INTERNATIONAL,2000008172,3154.27,#,SL1 3SA,,
Department for Transport,Department for Transport,16/07/2013,Agency Staff Costs,Refran Prog Off,PARITY RESOURCES LTD,2000008173,5248.8,#,SW19 3RU,,
Department for Transport,Department for Transport,16/07/2013,Agency Staff Costs,Refran Prog Off,CAPITA RESOURCING LTD,2000008174,23587.5,#,DL1 9HN,,
Department for Transport,Department for Transport,16/07/2013,Agency Staff Costs,Refran Prog Off,MICHAEL PAGE INTERNATIONAL,2000008172,3333,#,SL1 3SA,,
Department for Transport,Department for Transport,16/07/2013,Agency Staff Costs,Rail Commercial Contracts,MICHAEL PAGE INTERNATIONAL,2000008172,2285.7,#,SL1 3SA,,
Department for Transport,Department for Transport,16/07/2013,Cap Grt Pri Sec-Cos.,Greener Transport & International,CHEVROLET UK,2000008183,15000,PiCG Chevrolet June 2013 #15k,LU1 3YT,,
Department for Transport,Department for Transport,16/07/2013,Cap Grt Pri Sec-Cos.,Greener Transport & International,NISSAN MOTOR GB LTD,2000008180,1085000,PiCG Nissan June 2013 #1.85million,WD3 9YS,,
Department for Transport,Department for Transport,16/07/2013,Cap Grt Pri Sec-Cos.,Greener Transport & International,PEUGEOT MOTOR COMPANY,2000008181,4333.25,PiCG Peugeot June 2013 #4.3k,CV3 1ND,,
Department for Transport,Department for Transport,16/07/2013,Cap Grt Pri Sec-Cos.,Greener Transport & International,TOYOTA (GB) PLC,2000008185,170000,PiCG Toyota June 2013 #170k,KT18 5XS,,
Department for Transport,Department for Transport,16/07/2013,Cap Grt Pri Sec-Cos.,Greener Transport & International,VAUXHALL MOTORS,2000008182,105000,PiCG Vauxhall June 2013 #105k,LU1 3YT,,
Department for Transport,Department for Transport,16/07/2013,Cap Grt Pri Sec-Cos.,Greener Transport & International,Chargemaster,2000008189,15000,Chargemster CM-CLA001 ?30k,LU1 3LU,,
Department for Transport,Department for Transport,16/07/2013,Cap Grt Pri Sec-Cos.,Greener Transport & International,Chargemaster,2000008189,190000,Chargemaster unique claim no CM-CLA004 #190k,LU1 3LU,,
Department for Transport,Department for Transport,16/07/2013,Cap Grt Pri Sec-Cos.,Greener Transport & International,EDF Energy,2000008190,1000,EDF Energy unique claim no EDFE062013 #1k,BN3 5SU,,
Department for Transport,Department for Transport,16/07/2013,Cap Grt Pri Sec-Cos.,Greener Transport & International,Pod Point,2000008188,30989.83,POD Point invoice PP13807 #30.9k,E1 1EE,,
Department for Transport,Department for Transport,16/07/2013,Courier Charges,Business Transformation,DX NETWORK SERVICES LTD,2000008157,1076.53,#,NN3 6YG,,
Department for Transport,Department for Transport,16/07/2013,Courier Charges,Business Transformation,DX NETWORK SERVICES LTD,2000008157,463,#,NN3 6YG,,
Department for Transport,Department for Transport,16/07/2013,CurrGrt Las in AEF/A,Rail,MERSEY TRAVEL,2000008175,6408984.21,Marsey Travel grant 4th payment,L3   2AN,,
Department for Transport,Department for Transport,16/07/2013,Hospitality,Business Transformation,AMEY COMMUNITY LIMITED,2000008160,4082.52,Amey - Hospitallity Charges - May 2013,OX4 4DQ,,
Department for Transport,Department for Transport,16/07/2013,Infrastructure Maint,Business Transformation,MOUCHEL MANAGEMENT CONSULTING LTD,2000008162,14569.2,#,OL1 9LH,,
Department for Transport,Department for Transport,16/07/2013,Legal Consultancy,Business Transformation,BLAKE LAPTHORN,2000008178,20,#,SO53 3LG,,
Department for Transport,Department for Transport,16/07/2013,Other Advertising,Local,PENNA COMMUNICATIONS,2000008179,6881.71,#,EC4M 7RD,,
Department for Transport,Department for Transport,16/07/2013,Other Advertising,Local,PENNA COMMUNICATIONS,2000008179,612.14,#,EC4M 7RD,,
Department for Transport,Department for Transport,16/07/2013,Other Advertising,Local,PENNA COMMUNICATIONS,2000008179,4531.72,#,EC4M 7RD,,
Department for Transport,Department for Transport,16/07/2013,Other Professional F,Managing Director Motoring Services,GOVERNMENT ACTUARY'S DEPARTMENT,2000008193,6491.76,#,EC4A 1AB,,
Department for Transport,Department for Transport,16/07/2013,Subsidies Private Se,Roads,Mode Shift Revenue Support,2000008170,19711.98,MSRS - Rail Period 1,#,,
Department for Transport,Department for Transport,16/07/2013,Subsidies Private Se,Roads,Mode Shift Revenue Support,2000008168,41769,MSRS - Rail Period 2,#,,
Department for Transport,Department for Transport,16/07/2013,Subsidies Private Se,Roads,Mode Shift Revenue Support,2000008169,53490.1,MSRS - Rail Period 2,#,,
Department for Transport,Department for Transport,16/07/2013,Subsidies Private Se,Roads,Mode Shift Revenue Support,2000008171,183269,MSRS - Rail Period 3 ,#,,
Department for Transport,Department for Transport,16/07/2013,Support Services,Aviation Security ,#,2000008166,3074.5,#,#,,
Department for Transport,Department for Transport,16/07/2013,Traffic Survey & Cou,Roads,TDC SYSTEMS LIMITED,2000008167,5743.5,#,BS24 9BP,,
Department for Transport,Department for Transport,16/07/2013,Traffic Survey & Cou,Roads,TDC SYSTEMS LIMITED,2000008167,2512.5,#,BS24 9BP,,
Department for Transport,Department for Transport,16/07/2013,Traffic Survey & Cou,Roads,TDC SYSTEMS LIMITED,2000008167,3205.5,#,BS24 9BP,,
Department for Transport,Department for Transport,16/07/2013,Traffic Survey & Cou,Roads,TDC SYSTEMS LIMITED,2000008167,3453,#,BS24 9BP,,
Department for Transport,Department for Transport,16/07/2013,Traffic Survey & Cou,Roads,TDC SYSTEMS LIMITED,2000008167,1941,#,BS24 9BP,,
Department for Transport,Department for Transport,16/07/2013,Traffic Survey & Cou,Roads,TDC SYSTEMS LIMITED,2000008167,1528,#,BS24 9BP,,
Department for Transport,Department for Transport,16/07/2013,Transport  Consult,Business Transformation,BLAKE LAPTHORN,2000008178,1364.4,#,SO53 3LG,,
Department for Transport,Department for Transport,16/07/2013,Transport  Consult,Business Transformation,BLAKE LAPTHORN,2000008178,3000,#,SO53 3LG,,
Department for Transport,Department for Transport,16/07/2013,Transport  Consult,Business Transformation,BLAKE LAPTHORN,2000008178,1080,#,SO53 3LG,,
Department for Transport,Department for Transport,16/07/2013,Transport  Consult,Rail and Road Projects,FIRST GREATER WESTERN,2000008176,59489.02,#,SN1 1HL,,
Department for Transport,Department for Transport,16/07/2013,Transport  Consult,Rail and Road Projects,MOTT MACDONALD,2000008165,98447.89,#,CR9 2UL,,
Department for Transport,Department for Transport,17/07/2013,Agency Staff Costs,Group Finance,BADENOCH & CLARK,2000008210,4036.38,#,EC4V 4BG,,
Department for Transport,Department for Transport,17/07/2013,Agency Staff Costs,Group Finance,MICHAEL PAGE INTERNATIONAL,2000008221,1829.28,#,SL1 3SA,,
Department for Transport,Department for Transport,17/07/2013,Agency Staff Costs,Rail Commercial Contracts,LEND LEASE CONSULTING (EMEA) LTD,2000008222,16080,#,NW1 3BF,,
Department for Transport,Department for Transport,17/07/2013,Agency Staff Costs,Rail Commercial Contracts,MORGAN HUNT UK LTD,2000008215,3466.8,#,EC4M 7EG,,
Department for Transport,Department for Transport,17/07/2013,Agency Staff Costs,Refran Prog Off,LA INTERNATIONAL COMPUTER,2000008214,10577.95,#,ST1 5UB,,
Department for Transport,Department for Transport,17/07/2013,Basic Franchise Pay,Rail Commercial Contracts,CROSS COUNTRY TRAINS LTD,2000008227,-4810624,1404 Wk3 Basic Franchise Payment P1404 - on accoun,B5 4HA,,
Department for Transport,Department for Transport,17/07/2013,Basic Franchise Pay,Rail Commercial Contracts,EAST MIDLAND TRAINS (EMT),2000008225,-7342966.46,1404 Wk3 Basic Franchise Payment - Model v8 - East,SE1 8NZ,,
Department for Transport,Department for Transport,17/07/2013,Basic Franchise Pay,Rail Commercial Contracts,LONDON MIDLAND RAILWAY,2000008226,4629452,1404 Wk3 Basic Franchise Payment (Model v3.10) - L,B2 4JB,,
Department for Transport,Department for Transport,17/07/2013,Basic Franchise Pay,Rail Commercial Contracts,NORTHERN RAIL LTD,2000008224,10461320.52,1404 Wk3 Basic Franchise Payment - Model v12 - Nor,YO1 6HT,,
Department for Transport,Department for Transport,17/07/2013,Basic Franchise Pay,Rail Commercial Contracts,NORTHERN RAIL LTD,2000008224,813108,1404 Wk3 Franchise Payment - HLOS - Northern Rail,YO1 6HT,,
Department for Transport,Department for Transport,17/07/2013,Basic Franchise Pay,Rail Commercial Contracts,FIRST KEOLIS TRANSPENNINE,2000008223,4974928.01,1404 Wk3 Basic Franchise Payment - model v11 on ac,M1 6LT,,
Department for Transport,Department for Transport,17/07/2013,Cap Grt Pri Sec-Cos.,Greener Transport & International,Rolec Services Limited,2000008247,1000,Rolec unique claim no 1 #1k,PE20 1Q,,
Department for Transport,Department for Transport,17/07/2013,Cars Maintenance,Motoring Services,Goodyear Dunlop Tyres UK Ltd,2000008241,1066.08,#,B24 9HY,,
Department for Transport,Department for Transport,17/07/2013,Computer Consumables,Rail Commercial Contracts,XMA LIMITED GOSC,2000008238,360.96,CB381AC HP LJCM6040 CYAN,NG11 7EP,,
Department for Transport,Department for Transport,17/07/2013,Computer Consumables,Rail Commercial Contracts,XMA LIMITED GOSC,2000008238,180.48,CB383AC HP LJCM6040 MAGENTA,NG11 7EP,,
Department for Transport,Department for Transport,17/07/2013,Conferences / Semina,Analysis/Science,LANDOR LINKS LTD,100010296,-948.37,#,SE11 5QY,,
Department for Transport,Department for Transport,17/07/2013,Conferences / Semina,Analysis/Science,LANDOR LINKS LTD,100010296,937.84,#,SE11 5QY,,
Department for Transport,Department for Transport,17/07/2013,Conferences / Semina,Rail,LANDOR LINKS LTD,100010296,-105.38,#,SE11 5QY,,
Department for Transport,Department for Transport,17/07/2013,Conferences / Semina,Rail,LANDOR LINKS LTD,100010296,115.91,#,SE11 5QY,,
Department for Transport,Department for Transport,17/07/2013,Grt Aid to NDPBs,Rail,RAIL PASSENGER COUNCIL,2000008249,317000,PF July 2013 Claim,M1 1LQ,,
Department for Transport,Department for Transport,17/07/2013,Other Sprs - Ptoc,Rail Commercial Contracts,LONDON MIDLAND RAILWAY,2000008226,-3560,1404 Wk3 06.39 Rugeley HLOS Service Increment Repa,B2 4JB,,
Department for Transport,Department for Transport,17/07/2013,Pip - Ptoc,Rail Commercial Contracts,FIRST KEOLIS TRANSPENNINE,2000008223,-137632.98,1404 Wk3 PIP P1403 - Transpennine Express (First K,M1 6LT,,
Department for Transport,Department for Transport,17/07/2013,Profit/Revenue Share,Rail Commercial Contracts,CROSS COUNTRY TRAINS LTD,2000008227,9312000,1404 Wk3 Revenue support_P1403 - Arriva Trains Cro,B5 4HA,,
Department for Transport,Department for Transport,17/07/2013,Profit/Revenue Share,Rail Commercial Contracts,EAST MIDLAND TRAINS (EMT),2000008225,10691718.54,1404 Wk3 EMT period 1403 Revenue Support - East Mi,SE1 8NZ,,
Department for Transport,Department for Transport,17/07/2013,Publications for Res,Aviation,CREATIVE CHOICE CIC,2000008234,2100,#,SW1H 0DJ,,
Department for Transport,Department for Transport,17/07/2013,Research,Marine Accident Investigation Branch,BRAEMAR TECHNICAL SERVICES LTD,2000008235,3000,#,EC3N 3AA,,
Department for Transport,Department for Transport,17/07/2013,Sprs Indexation Pay-,Rail Commercial Contracts,CROSS COUNTRY TRAINS LTD,2000008227,-2179785,1404 Wk3 Franchise Payment Indexation P1404 - on a,B5 4HA,,
Department for Transport,Department for Transport,17/07/2013,Sprs Indexation Pay-,Rail Commercial Contracts,EAST MIDLAND TRAINS (EMT),2000008225,-2131889.15,1404 Wk3 Franchise Payment indexation - Model v8 -,SE1 8NZ,,
Department for Transport,Department for Transport,17/07/2013,Sprs Indexation Pay-,Rail Commercial Contracts,LONDON MIDLAND RAILWAY,2000008226,265275,1404 Wk3 Basic Franchise Payment - Indexation (mod,B2 4JB,,
Department for Transport,Department for Transport,17/07/2013,Sprs Indexation Pay-,Rail Commercial Contracts,NORTHERN RAIL LTD,2000008224,197737,1404 Wk3 Franchise Payment - HLOS - Indexation - N,YO1 6HT,,
Department for Transport,Department for Transport,17/07/2013,Sprs Indexation Pay-,Rail Commercial Contracts,NORTHERN RAIL LTD,2000008224,2929660.68,1404 Wk3 Franchise Payment Indexation - Model v12,YO1 6HT,,
Department for Transport,Department for Transport,17/07/2013,Sprs Indexation Pay-,Rail Commercial Contracts,FIRST KEOLIS TRANSPENNINE,2000008223,185137.09,1404 Wk3 Franchise Payment indexation - Model v11,M1 6LT,,
Department for Transport,Department for Transport,17/07/2013,Subscriptions to Pro,Group HR,VOLUNTEER CENTRE WESTMINSTER,2000008220,6250,#,W2 1NR,,
Department for Transport,Department for Transport,17/07/2013,Support Services,Aviation,CAA INTERNATIONAL LTD,2000008212,23750,#,RH6 0YR,,
Department for Transport,Department for Transport,17/07/2013,Support Services,Aviation,CAA INTERNATIONAL LTD,2000008212,168000,#,RH6 0YR,,
Department for Transport,Department for Transport,17/07/2013,Support Services,Transport Security Strategy,HIGHWAYS AGENCY,2000008250,690,#,B1 1RN,,
Department for Transport,Department for Transport,17/07/2013,Training,Marine Accident Investigation Branch,MARTIN MANSER,2000008230,2750,#,HP19 9QY,,
Department for Transport,Department for Transport,17/07/2013,Transport  Consult,Rail,STEER DAVIES & GLEAVE LTD,2000008219,10571.4,#,SE1 9PD,,
Department for Transport,Department for Transport,17/07/2013,Transport  Consult,Rail,#,2000008233,25392,Rail VFM Study,#,,
Department for Transport,Department for Transport,17/07/2013,Transport  Consult,Commercial & Technical Services,Forsdike Associates Ltd,2000008246,11600,#,YO10 5AR,,
Department for Transport,Department for Transport,17/07/2013,Transport  Consult,Refran Prog Off,STEER DAVIES & GLEAVE LTD,2000008219,1320,#,SE1 9PD,,
Department for Transport,Department for Transport,17/07/2013,Travel Expenses UK,Air Accident Investigation Branch,REDFERN TRAVEL LTD,2000008232,5707.76,REDFERN - JUNE 2013 - AAIB,BD1 3AZ,,
Department for Transport,Department for Transport,17/07/2013,Works Buses,Business Transformation,Ofgem,2000008248,2870.42,#,SW1P 3GE,,
Department for Transport,Department for Transport,18/07/2013,Agency Staff Costs,Commercial & Technical Services,FIRST ECONOMICS LIMITED,2000008317,3150,#,OX11 9NE,,
Department for Transport,Department for Transport,18/07/2013,Agency Staff Costs,Group Finance,NETWORKERS INTERNATIONAL (UK) PLC,2000008326,3393.6,#,BR1 1HP,,
Department for Transport,Department for Transport,18/07/2013,Agency Staff Costs,Rail and Road Projects,EXPERIS LTD,2000008316,11671.56,#,EC1R 3DR,,
Department for Transport,Department for Transport,18/07/2013,Agency Staff Costs,Rail Commercial Contracts,CAPITA RESOURCING LTD,2000008322,9708,#,DL1 9HN,,
Department for Transport,Department for Transport,18/07/2013,Agency Staff Costs,Rail Commercial Contracts,NETWORKERS INTERNATIONAL (UK) PLC,2000008326,4194,#,BR1 1HP,,
Department for Transport,Department for Transport,18/07/2013,Agency Staff Costs,Rail Commercial Contracts,NETWORKERS INTERNATIONAL (UK) PLC,2000008326,4194,#,BR1 1HP,,
Department for Transport,Department for Transport,18/07/2013,Agency Staff Costs,Group Finance,ALLEN LANE FINANCIAL RECRUITMENT,2000008312,4914.06,#,BN11 2BW,,
Department for Transport,Department for Transport,18/07/2013,Agency Staff Costs,Group Finance,ALLEN LANE FINANCIAL RECRUITMENT,2000008312,4914.06,#,BN11 2BW,,
Department for Transport,Department for Transport,18/07/2013,Agency Staff Costs,Group Finance,NETWORKERS INTERNATIONAL (UK) PLC,2000008326,868.74,#,BR1 1HP,,
Department for Transport,Department for Transport,18/07/2013,Agency Staff Costs,Group Finance,NETWORKERS INTERNATIONAL (UK) PLC,2000008326,781.87,#,BR1 1HP,,
Department for Transport,Department for Transport,18/07/2013,Agency Staff Costs,Refran Prog Off,CAPITA RESOURCING LTD,2000008322,12778.79,#,DL1 9HN,,
Department for Transport,Department for Transport,18/07/2013,Agency Staff Costs,Refran Prog Off,CAPITA RESOURCING LTD,2000008322,4181.4,#,DL1 9HN,,
Department for Transport,Department for Transport,18/07/2013,Agency Staff Costs,Refran Prog Off,EXPERIS LTD,2000008316,11053.44,#,EC1R 3DR,,
Department for Transport,Department for Transport,18/07/2013,Agency Staff Costs,Refran Prog Off,EXPERIS LTD,2000008316,8941.44,#,EC1R 3DR,,
Department for Transport,Department for Transport,18/07/2013,Agency Staff Costs,Refran Prog Off,NETWORKERS INTERNATIONAL (UK) PLC,2000008326,883.92,#,BR1 1HP,,
Department for Transport,Department for Transport,18/07/2013,Agency Staff Costs,Refran Prog Off,NETWORKERS INTERNATIONAL (UK) PLC,2000008326,883.92,#,BR1 1HP,,
Department for Transport,Department for Transport,18/07/2013,Financial Consultanc,Group Finance,GOVERNMENT ACTUARY'S DEPARTMENT,2000008311,38155.5,#,EC4A 1AB,,
Department for Transport,Department for Transport,18/07/2013,Financial Consultanc,Refran Prog Off,GRANT THORNTON UK LLP,2000008324,34472,#,NN4 7YE,,
Department for Transport,Department for Transport,18/07/2013,Legal Consultancy,DASH,TREASURY SOLICITOR,2000008310,10367.4,#,WC2B 4TS,,
Department for Transport,Department for Transport,18/07/2013,Marketing,Rail,I F F RESEARCH LTD,2000008325,12495,#,N1 6DD,,
Department for Transport,Department for Transport,18/07/2013,Research,Rail Research,OVE ARUP & PARTNERS,2000008319,33687.31,#,NE1 3PL,,
Department for Transport,Department for Transport,18/07/2013,Room Hire,Aviation,CONFERENCE CENTRE AT CHURCH HOUSE,2000008315,4793.52,#,SW1P 3NZ,,
Department for Transport,Department for Transport,18/07/2013,Support Services,Aviation,UK Delegation ICAO Montreal,2000008291,63262.96,"July 2013 - C$100,000",H3C 5J9,,
Department for Transport,Department for Transport,18/07/2013,Support Services,Aviation,CIVIL AVIATION AUTHORITY,2000008313,53176.5,#,RH10 0YR,,
Department for Transport,Department for Transport,18/07/2013,Support Services,Aviation,CIVIL AVIATION AUTHORITY,2000008313,53176.5,#,RH10 0YR,,
Department for Transport,Department for Transport,18/07/2013,Support Services,Group Finance,DD ACCRAILWAY PENS TRUSTEE,2000008323,3595.76,#,DL3 6XR,,
Department for Transport,Department for Transport,18/07/2013,Traffic Survey & Cou,Roads,TDC SYSTEMS LIMITED,2000008320,2512.5,#,BS24 9BP,,
Department for Transport,Department for Transport,18/07/2013,Traffic Survey & Cou,Roads,TDC SYSTEMS LIMITED,2000008320,4258,#,BS24 9BP,,
Department for Transport,Department for Transport,18/07/2013,Training,Business Transformation,CarbonSAVER Ltd,2000008332,2833,#,BL1 4DH,,
Department for Transport,Department for Transport,18/07/2013,Transport  Consult,Rail and Road Projects,JACOBS UK LTD,2000008318,155146.2,#,G2 7HX,,
Department for Transport,Department for Transport,18/07/2013,Transport  Consult,Greener Transport & International,OVE ARUP & PARTNERS,2000008319,12596.32,#,NE1 3PL,,
Department for Transport,Department for Transport,19/07/2013,Agency Staff Costs,Business Transformation,NETWORKERS INTERNATIONAL (UK) PLC,2000008404,8705.1,#,BR1 1HP,,
Department for Transport,Department for Transport,19/07/2013,Agency Staff Costs,Local,EXPERIS LTD,2000008395,2235.3,#,EC1R 3DR,,
Department for Transport,Department for Transport,19/07/2013,Agency Staff Costs,Rail,EXPERIS LTD,2000008395,6160.51,#,EC1R 3DR,,
Department for Transport,Department for Transport,19/07/2013,Agency Staff Costs,Roads,EXPERIS LTD,2000008395,8437.28,#,EC1R 3DR,,
Department for Transport,Department for Transport,19/07/2013,Agency Staff Costs,Refran Prog Off,CAPITA RESOURCING LTD,2000008402,14432.54,#,DL1 9HN,,
Department for Transport,Department for Transport,19/07/2013,Agency Staff Costs,Group Finance,EXPERIS LTD,100010413,-8705.16,#,EC1R 3DR,,
Department for Transport,Department for Transport,19/07/2013,Agency Staff Costs,Group Finance,EXPERIS LTD,100010413,8705.16,#,EC1R 3DR,,
Department for Transport,Department for Transport,19/07/2013,Agency Staff Costs,Group Finance,EXPERIS LTD,2000008395,8705.16,#,EC1R 3DR,,
Department for Transport,Department for Transport,19/07/2013,Agency Staff Costs,Highspeed 2,NETWORKERS INTERNATIONAL (UK) PLC,2000008404,8484,#,BR1 1HP,,
Department for Transport,Department for Transport,19/07/2013,Agency Staff Costs,Group Finance,PARITY RESOURCES LTD,100010415,-17340,#,SW19 3RU,,
Department for Transport,Department for Transport,19/07/2013,Agency Staff Costs,Group Finance,PARITY RESOURCES LTD,100010415,17340,#,SW19 3RU,,
Department for Transport,Department for Transport,19/07/2013,Agency Staff Costs,Group Finance,PARITY RESOURCES LTD,2000008400,2040,#,SW19 3RU,,
Department for Transport,Department for Transport,19/07/2013,Agency Staff Costs,Aviation,NETWORKERS INTERNATIONAL (UK) PLC,2000008404,838.2,#,BR1 1HP,,
Department for Transport,Department for Transport,19/07/2013,Agency Staff Costs,Aviation,NETWORKERS INTERNATIONAL (UK) PLC,2000008404,838.2,#,BR1 1HP,,
Department for Transport,Department for Transport,19/07/2013,Childcare Voucher Co,Group HR,COMPUTERSHARE VOUCHER SERVICES,2000008393,27367,#,WS13 8SX,,
Department for Transport,Department for Transport,19/07/2013,CurrGrtPriSec-P&NPIS,Roads,BRAKE,2000008397,83063,1st payment 2013-14 DfT Grant in Aid,HD1 2XZ,,
Department for Transport,Department for Transport,19/07/2013,Infrastructure Maint,Business Transformation,METALOGIX INTERNATIONAL GMBH,2000008348,4762.07,#,CH-8200,,
Department for Transport,Department for Transport,19/07/2013,IT Ser Running Costs,General Counsel's Office,ACTICA CONSULTING LIMITED,2000008405,6120,#,GU2 7YF,,
Department for Transport,Department for Transport,19/07/2013,MAA Proceeds Paid,Group Finance,HM TREASURY-CFER,2000008349,39303.91,War Risks CfER - ODYSSEY MARINE EXPLORATION,SW1A 2H,,
Department for Transport,Department for Transport,19/07/2013,MAA Proceeds Paid,Group Finance,HM TREASURY-CFER,2000008350,1033355.44,War Risks CfER - METTALLO LIMITED,SW1A 2H,,
Department for Transport,Department for Transport,19/07/2013,Other Professional F,Group HR,COMPUTERSHARE VOUCHER SERVICES,2000008393,656.81,#,WS13 8SX,,
Department for Transport,Department for Transport,19/07/2013,Other Professional F,Greener Transport & International,RICARDO - AEA LIMITED,2000008406,11909.25,#,OX11 0PQ,,
Department for Transport,Department for Transport,19/07/2013,Rent - L&B (non-PFI),Rail and Road Projects,EUROSTAR (UK) LTD,2000008403,135000,#,SE1 8SE,,
Department for Transport,Department for Transport,19/07/2013,Support Services,Group Finance,EXEL PLC,2000008347,423000,#,MK40 2UB,,
Department for Transport,Department for Transport,19/07/2013,Training,Group HR,KLC Employment Law Consultants LLP,2000008408,2115.93,#,GU7 1EY,,
Department for Transport,Department for Transport,19/07/2013,Training,Group HR,KLC Employment Law Consultants LLP,2000008408,1814.56,#,GU7 1EY,,
Department for Transport,Department for Transport,19/07/2013,Training,Motoring Services,ROSPA ENTERPRISES LTD,2000008399,1350,#,B15 1RP,,
Department for Transport,Department for Transport,19/07/2013,Training,Motoring Services,ROSPA ENTERPRISES LTD,2000008399,1350,#,B15 1RP,,
Department for Transport,Department for Transport,19/07/2013,Transport  Consult,Refran Prog Off,STEER DAVIES & GLEAVE LTD,2000008396,15312.43,#,SE1 9PD,,
Department for Transport,Department for Transport,22/07/2013,Agency Staff Costs,Group Finance,MICHAEL PAGE INTERNATIONAL,2000008490,3132,#,SL1 3SA,,
Department for Transport,Department for Transport,22/07/2013,Agency Staff Costs,Group Finance,MICHAEL PAGE INTERNATIONAL,2000008490,3210,#,SL1 3SA,,
Department for Transport,Department for Transport,22/07/2013,Agency Staff Costs,DASH,CAPITA RESOURCING LTD,2000008492,8742.78,#,DL1 9HN,,
Department for Transport,Department for Transport,22/07/2013,Agency Staff Costs,Highspeed 2,BADENOCH & CLARK,2000008483,1755.66,#,EC4V 4BG,,
Department for Transport,Department for Transport,22/07/2013,Agency Staff Costs,Group Finance,PARITY RESOURCES LTD,2000008491,12240,#,SW19 3RU,,
Department for Transport,Department for Transport,22/07/2013,Cap Grt Loc Auth,Greener Transport & International,CENEX,2000008497,448658.36,Midlands Q3 FY 1213 #448k,LE11 3TU,,
Department for Transport,Department for Transport,22/07/2013,Cap Grt Loc Auth,Greener Transport & International,EVALU8 TRANSPORT INNOVATIONS LTD,2000008499,202684,Evalu8 Q4 FY 1213 202684,AL10 9AB,,
Department for Transport,Department for Transport,22/07/2013,Cap Grt Pri Sec-Cos.,Rail,NETWORK RAIL INFRASTUCTURE LTD,2000008493,268631822.2,Period Network Rail Grant - 5th Payment,N1 9AG,,
Department for Transport,Department for Transport,22/07/2013,Cap Grt Pri Sec-Cos.,Greener Transport & International,ASHWOODS AUTOMOTIVE LTD,2000008501,48020,LCVPPP 15th Payment 14 Vehicles,EX4 8DS,,
Department for Transport,Department for Transport,22/07/2013,Car Hire and Leasing,Motoring Services,LEX AUTOLEASE LTD,2000008481,461.43,#,BL9 8RT,,
Department for Transport,Department for Transport,22/07/2013,Car Tax & Insurance,Motoring Services,Ford Retail Ltd,2000008505,824.5,#,BS3 2TN,,
Department for Transport,Department for Transport,22/07/2013,Cars Maintenance,Motoring Services,Goodyear Dunlop Tyres UK Ltd,2000008506,1704.32,#,B24 9HY,,
Department for Transport,Department for Transport,22/07/2013,Computer equipment,Business Transformation,SPECIALIST COMPUTER CENTRES PLC,2000008494,3358.78,#,B11 2LE,,
Department for Transport,Department for Transport,22/07/2013,CurrGrtPriSec-P&NPIS,Greener Transport & International,ENERGY SAVING TRUST,2000008489,198500,"""EST June Clam #198,500""",SW1H 9BP,,
Department for Transport,Department for Transport,22/07/2013,CurrGrtPriSec-P&NPIS,Greener Transport & International,LOW CARBON VEHICLE PARTNERSHIP,2000008498,40000,"""LowCVP July Claim #40,000 """,SW1H 9JJ,,
Department for Transport,Department for Transport,22/07/2013,Maintenance Other,Motoring Services,ARVAL PHH,2000008482,4117.82,#,SN5 6PE,,
Department for Transport,Department for Transport,22/07/2013,Maintenance Other,Motoring Services,ARVAL PHH,2000008482,3327.66,#,SN5 6PE,,
Department for Transport,Department for Transport,22/07/2013,Publications for Res,Roads,CREATIVE CHOICE CIC,2000008500,2000,#,SW1H 0DJ,,
Department for Transport,Department for Transport,22/07/2013,Small Software,Analysis/Science,ESRI (UK) LIMITED,2000008484,16776,#,HP21 7QG,,
Department for Transport,Department for Transport,22/07/2013,Stationery (Non-stk),Permanent Secretary,Banner Business Services Ltd,2000008502,1073.74,#,NR3 1QU,,
Department for Transport,Department for Transport,22/07/2013,Subscriptions to Pro,Group HR,VOLUNTEER CENTRE WESTMINSTER,2000008488,5000,#,W2 1NR,,
Department for Transport,Department for Transport,22/07/2013,Telephone charges,Business Transformation,SIEMENS ENTERPRISE COMMUNICATIONS L,2000008486,3278.06,Siemens Charge April 2013,MK15 ODJ,,
Department for Transport,Department for Transport,22/07/2013,Telephone charges,Business Transformation,SIEMENS ENTERPRISE COMMUNICATIONS L,2000008486,1639.03,Siemens Charge May 2013,MK15 ODJ,,
Department for Transport,Department for Transport,22/07/2013,Telephone charges,Business Transformation,VERIZON BUSINESS,2000008487,8580.62,Verizon PSTN July 2013,RG2 6DA,,
Department for Transport,Department for Transport,22/07/2013,Transport  Consult,Group HR,SAVILLE CONSULTING UK LTD,2000008495,432.8,#,KT10 9PN,,
Department for Transport,Department for Transport,23/07/2013,Agency Staff Costs,Group HR,HAYS PERSONNEL SERVICE LTD,2000008573,4154.1,#,KT3 4JQ,,
Department for Transport,Department for Transport,23/07/2013,Agency Staff Costs,Group Finance,ALLEN LANE FINANCIAL RECRUITMENT,2000008576,4843.66,#,BN11 2BW,,
Department for Transport,Department for Transport,23/07/2013,Agency Staff Costs,Group Finance,ALLEN LANE FINANCIAL RECRUITMENT,2000008576,4036.38,#,BN11 2BW,,
Department for Transport,Department for Transport,23/07/2013,Agency Staff Costs,Group Finance,ALLEN LANE FINANCIAL RECRUITMENT,2000008576,2719.38,#,BN11 2BW,,
Department for Transport,Department for Transport,23/07/2013,Agency Staff Costs,Group Finance,ALLEN LANE FINANCIAL RECRUITMENT,2000008576,2175.5,#,BN11 2BW,,
Department for Transport,Department for Transport,23/07/2013,Agency Staff Costs,Rail Commercial Contracts,MICHAEL PAGE INTERNATIONAL,2000008589,3540.24,#,SL1 3SA,,
Department for Transport,Department for Transport,23/07/2013,Agency Staff Costs,Rail Commercial Contracts,MORGAN HUNT UK LTD,2000008582,3852,#,EC4M 7EG,,
Department for Transport,Department for Transport,23/07/2013,Agency Staff Costs,Rail,EXPERIS LTD,2000008579,2383.38,P/E 14/7/13 - PJ,EC1R 3DR,,
Department for Transport,Department for Transport,23/07/2013,Agency Staff Costs,Group Finance,ALLEN LANE FINANCIAL RECRUITMENT,2000008576,4368.05,#,BN11 2BW,,
Department for Transport,Department for Transport,23/07/2013,Agency Staff Costs,Group Finance,ALLEN LANE FINANCIAL RECRUITMENT,2000008576,3276.04,#,BN11 2BW,,
Department for Transport,Department for Transport,23/07/2013,Agency Staff Costs,Group Finance,EXPERIS LTD,2000008579,4352.58,#,EC1R 3DR,,
Department for Transport,Department for Transport,23/07/2013,Agency Staff Costs,Refran Prog Off,EXPERIS LTD,2000008579,5526.72,#,EC1R 3DR,,
Department for Transport,Department for Transport,23/07/2013,Agency Staff Costs,Group Finance,MICHAEL PAGE INTERNATIONAL,2000008589,3942.84,#,SL1 3SA,,
Department for Transport,Department for Transport,23/07/2013,Agency Staff Costs,Refran Prog Off,MICHAEL PAGE INTERNATIONAL,2000008589,660,#,SL1 3SA,,
Department for Transport,Department for Transport,23/07/2013,Agency Staff Costs,Group Finance,MICHAEL PAGE INTERNATIONAL,2000008589,3456,#,SL1 3SA,,
Department for Transport,Department for Transport,23/07/2013,Agency Staff Costs,Refran Prog Off,CAPITA RESOURCING LTD,2000008590,40920,#,DL1 9HN,,
Department for Transport,Department for Transport,23/07/2013,Agency Staff Costs,Refran Prog Off,EXPERIS LTD,2000008579,4470.72,#,EC1R 3DR,,
Department for Transport,Department for Transport,23/07/2013,Agency Staff Costs,Refran Prog Off,MICHAEL PAGE INTERNATIONAL,2000008589,2666.4,#,SL1 3SA,,
Department for Transport,Department for Transport,23/07/2013,Car Hire and Leasing,Motoring Services,Saltco Ltd,2000008607,1871,#,SE15 4RF,,
Department for Transport,Department for Transport,23/07/2013,Conferences / Semina,Refran Prog Off,Leith's,2000008581,633.5,#,B45 9PZ,,
Department for Transport,Department for Transport,23/07/2013,CurrGrt Las in AEF/A,London and Olympics,GREATER LONDON AUTHORITY,2000008610,76479000,GLA Grant Payment - No: 9,SE1 2UT,,
Department for Transport,Department for Transport,23/07/2013,Data Supply - TD,Transport Direct and Travel information,ORDNANCE SURVEY,2000008584,3656.77,#,SO16 4XH,,
Department for Transport,Department for Transport,23/07/2013,IT Ser Running Costs,Transport Direct and Travel information,TRAPEZE GROUP (UK) LTD,2000008586,16196.4,#,BA14 6PH,,
Department for Transport,Department for Transport,23/07/2013,Media & Press,Business Transformation,"GORKANA GROUP LTD (""GCL"")",2000008597,4116.21,#,EC1Y 8QE,,
Department for Transport,Department for Transport,23/07/2013,Other Advertising,Local,PENNA COMMUNICATIONS,2000008595,8216.59,#,EC4M 7RD,,
Department for Transport,Department for Transport,23/07/2013,Publications for Res,DASH,CREATIVE CHOICE CIC,2000008599,1372.5,#,SW1H 0DJ,,
Department for Transport,Department for Transport,23/07/2013,Publications for Res,DASH,THE STATIONERY OFFICE LTD,2000008588,2524,#,NR3 1PD,,
Department for Transport,Department for Transport,23/07/2013,Publications for Res,Refran Prog Off,THE STATIONERY OFFICE LTD,2000008588,765,#,NR3 1PD,,
Department for Transport,Department for Transport,23/07/2013,Research,Aviation,CIVIL AVIATION AUTHORITY,2000008578,55375,#,RH10 0YR,,
Department for Transport,Department for Transport,23/07/2013,Research,Local,NATIONAL CENTRE FOR SOCIAL RESEARCH,2000008583,133343.4,#,EC1V 0AX,,
Department for Transport,Department for Transport,23/07/2013,Research,Aviation,CIVIL AVIATION AUTHORITY,2000008578,29256.09,#,RH10 0YR,,
Department for Transport,Department for Transport,23/07/2013,Stationery (Non-stk),Permanent Secretary,Banner Business Services Ltd,2000008601,15.6,9090024 Banner Brilliant Page Marker 38,NR3 1QU,,
Department for Transport,Department for Transport,23/07/2013,Stationery (Non-stk),Permanent Secretary,Banner Business Services Ltd,2000008601,293.76,9150014 Banner Value A4 Copier Paper 80g,NR3 1QU,,
Department for Transport,Department for Transport,23/07/2013,Stationery (Non-stk),Permanent Secretary,Banner Business Services Ltd,2000008601,312.96,9153002 Banner A4 80Gsm 100% Recycd Hi W,NR3 1QU,,
Department for Transport,Department for Transport,23/07/2013,Stationery (Non-stk),Permanent Secretary,Banner Business Services Ltd,2000008601,2.58,9280020 Banner Bar Tag 25mm Red X100,NR3 1QU,,
Department for Transport,Department for Transport,23/07/2013,Stationery (Non-stk),Permanent Secretary,Banner Business Services Ltd,2000008601,11.94,9410003 Banner A4 Cut Flush Polypropylen,NR3 1QU,,
Department for Transport,Department for Transport,23/07/2013,Subsidies Private Se,Local,GILLS TRAVEL,2000008611,1932.74,Gills Travel,NG9 3PX,,
Department for Transport,Department for Transport,23/07/2013,Support Services,Business Transformation,THE EMMANUEL CENTRE,2000008592,1905,#,SW1P 3DW,,
Department for Transport,Department for Transport,23/07/2013,Support Services,Aviation,LONDON SOUTHEND AIRPORT CO LTD,2000008593,24501,#,SS2 6YF,,
Department for Transport,Department for Transport,23/07/2013,Support Services,Group Finance,DD ACCRAILWAY PENS TRUSTEE,2000008591,3324.72,#,DL3 6XR,,
Department for Transport,Department for Transport,23/07/2013,Telephone charges,Business Transformation,VERIZON BUSINESS,2000008587,15517.99,Audio Conference July 2013,RG2 6DA,,
Department for Transport,Department for Transport,23/07/2013,Traffic Survey & Cou,Roads,TDC SYSTEMS LIMITED,2000008585,2560,#,BS24 9BP,,
Department for Transport,Department for Transport,23/07/2013,Training,Air Accident Investigation Branch,HELI AIR LIMITED,2000008600,635,#,CV35 9EU,,
Department for Transport,Department for Transport,23/07/2013,Transport  Consult,Greener Transport & International,ATKINS LTD (TRANSPORT PLANNING),2000008577,5926.8,#,WR5 1TX,,
Department for Transport,Department for Transport,24/07/2013,Agency Staff Costs,Group Finance,MICHAEL PAGE INTERNATIONAL,2000008704,3210,#,SL1 3SA,,
Department for Transport,Department for Transport,24/07/2013,Agency Staff Costs,Group Finance,NETWORKERS INTERNATIONAL (UK) PLC,2000008708,2714.88,#,BR1 1HP,,
Department for Transport,Department for Transport,24/07/2013,Agency Staff Costs,Rail Accident Investigation Branch,SPRING TECHNOLOGY LTD  ALSO T/A,2000008709,609.98,#,B37 7YE,,
Department for Transport,Department for Transport,24/07/2013,Agency Staff Costs,Rail Commercial Contracts,NETWORKERS INTERNATIONAL (UK) PLC,2000008708,4194,#,BR1 1HP,,
Department for Transport,Department for Transport,24/07/2013,Agency Staff Costs,Local,EXPERIS LTD,2000008677,1788.24,#,EC1R 3DR,,
Department for Transport,Department for Transport,24/07/2013,Agency Staff Costs,Roads,EXPERIS LTD,2000008677,2812.43,#,EC1R 3DR,,
Department for Transport,Department for Transport,24/07/2013,Agency Staff Costs,Group Finance,NETWORKERS INTERNATIONAL (UK) PLC,2000008708,868.74,#,BR1 1HP,,
Department for Transport,Department for Transport,24/07/2013,Agency Staff Costs,Refran Prog Off,NETWORKERS INTERNATIONAL (UK) PLC,2000008708,883.92,#,BR1 1HP,,
Department for Transport,Department for Transport,24/07/2013,Audit Fees (cash),Group Internal Audit,PRICEWATERHOUSECOOPERS LLP,2000008682,4375,#,E14 9SQ,,
Department for Transport,Department for Transport,24/07/2013,Cap Grt Loc Auth,Local,BATH & NE SOMERSET DC,2000008717,916750,Highway Maintenance Block - 2013/14 Quarter 2,BA1 5AW,,
Department for Transport,Department for Transport,24/07/2013,Cap Grt Loc Auth,Local,BEDFORD BC,2000008688,696250,Highway Maintenance Block - 2013/14 Quarter 2,MK40 1SJ,,
Department for Transport,Department for Transport,24/07/2013,Cap Grt Loc Auth,Local,BLACKBURN WITH DARWEN BC,2000008788,462000,Highway Maintenance Block - 2013/14 Quarter 2,BB1 7DY,,
Department for Transport,Department for Transport,24/07/2013,Cap Grt Loc Auth,Local,BLACKPOOL COUNCIL,2000008731,372750,Highway Maintenance Block - 2013/14 Quarter 2,FY3 7HW,,
Department for Transport,Department for Transport,24/07/2013,Cap Grt Loc Auth,Local,BOURNEMOUTH BC,2000008719,356250,Highway Maintenance Block - 2013/14 Quarter 2,BH2 6DY,,
Department for Transport,Department for Transport,24/07/2013,Cap Grt Loc Auth,Local,BRACKNELL FOREST BC,2000008672,356750,Highway Maintenance Block - 2013/14 Quarter 2,RG12 1AQ,,
Department for Transport,Department for Transport,24/07/2013,Cap Grt Loc Auth,Local,BRIGHTON & HOVE COUNCIL,2000008721,820000,Highway Maintenance Block - 2013/14 Quarter 2,BN3 2SR,,
Department for Transport,Department for Transport,24/07/2013,Cap Grt Loc Auth,Local,BRISTOL CITY COUNCIL,2000008723,790750,Highway Maintenance Block - 2013/14 Quarter 2,BS99 7BL,,
Department for Transport,Department for Transport,24/07/2013,Cap Grt Loc Auth,Local,BUCKINGHAMSHIRE CC (REVENUE),2000008725,1953000,Highway Maintenance Block - 2013/14 Quarter 2,HP20 1UD,,
Department for Transport,Department for Transport,24/07/2013,Cap Grt Loc Auth,Local,CAMBRIDGESHIRE COUNTY COUNCIL,2000008727,2700250,Highway Maintenance Block - 2013/14 Quarter 2,CB3 0AP,,
Department for Transport,Department for Transport,24/07/2013,Cap Grt Loc Auth,Local,CENTRAL BEDFORDSHIRE COUNCIL,2000008718,1001000,Highway Maintenance Block - 2013/14 Quarter 2,MK42 9BD,,
Department for Transport,Department for Transport,24/07/2013,Cap Grt Loc Auth,Local,CENTRO,2000008711,3895750,Highway Maintenance Block - 2013/14 Quarter 2,B19 3SD,,
Department for Transport,Department for Transport,24/07/2013,Cap Grt Loc Auth,Local,CHESHIRE EAST BOROUGH COUNCIL,2000008714,2056750,Highway Maintenance Block - 2013/14 Quarter 2,CW11 1HZ,,
Department for Transport,Department for Transport,24/07/2013,Cap Grt Loc Auth,Local,CHESHIRE WEST &,2000008716,1557250,Highway Maintenance Block - 2013/14 Quarter 2,CH1 9PS,,
Department for Transport,Department for Transport,24/07/2013,Cap Grt Loc Auth,Local,CITY OF YORK COUNCIL,2000008729,439000,Highway Maintenance Block - 2013/14 Quarter 2,Y01 7WH,,
Department for Transport,Department for Transport,24/07/2013,Cap Grt Loc Auth,Local,CORNWALL COUNTY COUNCIL,2000008798,4425500,Highway Maintenance Block - 2013/14 Quarter 2,TR1 38D,,
Department for Transport,Department for Transport,24/07/2013,Cap Grt Loc Auth,Local,CUMBRIA COUNTY COUNCIL,2000008730,5389750,Highway Maintenance Block - 2013/14 Quarter 2,CA3 8NA,,
Department for Transport,Department for Transport,24/07/2013,Cap Grt Loc Auth,Local,DARLINGTON BC,2000008732,397500,Highway Maintenance Block - 2013/14 Quarter 2,TS19 1JA,,
Department for Transport,Department for Transport,24/07/2013,Cap Grt Loc Auth,Local,DERBY CITY COUNCIL,2000008733,468750,Highway Maintenance Block - 2013/14 Quarter 2,DE1 2YL,,
Department for Transport,Department for Transport,24/07/2013,Cap Grt Loc Auth,Local,DERBYSHIRE COUNTY COUNCIL,2000008735,3636250,Highway Maintenance Block - 2013/14 Quarter 2,DE4 3AH,,
Department for Transport,Department for Transport,24/07/2013,Cap Grt Loc Auth,Local,DEVON COUNTY COUNCIL,2000008736,8353750,Highway Maintenance Block - 2013/14 Quarter 2,EX2 4QJ,,
Department for Transport,Department for Transport,24/07/2013,Cap Grt Loc Auth,Local,DORSET COUNTY COUNCIL,2000008738,2773250,Highway Maintenance Block - 2013/14 Quarter 2,DT1 1XJ,,
Department for Transport,Department for Transport,24/07/2013,Cap Grt Loc Auth,Local,DURHAM COUNTY COUNCIL,2000008740,2533000,Highway Maintenance Block - 2013/14 Quarter 2,DH1 5UE,,
Department for Transport,Department for Transport,24/07/2013,Cap Grt Loc Auth,Local,EAST RIDING OF YORKSHIRE COUNCIL,2000008689,2294000,Highway Maintenance Block - 2013/14 Quarter 2,HU17 9BA,,
Department for Transport,Department for Transport,24/07/2013,Cap Grt Loc Auth,Local,EAST SUSSEX COUNTY COUNCIL,2000008801,2062250,Highway Maintenance Block - 2013/14 Quarter 2,BN7 1UE,,
Department for Transport,Department for Transport,24/07/2013,Cap Grt Loc Auth,Local,ESSEX COUNTY COUNCIL,2000008742,4759000,Highway Maintenance Block - 2013/14 Quarter 2,CM1 1LX,,
Department for Transport,Department for Transport,24/07/2013,Cap Grt Loc Auth,Local,GATESHEAD MBC,2000008789,567250,Highway Maintenance Block - 2013/14 Quarter 2,NE8 1HH,,
Department for Transport,Department for Transport,24/07/2013,Cap Grt Loc Auth,Local,GLOUCESTERSHIRE COUNTY COUNCIL,2000008715,3743500,Highway Maintenance Block - 2013/14 Quarter 2,GL1 2TJ,,
Department for Transport,Department for Transport,24/07/2013,Cap Grt Loc Auth,Local,GREATER MANCHESTER,2000008722,6330750,Highway Maintenance Block - 2013/14 Quarter 2,M60 2JR,,
Department for Transport,Department for Transport,24/07/2013,Cap Grt Loc Auth,Local,HALTON BC,2000008743,490000,Highway Maintenance Block - 2013/14 Quarter 2,WA8 6NB,,
Department for Transport,Department for Transport,24/07/2013,Cap Grt Loc Auth,Local,HAMPSHIRE COUNTY COUNCIL,2000008745,5513000,Highway Maintenance Block - 2013/14 Quarter 2,SO23 8UB,,
Department for Transport,Department for Transport,24/07/2013,Cap Grt Loc Auth,Local,HARTLEPOOL BOROUGH COUNCIL,2000008747,195250,Highway Maintenance Block - 2013/14 Quarter 2,TS24 7BT,,
Department for Transport,Department for Transport,24/07/2013,Cap Grt Loc Auth,Local,HEREFORDSHIRE COUNCIL,2000008690,2194750,Highway Maintenance Block - 2013/14 Quarter 2,HR4 0XH,,
Department for Transport,Department for Transport,24/07/2013,Cap Grt Loc Auth,Local,HERTFORDSHIRE CC,2000008749,4435500,Highway Maintenance Block - 2013/14 Quarter 2,SG13 8TN,,
Department for Transport,Department for Transport,24/07/2013,Cap Grt Loc Auth,Local,KENT COUNTY COUNCIL,2000008753,5618250,Highway Maintenance Block - 2013/14 Quarter 2,ME14 1XQ,,
Department for Transport,Department for Transport,24/07/2013,Cap Grt Loc Auth,Local,KINGSTON UPON HULL CITY COUNCIL,2000008691,449750,Highway Maintenance Block - 2013/14 Quarter 2,HU1 2AB,,
Department for Transport,Department for Transport,24/07/2013,Cap Grt Loc Auth,Local,KNOWSLEY MBC,2000008754,412000,Highway Maintenance Block - 2013/14 Quarter 2,L32 1TX,,
Department for Transport,Department for Transport,24/07/2013,Cap Grt Loc Auth,Local,LANCASHIRE COUNTY COUNCIL,2000008756,5024000,Highway Maintenance Block - 2013/14 Quarter 2,PR1 0LD,,
Department for Transport,Department for Transport,24/07/2013,Cap Grt Loc Auth,Local,LEICESTER CITY COUNCIL,2000008757,550000,Highway Maintenance Block - 2013/14 Quarter 2,LE1 6ZG,,
Department for Transport,Department for Transport,24/07/2013,Cap Grt Loc Auth,Local,LEICESTERSHIRE COUNTY COUNCIL,2000008790,2814750,Highway Maintenance Block - 2013/14 Quarter 2,LE3 8RB,,
Department for Transport,Department for Transport,24/07/2013,Cap Grt Loc Auth,Local,LINCOLNSHIRE COUNTY COUNCIL,2000008758,5832500,Highway Maintenance Block - 2013/14 Quarter 2,LN1 1YT,,
Department for Transport,Department for Transport,24/07/2013,Cap Grt Loc Auth,Local,LIVERPOOL CITY COUNCIL,2000008692,817750,Highway Maintenance Block - 2013/14 Quarter 2,L2 2DH,,
Department for Transport,Department for Transport,24/07/2013,Cap Grt Loc Auth,Local,LUTON BOROUGH COUNCIL,2000008759,252500,Highway Maintenance Block - 2013/14 Quarter 2,LU1 2BQ,,
Department for Transport,Department for Transport,24/07/2013,Cap Grt Loc Auth,Local,MEDWAY COUNCIL,2000008799,538250,Highway Maintenance Block - 2013/14 Quarter 2,ME4 4TR,,
Department for Transport,Department for Transport,24/07/2013,Cap Grt Loc Auth,Local,MIDDLESBROUGH BC,2000008713,406000,Highway Maintenance Block - 2013/14 Quarter 2,TS1 2QQ,,
Department for Transport,Department for Transport,24/07/2013,Cap Grt Loc Auth,Local,MILTON KEYNES BC,2000008760,1240250,Highway Maintenance Block - 2013/14 Quarter 2,MK9 3EE,,
Department for Transport,Department for Transport,24/07/2013,Cap Grt Loc Auth,Local,NEWCASTLE CITY COUNCIL,2000008693,573000,Highway Maintenance Block - 2013/14 Quarter 2,NE99 1RD,,
Department for Transport,Department for Transport,24/07/2013,Cap Grt Loc Auth,Local,NORFOLK COUNTY COUNCIL,2000008769,5132250,Highway Maintenance Block - 2013/14 Quarter 2,NR1 2UG,,
Department for Transport,Department for Transport,24/07/2013,Cap Grt Loc Auth,Local,NORTH EAST LINCOLN DC,2000008694,408500,Highway Maintenance Block - 2013/14 Quarter 2,DN35 8LN,,
Department for Transport,Department for Transport,24/07/2013,Cap Grt Loc Auth,Local,NORTH LINCOLNSHIRE DC,2000008791,871000,Highway Maintenance Block - 2013/14 Quarter 2,DN16 1AB,,
Department for Transport,Department for Transport,24/07/2013,Cap Grt Loc Auth,Local,NORTH SOMERSET COUNCIL,2000008761,849750,Highway Maintenance Block - 2013/14 Quarter 2,BS23 1UJ,,
Department for Transport,Department for Transport,24/07/2013,Cap Grt Loc Auth,Local,NORTH TYNESIDE COUNCIL,2000008762,450250,Highway Maintenance Block - 2013/14 Quarter 2,NE27 0BY,,
Department for Transport,Department for Transport,24/07/2013,Cap Grt Loc Auth,Local,NORTH YORKSHIRE CC,2000008695,5459750,Highway Maintenance Block - 2013/14 Quarter 2,DL7 8AL,,
Department for Transport,Department for Transport,24/07/2013,Cap Grt Loc Auth,Local,NORTHAMPTONSHIRE CC,2000008763,3400750,Highway Maintenance Block - 2013/14 Quarter 2,NN4 7DB,,
Department for Transport,Department for Transport,24/07/2013,Cap Grt Loc Auth,Local,NORTHUMBERLAND CC,2000008696,3523000,Highway Maintenance Block - 2013/14 Quarter 2,NE61 2EF,,
Department for Transport,Department for Transport,24/07/2013,Cap Grt Loc Auth,Local,NOTTINGHAM CITY COUNCIL,2000008707,476500,Highway Maintenance Block - 2013/14 Quarter 2,NG1 5NT,,
Department for Transport,Department for Transport,24/07/2013,Cap Grt Loc Auth,Local,NOTTINGHAMSHIRE CC,2000008697,2796500,Highway Maintenance Block - 2013/14 Quarter 2,NG2 7LA,,
Department for Transport,Department for Transport,24/07/2013,Cap Grt Loc Auth,Local,OXFORDSHIRE CC,2000008764,3205500,Highway Maintenance Block - 2013/14 Quarter 2,OX1 1TH,,
Department for Transport,Department for Transport,24/07/2013,Cap Grt Loc Auth,Local,PETERBOROUGH CITY COUNCIL,2000008765,735000,Highway Maintenance Block - 2013/14 Quarter 2,PE1 1FF,,
Department for Transport,Department for Transport,24/07/2013,Cap Grt Loc Auth,Local,PLYMOUTH CITY COUNCIL,2000008766,528750,Highway Maintenance Block - 2013/14 Quarter 2,PL1 2AA,,
Department for Transport,Department for Transport,24/07/2013,Cap Grt Loc Auth,Local,POOLE BC,2000008767,384000,Highway Maintenance Block - 2013/14 Quarter 2,BH15 2RZ,,
Department for Transport,Department for Transport,24/07/2013,Cap Grt Loc Auth,Local,PORTSMOUTH CITY COUNCIL,2000008792,277000,Highway Maintenance Block - 2013/14 Quarter 2,PO1 2BG,,
Department for Transport,Department for Transport,24/07/2013,Cap Grt Loc Auth,Local,READING BC,2000008768,605250,Highway Maintenance Block - 2013/14 Quarter 2,RG1 7TD,,
Department for Transport,Department for Transport,24/07/2013,Cap Grt Loc Auth,Local,REDCAR & CLEVELAND BC,2000008793,391250,Highway Maintenance Block - 2013/14 Quarter 2,TS6 9AR,,
Department for Transport,Department for Transport,24/07/2013,Cap Grt Loc Auth,Local,RUTLAND COUNTY COUNCIL,2000008770,368250,Highway Maintenance Block - 2013/14 Quarter 2,LE15 6HP,,
Department for Transport,Department for Transport,24/07/2013,Cap Grt Loc Auth,Local,SEFTON MBC,2000008771,588750,Highway Maintenance Block - 2013/14 Quarter 2,PR8 1DA,,
Department for Transport,Department for Transport,24/07/2013,Cap Grt Loc Auth,Local,SHROPSHIRE COUNTY COUNCIL,2000008699,3178000,Highway Maintenance Block - 2013/14 Quarter 2,SY2 6ND,,
Department for Transport,Department for Transport,24/07/2013,Cap Grt Loc Auth,Local,SLOUGH BC,2000008772,212000,Highway Maintenance Block - 2013/14 Quarter 2,SL1 3UF,,
Department for Transport,Department for Transport,24/07/2013,Cap Grt Loc Auth,Local,SOMERSET COUNTY COUNCIL,2000008773,4544250,Highway Maintenance Block - 2013/14 Quarter 2,TA1 4DY,,
Department for Transport,Department for Transport,24/07/2013,Cap Grt Loc Auth,Local,SOUTH GLOUCESTERSHIRE COUNCIL,2000008774,1081250,Highway Maintenance Block - 2013/14 Quarter 2,BS15 9DW,,
Department for Transport,Department for Transport,24/07/2013,Cap Grt Loc Auth,Local,SOUTH TYNESIDE MBC,2000008794,309000,Highway Maintenance Block - 2013/14 Quarter 2,NE33 4JP,,
Department for Transport,Department for Transport,24/07/2013,Cap Grt Loc Auth,Local,SOUTH YORKSHIRE PASSENGER TRANS AUT,2000008700,2477500,Highway Maintenance Block - 2013/14 Quarter 2,S10 2HG,,
Department for Transport,Department for Transport,24/07/2013,Cap Grt Loc Auth,Local,SOUTHAMPTON CITY COUNCIL,2000008800,425250,Highway Maintenance Block - 2013/14 Quarter 2,SO14 7LF,,
Department for Transport,Department for Transport,24/07/2013,Cap Grt Loc Auth,Local,SOUTHEND-ON-SEA BC,2000008701,379500,Highway Maintenance Block - 2013/14 Quarter 2,SS2 6AN,,
Department for Transport,Department for Transport,24/07/2013,Cap Grt Loc Auth,Local,ST HELENS MBC,2000008775,466000,Highway Maintenance Block - 2013/14 Quarter 2,WA10 1UQ,,
Department for Transport,Department for Transport,24/07/2013,Cap Grt Loc Auth,Local,STAFFORDSHIRE COUNTY COUNCIL,2000008698,4065500,Highway Maintenance Block - 2013/14 Quarter 2,ST16 2NF,,
Department for Transport,Department for Transport,24/07/2013,Cap Grt Loc Auth,Local,STOCKTON ON TEES BC,2000008776,506750,Highway Maintenance Block - 2013/14 Quarter 2,TS23 2YS,,
Department for Transport,Department for Transport,24/07/2013,Cap Grt Loc Auth,Local,STOKE ON TRENT CITY COUNCIL,2000008702,462000,Highway Maintenance Block - 2013/14 Quarter 2,ST4 1RF,,
Department for Transport,Department for Transport,24/07/2013,Cap Grt Loc Auth,Local,SUFFOLK COUNTY COUNCIL,2000008802,4266500,Highway Maintenance Block - 2013/14 Quarter 2,IP1 2DH,,
Department for Transport,Department for Transport,24/07/2013,Cap Grt Loc Auth,Local,SUNDERLAND CITY COUNCIL,2000008777,719250,Highway Maintenance Block - 2013/14 Quarter 2,SR2 7DN,,
Department for Transport,Department for Transport,24/07/2013,Cap Grt Loc Auth,Local,SURREY COUNTY COUNCIL,2000008778,3601500,Highway Maintenance Block - 2013/14 Quarter 2,KT1 2DN,,
Department for Transport,Department for Transport,24/07/2013,Cap Grt Loc Auth,Local,SWINDON BC,2000008779,637250,Highway Maintenance Block - 2013/14 Quarter 2,SN1 2JH,,
Department for Transport,Department for Transport,24/07/2013,Cap Grt Loc Auth,Local,TELFORD & WREKIN DC,2000008795,665250,Highway Maintenance Block - 2013/14 Quarter 2,TF3 4LF,,
Department for Transport,Department for Transport,24/07/2013,Cap Grt Loc Auth,Local,THURROCK DC,2000008780,427750,Highway Maintenance Block - 2013/14 Quarter 2,RM17 6LT,,
Department for Transport,Department for Transport,24/07/2013,Cap Grt Loc Auth,Local,TORBAY BC,2000008781,290250,Highway Maintenance Block - 2013/14 Quarter 2,TQ1 3DS,,
Department for Transport,Department for Transport,24/07/2013,Cap Grt Loc Auth,Local,W YORKS PTA,2000008703,6377750,Highway Maintenance Block - 2013/14 Quarter 2,LS1 1QS,,
Department for Transport,Department for Transport,24/07/2013,Cap Grt Loc Auth,Local,WARRINGTON BC,2000008782,818000,Highway Maintenance Block - 2013/14 Quarter 2,WA1 1BN,,
Department for Transport,Department for Transport,24/07/2013,Cap Grt Loc Auth,Local,WARWICKSHIRE CC,2000008796,2525500,Highway Maintenance Block - 2013/14 Quarter 2,CV34 4SX,,
Department for Transport,Department for Transport,24/07/2013,Cap Grt Loc Auth,Local,WEST BERKSHIRE DC,2000008783,829750,Highway Maintenance Block - 2013/14 Quarter 2,RG14 2AF,,
Department for Transport,Department for Transport,24/07/2013,Cap Grt Loc Auth,Local,WEST SUSSEX CC,2000008784,2652500,Highway Maintenance Block - 2013/14 Quarter 2,PO19 1RG,,
Department for Transport,Department for Transport,24/07/2013,Cap Grt Loc Auth,Local,WILTSHIRE COUNTY COUNCIL,2000008785,3255000,Highway Maintenance Block - 2013/14 Quarter 2,BA14 8JJ,,
Department for Transport,Department for Transport,24/07/2013,Cap Grt Loc Auth,Local,WINDSOR & MAIDENHEAD,2000008786,464500,Highway Maintenance Block - 2013/14 Quarter 2,SL6 1RF,,
Department for Transport,Department for Transport,24/07/2013,Cap Grt Loc Auth,Local,WIRRAL COUNCIL,2000008724,716000,Highway Maintenance Block - 2013/14 Quarter 2,CH4 1BU,,
Department for Transport,Department for Transport,24/07/2013,Cap Grt Loc Auth,Local,WOKINGHAM DC,2000008787,616000,Highway Maintenance Block - 2013/14 Quarter 2,RG40 1JW,,
Department for Transport,Department for Transport,24/07/2013,Cap Grt Loc Auth,Local,WORCESTERSHIRE COUNTY COUNCIL,2000008797,2930500,Highway Maintenance Block - 2013/14 Quarter 2,WR5 2NP,,
Department for Transport,Department for Transport,24/07/2013,Cap Grt Loc Auth,Local,BATH & NE SOMERSET DC,2000008717,306250,IT Block - second quarterly payment - 2013/14,BA1 5AW,,
Department for Transport,Department for Transport,24/07/2013,Cap Grt Loc Auth,Local,BEDFORD BC,2000008688,251500,IT Block - second quarterly payment - 2013/14,MK40 1SJ,,
Department for Transport,Department for Transport,24/07/2013,Cap Grt Loc Auth,Local,BLACKBURN WITH DARWEN BC,2000008788,245500,IT Block - second quarterly payment - 2013/14,BB1 7DY,,
Department for Transport,Department for Transport,24/07/2013,Cap Grt Loc Auth,Local,BLACKPOOL COUNCIL,2000008731,342750,IT Block - second quarterly payment - 2013/14,FY3 7HW,,
Department for Transport,Department for Transport,24/07/2013,Cap Grt Loc Auth,Local,BOURNEMOUTH BC,2000008719,383750,IT Block - second quarterly payment - 2013/14,BH2 6DY,,
Department for Transport,Department for Transport,24/07/2013,Cap Grt Loc Auth,Local,BRACKNELL FOREST BC,2000008672,140250,IT Block - second quarterly payment - 2013/14,RG12 1AQ,,
Department for Transport,Department for Transport,24/07/2013,Cap Grt Loc Auth,Local,BRIGHTON & HOVE COUNCIL,2000008721,767250,IT Block - second quarterly payment - 2013/14,BN3 2SR,,
Department for Transport,Department for Transport,24/07/2013,Cap Grt Loc Auth,Local,BRISTOL CITY COUNCIL,2000008723,881750,IT Block - second quarterly payment - 2013/14,BS99 7BL,,
Department for Transport,Department for Transport,24/07/2013,Cap Grt Loc Auth,Local,BUCKINGHAMSHIRE CC (REVENUE),2000008725,715500,IT Block - second quarterly payment - 2013/14,HP20 1UD,,
Department for Transport,Department for Transport,24/07/2013,Cap Grt Loc Auth,Local,CAMBRIDGESHIRE COUNTY COUNCIL,2000008727,1014750,IT Block - second quarterly payment - 2013/14,CB3 0AP,,
Department for Transport,Department for Transport,24/07/2013,Cap Grt Loc Auth,Local,CENTRAL BEDFORDSHIRE COUNCIL,2000008718,334500,IT Block - second quarterly payment - 2013/14,MK42 9BD,,
Department for Transport,Department for Transport,24/07/2013,Cap Grt Loc Auth,Local,CENTRO,2000008711,6648000,IT Block - second quarterly payment - 2013/14,B19 3SD,,
Department for Transport,Department for Transport,24/07/2013,Cap Grt Loc Auth,Local,CHESHIRE EAST BOROUGH COUNCIL,2000008714,570250,IT Block - second quarterly payment - 2013/14,CW11 1HZ,,
Department for Transport,Department for Transport,24/07/2013,Cap Grt Loc Auth,Local,CHESHIRE WEST &,2000008716,578500,IT Block - second quarterly payment - 2013/14,CH1 9PS,,
Department for Transport,Department for Transport,24/07/2013,Cap Grt Loc Auth,Local,CITY OF YORK COUNCIL,2000008729,413000,IT Block - second quarterly payment - 2013/14,Y01 7WH,,
Department for Transport,Department for Transport,24/07/2013,Cap Grt Loc Auth,Local,CORNWALL COUNTY COUNCIL,2000008798,1261500,IT Block - second quarterly payment - 2013/14,TR1 38D,,
Department for Transport,Department for Transport,24/07/2013,Cap Grt Loc Auth,Local,CUMBRIA COUNTY COUNCIL,2000008730,760250,IT Block - second quarterly payment - 2013/14,CA3 8NA,,
Department for Transport,Department for Transport,24/07/2013,Cap Grt Loc Auth,Local,DARLINGTON BC,2000008732,182250,IT Block - second quarterly payment - 2013/14,TS19 1JA,,
Department for Transport,Department for Transport,24/07/2013,Cap Grt Loc Auth,Local,DERBY CITY COUNCIL,2000008733,508500,IT Block - second quarterly payment - 2013/14,DE1 2YL,,
Department for Transport,Department for Transport,24/07/2013,Cap Grt Loc Auth,Local,DERBYSHIRE COUNTY COUNCIL,2000008735,1206000,IT Block - second quarterly payment - 2013/14,DE4 3AH,,
Department for Transport,Department for Transport,24/07/2013,Cap Grt Loc Auth,Local,DEVON COUNTY COUNCIL,2000008736,1095000,IT Block - second quarterly payment - 2013/14,EX2 4QJ,,
Department for Transport,Department for Transport,24/07/2013,Cap Grt Loc Auth,Local,DORSET COUNTY COUNCIL,2000008738,602750,IT Block - second quarterly payment - 2013/14,DT1 1XJ,,
Department for Transport,Department for Transport,24/07/2013,Cap Grt Loc Auth,Local,DURHAM COUNTY COUNCIL,2000008740,795750,IT Block - second quarterly payment - 2013/14,DH1 5UE,,
Department for Transport,Department for Transport,24/07/2013,Cap Grt Loc Auth,Local,EAST RIDING OF YORKSHIRE COUNCIL,2000008689,478500,IT Block - second quarterly payment - 2013/14,HU17 9BA,,
Department for Transport,Department for Transport,24/07/2013,Cap Grt Loc Auth,Local,EAST SUSSEX COUNTY COUNCIL,2000008801,866000,IT Block - second quarterly payment - 2013/14,BN7 1UE,,
Department for Transport,Department for Transport,24/07/2013,Cap Grt Loc Auth,Local,ESSEX COUNTY COUNCIL,2000008742,1409708.89,IT Block - second quarterly payment - 2013/14,CM1 1LX,,
Department for Transport,Department for Transport,24/07/2013,Cap Grt Loc Auth,Local,GLOUCESTERSHIRE COUNTY COUNCIL,2000008715,910500,IT Block - second quarterly payment - 2013/14,GL1 2TJ,,
Department for Transport,Department for Transport,24/07/2013,Cap Grt Loc Auth,Local,GREATER MANCHESTER,2000008722,5248250,IT Block - second quarterly payment - 2013/14,M60 2JR,,
Department for Transport,Department for Transport,24/07/2013,Cap Grt Loc Auth,Local,HALTON BC,2000008743,181250,IT Block - second quarterly payment - 2013/14,WA8 6NB,,
Department for Transport,Department for Transport,24/07/2013,Cap Grt Loc Auth,Local,HAMPSHIRE COUNTY COUNCIL,2000008745,1746000,IT Block - second quarterly payment - 2013/14,SO23 8UB,,
Department for Transport,Department for Transport,24/07/2013,Cap Grt Loc Auth,Local,HARTLEPOOL BOROUGH COUNCIL,2000008747,140250,IT Block - second quarterly payment - 2013/14,TS24 7BT,,
Department for Transport,Department for Transport,24/07/2013,Cap Grt Loc Auth,Local,HEREFORDSHIRE COUNCIL,2000008690,253250,IT Block - second quarterly payment - 2013/14,HR4 0XH,,
Department for Transport,Department for Transport,24/07/2013,Cap Grt Loc Auth,Local,HERTFORDSHIRE CC,2000008749,1555250,IT Block - second quarterly payment - 2013/14,SG13 8TN,,
Department for Transport,Department for Transport,24/07/2013,Cap Grt Loc Auth,Local,ISLE OF WIGHT COUNCIL,2000008751,204400,IT Block - second quarterly payment - 2013/14,PO30 1UD,,
Department for Transport,Department for Transport,24/07/2013,Cap Grt Loc Auth,Local,KENT COUNTY COUNCIL,2000008753,2186500,IT Block - second quarterly payment - 2013/14,ME14 1XQ,,
Department for Transport,Department for Transport,24/07/2013,Cap Grt Loc Auth,Local,KINGSTON UPON HULL CITY COUNCIL,2000008691,607250,IT Block - second quarterly payment - 2013/14,HU1 2AB,,
Department for Transport,Department for Transport,24/07/2013,Cap Grt Loc Auth,Local,LANCASHIRE COUNTY COUNCIL,2000008756,2187500,IT Block - second quarterly payment - 2013/14,PR1 0LD,,
Department for Transport,Department for Transport,24/07/2013,Cap Grt Loc Auth,Local,LEICESTER CITY COUNCIL,2000008757,759250,IT Block - second quarterly payment - 2013/14,LE1 6ZG,,
Department for Transport,Department for Transport,24/07/2013,Cap Grt Loc Auth,Local,LEICESTERSHIRE COUNTY COUNCIL,2000008790,876750,IT Block - second quarterly payment - 2013/14,LE3 8RB,,
Department for Transport,Department for Transport,24/07/2013,Cap Grt Loc Auth,Local,LINCOLNSHIRE COUNTY COUNCIL,2000008758,1034000,IT Block - second quarterly payment - 2013/14,LN1 1YT,,
Department for Transport,Department for Transport,24/07/2013,Cap Grt Loc Auth,Local,LUTON BOROUGH COUNCIL,2000008759,336000,IT Block - second quarterly payment - 2013/14,LU1 2BQ,,
Department for Transport,Department for Transport,24/07/2013,Cap Grt Loc Auth,Local,MEDWAY COUNCIL,2000008799,394000,IT Block - second quarterly payment - 2013/14,ME4 4TR,,
Department for Transport,Department for Transport,24/07/2013,Cap Grt Loc Auth,Local,MERSEYSIDE PTA,2000008706,3063750,IT Block - second quarterly payment - 2013/14,L3 2AN,,
Department for Transport,Department for Transport,24/07/2013,Cap Grt Loc Auth,Local,MIDDLESBROUGH BC,2000008713,256500,IT Block - second quarterly payment - 2013/14,TS1 2QQ,,
Department for Transport,Department for Transport,24/07/2013,Cap Grt Loc Auth,Local,MILTON KEYNES BC,2000008760,395500,IT Block - second quarterly payment - 2013/14,MK9 3EE,,
Department for Transport,Department for Transport,24/07/2013,Cap Grt Loc Auth,Local,NEWCASTLE CITY COUNCIL,2000008693,3098000,IT Block - second quarterly payment - 2013/14,NE99 1RD,,
Department for Transport,Department for Transport,24/07/2013,Cap Grt Loc Auth,Local,NORFOLK COUNTY COUNCIL,2000008769,1331000,IT Block - second quarterly payment - 2013/14,NR1 2UG,,
Department for Transport,Department for Transport,24/07/2013,Cap Grt Loc Auth,Local,NORTH EAST LINCOLN DC,2000008694,300250,IT Block - second quarterly payment - 2013/14,DN35 8LN,,
Department for Transport,Department for Transport,24/07/2013,Cap Grt Loc Auth,Local,NORTH LINCOLNSHIRE DC,2000008791,264750,IT Block - second quarterly payment - 2013/14,DN16 1AB,,
Department for Transport,Department for Transport,24/07/2013,Cap Grt Loc Auth,Local,NORTH SOMERSET COUNCIL,2000008761,254500,IT Block - second quarterly payment - 2013/14,BS23 1UJ,,
Department for Transport,Department for Transport,24/07/2013,Cap Grt Loc Auth,Local,NORTH YORKSHIRE CC,2000008695,1022750,IT Block - second quarterly payment - 2013/14,DL7 8AL,,
Department for Transport,Department for Transport,24/07/2013,Cap Grt Loc Auth,Local,NORTHAMPTONSHIRE CC,2000008763,1007500,IT Block - second quarterly payment - 2013/14,NN4 7DB,,
Department for Transport,Department for Transport,24/07/2013,Cap Grt Loc Auth,Local,NORTHUMBERLAND CC,2000008696,483500,IT Block - second quarterly payment - 2013/14,NE61 2EF,,
Department for Transport,Department for Transport,24/07/2013,Cap Grt Loc Auth,Local,NOTTINGHAM CITY COUNCIL,2000008707,1023250,IT Block - second quarterly payment - 2013/14,NG1 5NT,,
Department for Transport,Department for Transport,24/07/2013,Cap Grt Loc Auth,Local,NOTTINGHAMSHIRE CC,2000008697,1316750,IT Block - second quarterly payment - 2013/14,NG2 7LA,,
Department for Transport,Department for Transport,24/07/2013,Cap Grt Loc Auth,Local,OXFORDSHIRE CC,2000008764,1113750,IT Block - second quarterly payment - 2013/14,OX1 1TH,,
Department for Transport,Department for Transport,24/07/2013,Cap Grt Loc Auth,Local,PETERBOROUGH CITY COUNCIL,2000008765,375000,IT Block - second quarterly payment - 2013/14,PE1 1FF,,
Department for Transport,Department for Transport,24/07/2013,Cap Grt Loc Auth,Local,PLYMOUTH CITY COUNCIL,2000008766,510000,IT Block - second quarterly payment - 2013/14,PL1 2AA,,
Department for Transport,Department for Transport,24/07/2013,Cap Grt Loc Auth,Local,POOLE BC,2000008767,240500,IT Block - second quarterly payment - 2013/14,BH15 2RZ,,
Department for Transport,Department for Transport,24/07/2013,Cap Grt Loc Auth,Local,PORTSMOUTH CITY COUNCIL,2000008792,395750,IT Block - second quarterly payment - 2013/14,PO1 2BG,,
Department for Transport,Department for Transport,24/07/2013,Cap Grt Loc Auth,Local,READING BC,2000008768,372250,IT Block - second quarterly payment - 2013/14,RG1 7TD,,
Department for Transport,Department for Transport,24/07/2013,Cap Grt Loc Auth,Local,REDCAR & CLEVELAND BC,2000008793,200250,IT Block - second quarterly payment - 2013/14,TS6 9AR,,
Department for Transport,Department for Transport,24/07/2013,Cap Grt Loc Auth,Local,RUTLAND COUNTY COUNCIL,2000008770,52500,IT Block - second quarterly payment - 2013/14,LE15 6HP,,
Department for Transport,Department for Transport,24/07/2013,Cap Grt Loc Auth,Local,SHROPSHIRE COUNTY COUNCIL,2000008699,424000,IT Block - second quarterly payment - 2013/14,SY2 6ND,,
Department for Transport,Department for Transport,24/07/2013,Cap Grt Loc Auth,Local,SLOUGH BC,2000008772,213500,IT Block - second quarterly payment - 2013/14,SL1 3UF,,
Department for Transport,Department for Transport,24/07/2013,Cap Grt Loc Auth,Local,SOMERSET COUNTY COUNCIL,2000008773,716250,IT Block - second quarterly payment - 2013/14,TA1 4DY,,
Department for Transport,Department for Transport,24/07/2013,Cap Grt Loc Auth,Local,SOUTH GLOUCESTERSHIRE COUNCIL,2000008774,366500,IT Block - second quarterly payment - 2013/14,BS15 9DW,,
Department for Transport,Department for Transport,24/07/2013,Cap Grt Loc Auth,Local,SOUTH YORKSHIRE PASSENGER TRANS AUT,2000008700,3000500,IT Block - second quarterly payment - 2013/14,S10 2HG,,
Department for Transport,Department for Transport,24/07/2013,Cap Grt Loc Auth,Local,SOUTHAMPTON CITY COUNCIL,2000008800,506750,IT Block - second quarterly payment - 2013/14,SO14 7LF,,
Department for Transport,Department for Transport,24/07/2013,Cap Grt Loc Auth,Local,SOUTHEND-ON-SEA BC,2000008701,284500,IT Block - second quarterly payment - 2013/14,SS2 6AN,,
Department for Transport,Department for Transport,24/07/2013,Cap Grt Loc Auth,Local,STAFFORDSHIRE COUNTY COUNCIL,2000008698,1098250,IT Block - second quarterly payment - 2013/14,ST16 2NF,,
Department for Transport,Department for Transport,24/07/2013,Cap Grt Loc Auth,Local,STOCKTON ON TEES BC,2000008776,311500,IT Block - second quarterly payment - 2013/14,TS23 2YS,,
Department for Transport,Department for Transport,24/07/2013,Cap Grt Loc Auth,Local,STOKE ON TRENT CITY COUNCIL,2000008702,447750,IT Block - second quarterly payment - 2013/14,ST4 1RF,,
Department for Transport,Department for Transport,24/07/2013,Cap Grt Loc Auth,Local,SUFFOLK COUNTY COUNCIL,2000008802,1030500,IT Block - second quarterly payment - 2013/14,IP1 2DH,,
Department for Transport,Department for Transport,24/07/2013,Cap Grt Loc Auth,Local,SURREY COUNTY COUNCIL,2000008778,1673000,IT Block - second quarterly payment - 2013/14,KT1 2DN,,
Department for Transport,Department for Transport,24/07/2013,Cap Grt Loc Auth,Local,SWINDON BC,2000008779,350250,IT Block - second quarterly payment - 2013/14,SN1 2JH,,
Department for Transport,Department for Transport,24/07/2013,Cap Grt Loc Auth,Local,TELFORD & WREKIN DC,2000008795,234750,IT Block - second quarterly payment - 2013/14,TF3 4LF,,
Department for Transport,Department for Transport,24/07/2013,Cap Grt Loc Auth,Local,THURROCK DC,2000008780,219500,IT Block - second quarterly payment - 2013/14,RM17 6LT,,
Department for Transport,Department for Transport,24/07/2013,Cap Grt Loc Auth,Local,TORBAY BC,2000008781,242750,IT Block - second quarterly payment - 2013/14,TQ1 3DS,,
Department for Transport,Department for Transport,24/07/2013,Cap Grt Loc Auth,Local,W YORKS PTA,2000008703,4829500,IT Block - second quarterly payment - 2013/14,LS1 1QS,,
Department for Transport,Department for Transport,24/07/2013,Cap Grt Loc Auth,Local,WARRINGTON BC,2000008782,371750,IT Block - second quarterly payment - 2013/14,WA1 1BN,,
Department for Transport,Department for Transport,24/07/2013,Cap Grt Loc Auth,Local,WARWICKSHIRE CC,2000008796,842500,IT Block - second quarterly payment - 2013/14,CV34 4SX,,
Department for Transport,Department for Transport,24/07/2013,Cap Grt Loc Auth,Local,WEST BERKSHIRE DC,2000008783,196000,IT Block - second quarterly payment - 2013/14,RG14 2AF,,
Department for Transport,Department for Transport,24/07/2013,Cap Grt Loc Auth,Local,WEST SUSSEX CC,2000008784,1144500,IT Block - second quarterly payment - 2013/14,PO19 1RG,,
Department for Transport,Department for Transport,24/07/2013,Cap Grt Loc Auth,Local,WILTSHIRE COUNTY COUNCIL,2000008785,667000,IT Block - second quarterly payment - 2013/14,BA14 8JJ,,
Department for Transport,Department for Transport,24/07/2013,Cap Grt Loc Auth,Local,WINDSOR & MAIDENHEAD,2000008786,174250,IT Block - second quarterly payment - 2013/14,SL6 1RF,,
Department for Transport,Department for Transport,24/07/2013,Cap Grt Loc Auth,Local,WOKINGHAM DC,2000008787,219250,IT Block - second quarterly payment - 2013/14,RG40 1JW,,
Department for Transport,Department for Transport,24/07/2013,Cap Grt Loc Auth,Local,WORCESTERSHIRE COUNTY COUNCIL,2000008797,769500,IT Block - second quarterly payment - 2013/14,WR5 2NP,,
Department for Transport,Department for Transport,24/07/2013,Conferences / Semina,Greener Transport & International,SMMT,2000008750,582.5,#,SW1P 2BN,,
Department for Transport,Department for Transport,24/07/2013,Electricity,Rail Accident Investigation Branch,BRITISH GAS,2000008673,825.26,#,OX4 2JY,,
Department for Transport,Department for Transport,24/07/2013,Financial Consultanc,Local,CLARKE WILLMOTT LLP,2000008720,132,#,TA1 2PG,,
Department for Transport,Department for Transport,24/07/2013,IT Ser Running Costs,Roads,TRAFFICMASTER PLC,2000008685,33960,#,MK43 0TR,,
Department for Transport,Department for Transport,24/07/2013,IT Ser Running Costs,Greener Transport & International,NETFUNDI LTD,2000008680,2070,#,LA1 1SQ,,
Department for Transport,Department for Transport,24/07/2013,Legal Consultancy,Rail,BURGES SALMON,2000008674,4353.24,#,BS1 4AH,,
Department for Transport,Department for Transport,24/07/2013,Legal Consultancy,DASH,JACQUELINE LEAN,2000008739,4007.64,#,EC4A 2HG,,
Department for Transport,Department for Transport,24/07/2013,Legal Consultancy,DASH,#,2000008734,2761.32,#,#,,
Department for Transport,Department for Transport,24/07/2013,Legal Consultancy,DASH,#,2000008737,3038.52,#,#,,
Department for Transport,Department for Transport,24/07/2013,Legal Consultancy,DASH,#,2000008684,9842.52,#,#,,
Department for Transport,Department for Transport,24/07/2013,Legal Consultancy,DASH,WINCKWORTH SHERWOOD,2000008687,154483.68,#,SE1 9BB,,
Department for Transport,Department for Transport,24/07/2013,Machinery Rental,Business Transformation,DANWOOD GROUP LTD,2000008675,696.38,#,LN6 3DG,,
Department for Transport,Department for Transport,24/07/2013,Machinery Rental,Business Transformation,DANWOOD GROUP LTD,2000008675,568.14,#,LN6 3DG,,
Department for Transport,Department for Transport,24/07/2013,Minor Developments,Permanent Secretary,ALFRESCO SOFTWARE LTD,2000008726,37200,#,SL6 1AF,,
Department for Transport,Department for Transport,24/07/2013,Other Professional F,Group Finance,Arvato Ltd,2000008755,224955,#,HU10 6FE,,
Department for Transport,Department for Transport,24/07/2013,Services prov by OGD,Transport Security Strategy,DEFENCE BUSINESS SERVICES,2000008728,3415.42,#,YO10 4AS,,
Department for Transport,Department for Transport,24/07/2013,Storage & Distributi,Roads,NEAL DISPLAY LTD,2000008679,3784.68,#,SG13 7BJ,,
Department for Transport,Department for Transport,24/07/2013,Storage & Distributi,Roads,NEAL DISPLAY LTD,2000008679,534.6,#,SG13 7BJ,,
Department for Transport,Department for Transport,24/07/2013,Support Services,Local,CLARKE WILLMOTT LLP,2000008720,395,#,TA1 2PG,,
Department for Transport,Department for Transport,24/07/2013,Support Services,Aviation,MET OFFICE,2000008678,237566.7,#,EX1 3PB,,
Department for Transport,Department for Transport,24/07/2013,Support Services,Aviation,NORWICH AIRPORT LTD,2000008681,29988,#,NR6 6JA,,
Department for Transport,Department for Transport,24/07/2013,Telephone charges,Business Transformation,SIEMENS ENTERPRISE COMMUNICATIONS L,2000008683,158282.7,SUPPORT CHARGE - JULY TO SEPT 13,MK15 ODJ,,
Department for Transport,Department for Transport,24/07/2013,Training,Rail Accident Investigation Branch,WYVERN RAIL PLC,2000008710,550,#,DE4 4FB,,
Department for Transport,Department for Transport,24/07/2013,Training,Group Finance,EAST OF ENGLAND AMBULANCE SERVICE,2000008705,480,#,NR6 5NA,,
Department for Transport,Department for Transport,24/07/2013,Training,Group Finance,EAST OF ENGLAND AMBULANCE SERVICE,2000008705,480,#,NR6 5NA,,
Department for Transport,Department for Transport,24/07/2013,Transport  Consult,Rail,TRANSPORT RESEARCH LABORATORY,2000008686,18869.8,#,RG40 3GA,,
Department for Transport,Department for Transport,24/07/2013,Treasury Solicitors,Aviation Security ,TREASURY SOLICITOR,2000008670,1994.73,#,WC2B 4TS,,
Department for Transport,Department for Transport,25/07/2013,Agency Staff Costs,Rail Accident Investigation Branch,SPRING TECHNOLOGY LTD  ALSO T/A,2000008868,782.36,#,B37 7YE,,
Department for Transport,Department for Transport,25/07/2013,Agency Staff Costs,Aviation,NETWORKERS INTERNATIONAL (UK) PLC,2000008867,838.2,#,BR1 1HP,,
Department for Transport,Department for Transport,25/07/2013,Agents Fees,Managing Director Motoring Services,DRIVER & VEHICLE LICENSING AGENCY,2000008857,13763,#,SA6 7JL,,
Department for Transport,Department for Transport,25/07/2013,Cycle to Work Scheme,Group HR,CYCLESCHEME LTD,2000008856,833.33,#,BA1 1WX,,
Department for Transport,Department for Transport,25/07/2013,CurrGrtPriSec-P&NPIS,DASH,RICARDO - AEA LIMITED,2000008872,44000,NCEC Q1,OX11 0PQ,,
Department for Transport,Department for Transport,25/07/2013,Financial Consultanc,Rail and Road Projects,WILLIS LIMITED,2000008866,979.2,#,IP1  1TA,,
Department for Transport,Department for Transport,25/07/2013,Financial Consultanc,Rail and Road Projects,WILLIS LIMITED,2000008866,7046.4,#,IP1  1TA,,
Department for Transport,Department for Transport,25/07/2013,Mobile Phone charges,Group Finance,VODAFONE LTD,2000008863,3487.38,VODAFONE - CR - A/C 604232442,RG14 5FF,,
Department for Transport,Department for Transport,25/07/2013,Mobile Phone charges,Centrally held prog,VODAFONE LTD,2000008863,10796.15,VODAFONE - INE - A/C 604232362,RG14 5FF,,
Department for Transport,Department for Transport,25/07/2013,Mobile Phone charges,Group Finance,VODAFONE LTD,2000008863,8171.67,VODAFONE - CRG - A/C 604232420,RG14 5FF,,
Department for Transport,Department for Transport,25/07/2013,Recruitment,Group HR,HOGGETT BOWERS,2000008858,10000,#,EC4A 1DR,,
Department for Transport,Department for Transport,25/07/2013,Research,Roads,WSP UK LTD T/A,2000008862,21946.18,#,RG21 4HJ,,
Department for Transport,Department for Transport,25/07/2013,Research,Transport Security Strategy,QinetiQ Processing Centre,2000008860,27728,#,GU14 0LX,,
Department for Transport,Department for Transport,25/07/2013,Services prov by OGD,Group HR,COMMUNITIES AND LOCAL GOVERNMENT,2000008876,3328.79,#,HP2 4XN,,
Department for Transport,Department for Transport,25/07/2013,Support Services,Aviation,ENVIRONMENT AGENCY,2000008870,8500,#,PE2 8YD,,
Department for Transport,Department for Transport,25/07/2013,Support Services,Group Finance,DD ACCRAILWAY PENS TRUSTEE,2000008864,987.04,#,DL3 6XR,,
Department for Transport,Department for Transport,25/07/2013,Support Services,Group Finance,RAILWAYS PENSION MANAGEMENT LT,2000008865,1070000,#,DL3 6EH,,
Department for Transport,Department for Transport,25/07/2013,Team Away Days,Refran Prog Off,QE II CONFERENCE CENTRE,2000008859,2800.2,#,SW1P 3EE,,
Department for Transport,Department for Transport,25/07/2013,Training,Group HR,ASPIRE EUROPE LTD,2000008869,1464,#,BS20 7DF,,
Department for Transport,Department for Transport,25/07/2013,Training,Group HR,Ministry of Justice,2000008874,1100,#,SW1H 9AJ,,
Department for Transport,Department for Transport,25/07/2013,Translation Services,Aviation,FCO SERVICES,2000008877,1466.93,#,MK19 7BH,,
Department for Transport,Department for Transport,25/07/2013,Treasury Solicitors,Aviation Security ,TREASURY SOLICITOR,2000008875,510.35,#,WC2B 4TS,,
Department for Transport,Department for Transport,25/07/2013,Treasury Solicitors,Aviation Security ,TREASURY SOLICITOR,2000008875,2203.33,#,WC2B 4TS,,
Department for Transport,Department for Transport,25/07/2013,Treasury Solicitors,Aviation Security ,TREASURY SOLICITOR,2000008875,11895.5,#,WC2B 4TS,,
Department for Transport,Department for Transport,25/07/2013,Treasury Solicitors,Aviation Security ,TREASURY SOLICITOR,2000008875,823.71,#,WC2B 4TS,,
Department for Transport,Department for Transport,26/07/2013,Agency Staff Costs,Centrally held prog,LA INTERNATIONAL COMPUTER,2000008939,2108.88,#,ST1 5UB,,
Department for Transport,Department for Transport,26/07/2013,Agency Staff Costs,Managing Director Motoring Services,BADENOCH & CLARK,2000008934,2964,#,EC4V 4BG,,
Department for Transport,Department for Transport,26/07/2013,Agents Fees,Managing Director Motoring Services,DRIVER & VEHICLE LICENSING AGENCY,2000008936,6000,#,SA6 7JL,,
Department for Transport,Department for Transport,26/07/2013,Financial Consultanc,Rail and Road Projects,WILLIS LIMITED,100010839,8025.6,#,IP1  1TA,,
Department for Transport,Department for Transport,26/07/2013,Financial Consultanc,Rail and Road Projects,WILLIS LIMITED,100010839,-8025.6,#,IP1  1TA,,
Department for Transport,Department for Transport,26/07/2013,IT Ser Running Costs,Business Transformation,DELIB LIMITED,2000008945,636,#,BS1 4DZ,,
Department for Transport,Department for Transport,26/07/2013,Legal Consultancy,Rail and Road Projects,#,2000008946,1100,#,#,,
Department for Transport,Department for Transport,26/07/2013,Rent - L&B (non-PFI),Business Transformation,HOME OFFICE SHARED SERVICE CENTRE,2000008932,195699,"Rent at 2 Marsham Street, London",NP20 9BB,,
Department for Transport,Department for Transport,26/07/2013,Research,Greener Transport & International,HALCROW GROUP LTD,2000008937,12710.38,#,W6 7BY,,
Department for Transport,Department for Transport,26/07/2013,Services prov by OGD,Roads,VEHICLE CERTIFICATION AGENCY,2000008942,29217.97,#,BS5 6XX,,
Department for Transport,Department for Transport,26/07/2013,Storage & Distributi,General Counsel's Office,COMMUNITIES AND LOCAL GOVERNMENT,2000008930,68910.49,#,HP2 4XN,,
Department for Transport,Department for Transport,26/07/2013,Support Services,Group Finance,DD ACCRAILWAY PENS TRUSTEE,2000008943,987.04,#,DL3 6XR,,
Department for Transport,Department for Transport,26/07/2013,Traffic Survey & Cou,Roads,TNS UK LTD,2000008941,23350,#,W5 1UA,,
Department for Transport,Department for Transport,26/07/2013,Training,Roads,INST FRANCAIS,2000008938,900,#,SW7 2JR,,
Department for Transport,Department for Transport,26/07/2013,Transport  Consult,Aviation,OXERA CONSULTING LTD,2000008944,18000,#,OX1 1JD,,
Department for Transport,Department for Transport,26/07/2013,Treasury Solicitors,General Counsel's Office,TREASURY SOLICITOR,2000008929,2793.12,#,WC2B 4TS,,
Department for Transport,Department for Transport,26/07/2013,Treasury Solicitors,General Counsel's Office,TREASURY SOLICITOR,2000008929,5863.32,#,WC2B 4TS,,
Department for Transport,Department for Transport,26/07/2013,Treasury Solicitors,General Counsel's Office,TREASURY SOLICITOR,2000008929,2162.88,#,WC2B 4TS,,
Department for Transport,Department for Transport,29/07/2013,Agency Staff Costs,Business Transformation,MICHAEL PAGE INTERNATIONAL,2000009214,4199.83,#,SL1 3SA,,
Department for Transport,Department for Transport,29/07/2013,Agency Staff Costs,Group HR,HAYS PERSONNEL SERVICE LTD,2000009200,4154.1,#,KT3 4JQ,,
Department for Transport,Department for Transport,29/07/2013,Agency Staff Costs,Group Finance,MICHAEL PAGE INTERNATIONAL,2000009214,2662.2,#,SL1 3SA,,
Department for Transport,Department for Transport,29/07/2013,Agency Staff Costs,Rail Accident Investigation Branch,SPRING TECHNOLOGY LTD  ALSO T/A,2000009215,861.9,#,B37 7YE,,
Department for Transport,Department for Transport,29/07/2013,Agency Staff Costs,Refran Prog Off,MICHAEL PAGE INTERNATIONAL,2000009214,660,#,SL1 3SA,,
Department for Transport,Department for Transport,29/07/2013,Agency Staff Costs,Refran Prog Off,MICHAEL PAGE INTERNATIONAL,2000009214,3510,#,SL1 3SA,,
Department for Transport,Department for Transport,29/07/2013,Agency Staff Costs,Group Finance,MICHAEL PAGE INTERNATIONAL,2000009214,3942.84,#,SL1 3SA,,
Department for Transport,Department for Transport,29/07/2013,Agency Staff Costs,Refran Prog Off,MICHAEL PAGE INTERNATIONAL,2000009214,3333,#,SL1 3SA,,
Department for Transport,Department for Transport,29/07/2013,Building Service Cha,Business Transformation,AMEY COMMUNITY LTD,2000009227,13521.48,#,OX4 4DQ,,
Department for Transport,Department for Transport,29/07/2013,Building Service Cha,Business Transformation,AMEY COMMUNITY LTD,2000009227,13521.48,#,OX4 4DQ,,
Department for Transport,Department for Transport,29/07/2013,BUS FDR Wales,Local,Accessible Caring Transport,2000009193,4013.1,Accessible Caring Transport,CF45 3HA,,
Department for Transport,Department for Transport,29/07/2013,BUS FDR Wales,Local,ACCESSIBLE CARING TRANSPORT,2000009156,6813.26,ACCESSIBLE CARING TRANSPORT PETROL,CF45 3HA,,
Department for Transport,Department for Transport,29/07/2013,BUS FDR Wales,Local,ARRIVA CYMRU LTD,2000008999,12897.86,Arriva Cymru Ltd,L9 5AE,,
Department for Transport,Department for Transport,29/07/2013,BUS FDR Wales,Local,ARRIVA UK TRAINS LIMITED,2000009165,59906.43,Arriva UK Trains Limited,CF10 5DJ,,
Department for Transport,Department for Transport,29/07/2013,BUS FDR Wales,Local,BRIDGEND COUNTY BOROUGH COUNCIL,2000009174,5750.57,Bridgend County Borough Council,CF31 4AR,,
Department for Transport,Department for Transport,29/07/2013,BUS FDR Wales,Local,CAERPHILLY COUNTY BOROUGH COUNCIL,2000009010,7158.77,CAERPHILLY CBC,NP12 2YW,,
Department for Transport,Department for Transport,29/07/2013,BUS FDR Wales,Local,CARING COACHES,2000009153,3509.44,Caring Coaches,CF63 3RA,,
Department for Transport,Department for Transport,29/07/2013,BUS FDR Wales,Local,CARMARTHENSHIRE COUNTY COUNCIL,2000009013,58419.07,CARMARTHENSHIRE COUNTY COUNCIL,SA31 1LE,,
Department for Transport,Department for Transport,29/07/2013,BUS FDR Wales,Local,CELTIC TRAVEL,2000009182,2182.02,Celtic Travel,SY18 6EH,,
Department for Transport,Department for Transport,29/07/2013,BUS FDR Wales,Local,CERBYDAU BERWYN COACHES,2000009015,11911.61,CERBYDAU BERWYN COACHES,LL54 5LL,,
Department for Transport,Department for Transport,29/07/2013,BUS FDR Wales,Local,COACH TRAVEL WALES,2000009017,9935.96,COACH TRAVEL WALES,SY23 3AG,,
Department for Transport,Department for Transport,29/07/2013,BUS FDR Wales,Local,DANSA LTD,2000009029,70895.45,DANSA LTD,SA10 8PX,,
Department for Transport,Department for Transport,29/07/2013,BUS FDR Wales,Local,DIAL A RIDE (NORTH DENBIGHSHIRE),2000009028,3104.44,NORTH DENBIGHSHIRE DIAL-A-RIDE,LL18 2AF,,
Department for Transport,Department for Transport,29/07/2013,BUS FDR Wales,Local,EASYWAY MINIBUS HIRE LTD,2000009033,5792.56,EASYWAY MINIBUS HIRE LTD,CF35 6SU,,
Department for Transport,Department for Transport,29/07/2013,BUS FDR Wales,Local,EDWARDS BROTHERS,2000009034,1333.98,Edwards Bros,SA62 3DZ,,
Department for Transport,Department for Transport,29/07/2013,BUS FDR Wales,Local,EXPRESS MOTORS,2000009038,105271.17,Express Motors,LL54 6ND,,
Department for Transport,Department for Transport,29/07/2013,BUS FDR Wales,Local,GOODSIR COACHES,2000009050,1772.33,GOODSIR COACHES,LL65 1UD,,
Department for Transport,Department for Transport,29/07/2013,BUS FDR Wales,Local,GWENT ASSOC OF,2000009175,719.07,Gwent Association of Voluntary Organisations,NP19 7EJ,,
Department for Transport,Department for Transport,29/07/2013,BUS FDR Wales,Local,HDA LTD,2000009057,1017.04,H D A Travel Ltd,LL60 6DE,,
Department for Transport,Department for Transport,29/07/2013,BUS FDR Wales,Local,JONES & SONS,2000009068,3876.4,O R JONES & SONS LTD,LL65 4NW,,
Department for Transport,Department for Transport,29/07/2013,BUS FDR Wales,Local,LEWIS COACHES (GWYN RICHARD LEWIS),2000009150,15258.08,Lewis coaches,SY23 5DN,,
Department for Transport,Department for Transport,29/07/2013,BUS FDR Wales,Local,LLEW JONES INTERNATIONAL,2000009076,1779.76,LLEW JONES INTERNATIONAL,LL26 0EH,,
Department for Transport,Department for Transport,29/07/2013,BUS FDR Wales,Local,MENYN'S PRIVATE HIRE,2000009083,1012.38,MENYNS PRIVATE HIRE,LL26 0EH,,
Department for Transport,Department for Transport,29/07/2013,BUS FDR Wales,Local,MID WALES MOTORWAYS LTD,2000009084,2061.02,MID WALES MOTORWAYS LTD,SY23 3EH,,
Department for Transport,Department for Transport,29/07/2013,BUS FDR Wales,Local,MONMOUTHSHIRE COUNTY COUNCIL,2000009179,12025.99,Monmouthshire County Council,NP26 9AN,,
Department for Transport,Department for Transport,29/07/2013,BUS FDR Wales,Local,NEATH PORT TALBOT CBC,2000009090,13426.48,NEATH PORT TALBOT C.B.C.,SA13 1PJ,,
Department for Transport,Department for Transport,29/07/2013,BUS FDR Wales,Local,NEATH PORT TALBOT COM TRANSPORT,2000009091,16315.01,NEATH PORT TALBOT COMMUNITY TRANSPORT,SA11 1NJ,,
Department for Transport,Department for Transport,29/07/2013,BUS FDR Wales,Local,NEWPPORT CITY COUNCIL,2000009171,9916.38,Newport City Council,NP20 4UR,,
Department for Transport,Department for Transport,29/07/2013,BUS FDR Wales,Local,PEMBROKESHIRE COUNTY COUNCIL,2000009002,15026.27,PEMBROKESHIRE COUNTY COUNCIL,SA61 1TP,,
Department for Transport,Department for Transport,29/07/2013,BUS FDR Wales,Local,RICHARDS BROS,2000009105,13213.69,Richards Bros,SA43 3AG,,
Department for Transport,Department for Transport,29/07/2013,BUS FDR Wales,Local,SCOPE,2000009111,2805.44,SCOPE - SULLY SKILLS CENTRE,N7 9PW,,
Department for Transport,Department for Transport,29/07/2013,BUS FDR Wales,Local,SOCIAL SERVICES TRANSPORT UNIT,2000009114,23020.93,Social Services Transport Unit Swansea,SA1 4NR,,
Department for Transport,Department for Transport,29/07/2013,BUS FDR Wales,Local,SOUTH WALES TRANSPORT (NEATH),2000009148,1002.9,SOUTH WALES TRANSPORT(NEATH) LTD,SA11 1NJ,,
Department for Transport,Department for Transport,29/07/2013,BUS FDR Wales,Local,STAGECOACH IN SOUTH WALES,2000009118,67976.28,RED & WHITE SERVICES LTD T/A STAGECOACH IN S WALES,SK3 0DU,,
Department for Transport,Department for Transport,29/07/2013,BUS FDR Wales,Local,STRATOS TRAVEL,2000009122,23849.38,STRATOS TRAVEL,SY16 2LW,,
Department for Transport,Department for Transport,29/07/2013,BUS FDR Wales,Local,T PRICE & SON,2000009126,866.35,PRICE COACHES,LL11 6TF,,
Department for Transport,Department for Transport,29/07/2013,BUS FDR Wales,Local,TANAT VALLEY COACHES,2000009127,4095.83,R E MORRIS & SONS LTD T/A TANAT VALLEY COACHES,SY10 0AD,,
Department for Transport,Department for Transport,29/07/2013,BUS FDR Wales,Local,THOMAS OF RHONDDA LTD,2000009187,2801.58,Thomas of Rhondda Ltd,CF39 0EN,,
Department for Transport,Department for Transport,29/07/2013,BUS FDR Wales,Local,TORFAEN COMMUNITY TRANSPORT,2000009131,3554.09,TORFAEN COMMUNITY TRANSPORT,NP44 1PL,,
Department for Transport,Department for Transport,29/07/2013,BUS FDR Wales,Local,TRAVOL COMMUNITY TRANSPORT,2000009133,9210.2,TRAVOL COMMUNITY TRANSPORT,CF37 1DZ,,
Department for Transport,Department for Transport,29/07/2013,BUS FDR Wales,Local,VARTEG MOTORS LTD T/A,2000009177,21186.29,Phil Anslow Travel,NP4 7PA,,
Department for Transport,Department for Transport,29/07/2013,BUS FDR Wales,Local,YSTRADGYNLAIS COMMUNITY CAR SCH,2000009144,1455.06,YSTRADGYNLAIS,SA9 1JP,,
Department for Transport,Department for Transport,29/07/2013,Cap Grt Loc Auth,Rail and Road Projects,NEXUS,2000009213,1934000,Nexus Period 3 to 22 June 13 Capital grant,NE1 4AX,,
Department for Transport,Department for Transport,29/07/2013,Car Hire and Leasing,Motoring Services,LEX AUTOLEASE LTD,2000009201,7597.2,#,BL9 8RT,,
Department for Transport,Department for Transport,29/07/2013,Computer equipment,Air Accident Investigation Branch,UNITY AV LTD,2000009217,1268.4,UNITY MAINTENANCE CONTRACT 010713-300614,RG17 0QU,,
Department for Transport,Department for Transport,29/07/2013,CurrGrt Las in AEF/A,Local,3 C T,2000009154,909.73,3CT,CB9 9HB,,
Department for Transport,Department for Transport,29/07/2013,CurrGrt Las in AEF/A,Local,Blackpool Council,2000009192,13499.62,Blackpool Council - Children & Young People,FY3 7HW,,
Department for Transport,Department for Transport,29/07/2013,CurrGrt Las in AEF/A,Local,BOURNEMOUTH BC,2000009004,6171.9,BOURNEMOUTH BOROUGH COUNCIL,BH2 6DY,,
Department for Transport,Department for Transport,29/07/2013,CurrGrt Las in AEF/A,Local,BRENT COMMUNITY TRANSPORT,2000009006,13307.42,BRENT COMMUNITY TRANSPORT,HA9 7RG,,
Department for Transport,Department for Transport,29/07/2013,CurrGrt Las in AEF/A,Local,BRENT COMMUNITY TRANSPORT,2000009006,2742.54,BRENT COMMUNITY TRANSPORT (PETROL),HA9 7RG,,
Department for Transport,Department for Transport,29/07/2013,CurrGrt Las in AEF/A,Local,BURY MBC,2000009009,9770.4,Bury MBC,BL9 0DN,,
Department for Transport,Department for Transport,29/07/2013,CurrGrt Las in AEF/A,Local,CALDERDALE MBC,2000009011,22566.36,CALDERDALE METROPOLITAN BOROUGH COUNCIL,HX1 4PL,,
Department for Transport,Department for Transport,29/07/2013,CurrGrt Las in AEF/A,Local,CHESHIRE WEST & CHESTER COUNCIL,2000008989,24553.27,CHESHIRE WEST AND CHESTER COUNCIL,CH66 3TL,,
Department for Transport,Department for Transport,29/07/2013,CurrGrt Las in AEF/A,Local,CUMBRIA COUNTY COUNCIL,2000009188,592.83,Cumbria County Council,CA3 8NA,,
Department for Transport,Department for Transport,29/07/2013,CurrGrt Las in AEF/A,Local,Doncaster Metropolitan B.C,2000009196,45814.11,Doncaster Metropolitan Borough Council,DN1 3BU,,
Department for Transport,Department for Transport,29/07/2013,CurrGrt Las in AEF/A,Local,GATESHEAD MBC,2000009049,6664.24,GATESHEAD COUNCIL,NE8 1HH,,
Department for Transport,Department for Transport,29/07/2013,CurrGrt Las in AEF/A,Local,GREENWICH SERVICE PLUS LTD,2000009053,35165.74,GREENWICH SERVICE PLUS LTD,SE28 8BF,,
Department for Transport,Department for Transport,29/07/2013,CurrGrt Las in AEF/A,Local,HALTON BC,2000009059,7215.34,HALTON BOROUGH COUNCIL,WA8 7QF,,
Department for Transport,Department for Transport,29/07/2013,CurrGrt Las in AEF/A,Local,HAMPSHIRE COUNTY COUNCIL (SSD),2000009061,38039.59,HAMPSHIRE COUNTY COUNCIL (SOCIAL SERVICES DEPT),SO23 8UQ,,
Department for Transport,Department for Transport,29/07/2013,CurrGrt Las in AEF/A,Local,KIRKLEES COUNCIL,2000009071,6988.6,KIRKLEES METROPOLITAN COUNCIL,HD1 6LG,,
Department for Transport,Department for Transport,29/07/2013,CurrGrt Las in AEF/A,Local,LEICESTERSHIRE COUNTY COUNCIL,2000009073,63028.88,Leicester C C,LE3 8RF,,
Department for Transport,Department for Transport,29/07/2013,CurrGrt Las in AEF/A,Local,London Borough of Enfield,2000009185,9563.52,London Borough of Enfield,EN3 4QN,,
Department for Transport,Department for Transport,29/07/2013,CurrGrt Las in AEF/A,Local,LONDON BOROUGH OF MERTON,2000009077,22110.13,London Borough Of Merton Transport Office,SM4 4AX,,
Department for Transport,Department for Transport,29/07/2013,CurrGrt Las in AEF/A,Local,LONDON BOROUGH OF NEWHAM,2000009166,20618.19,London Borough of Newham,E6 4BX,,
Department for Transport,Department for Transport,29/07/2013,CurrGrt Las in AEF/A,Local,LONDON BOROUGH REDBRIDGE,2000009078,21052.48,London Borough of Redbridge,IG1 1NN,,
Department for Transport,Department for Transport,29/07/2013,CurrGrt Las in AEF/A,Local,LUTON BOROUGH COUNCIL,2000009079,16345.55,LUTON BOROUGH COUNCIL,LU1 2BQ,,
Department for Transport,Department for Transport,29/07/2013,CurrGrt Las in AEF/A,Local,MANCHESTER CITY COUNCIL,2000009168,14448.5,Manchester City Council,M12 5QN,,
Department for Transport,Department for Transport,29/07/2013,CurrGrt Las in AEF/A,Local,Medway Council - The Villager,2000009194,531.83,Medway Council- The Villager,ME4 4TR,,
Department for Transport,Department for Transport,29/07/2013,CurrGrt Las in AEF/A,Local,MIDDLESBROUGH BC,2000008988,7183.54,Middlesbrough Council,TS1 2QQ,,
Department for Transport,Department for Transport,29/07/2013,CurrGrt Las in AEF/A,Local,MILTON KEYNES COMMUNITY TRANSPORT,2000009087,3492.32,Dorset Community Transport Ltd,UB6 9AP,,
Department for Transport,Department for Transport,29/07/2013,CurrGrt Las in AEF/A,Local,NEWCASTLE CITY COUNCIL,2000009146,10180.33,Social Services Directorate Transport Section,NE1 8PA,,
Department for Transport,Department for Transport,29/07/2013,CurrGrt Las in AEF/A,Local,NORTH LINCOLNSHIRE DC,2000009092,20302.33,NORTH LINCOLNSHIRE COUNCIL,DN20 8XY,,
Department for Transport,Department for Transport,29/07/2013,CurrGrt Las in AEF/A,Local,NORTH YORKS CC SOCIAL SERVICES DIRE,2000009093,34069.17,NORTH YORKSHIRE COUNTY COUNCIL,DL7 8AL,,
Department for Transport,Department for Transport,29/07/2013,CurrGrt Las in AEF/A,Local,NORTHUMBERLAND COUNTY COUNCIL,2000009167,9195.12,NORTHUMBERLAND COUNTY COUNCIL,NE61 2EF,,
Department for Transport,Department for Transport,29/07/2013,CurrGrt Las in AEF/A,Local,NOTTINGHAM CITY COUNCIL,2000009152,20011.69,Nottingham City Council,NG2 3AH,,
Department for Transport,Department for Transport,29/07/2013,CurrGrt Las in AEF/A,Local,NOTTINGHAMSHIRE CC,2000009095,31768.31,NOTTINGHAMSHIRE COUNTY COUNCIL,NG2 7QZ,,
Department for Transport,Department for Transport,29/07/2013,CurrGrt Las in AEF/A,Local,OPERATIONAL TRANSPORT,2000009096,28954.72,OPERATIONAL TRANSPORT (LEICESTER CITY COUNCIL),LE1 6ZG,,
Department for Transport,Department for Transport,29/07/2013,CurrGrt Las in AEF/A,Local,OXFORDSHIRE CC,2000009113,28110.45,OXFORDSHIRE COUNTY COUNCIL INTEG TRANSPORT UNIT,OX9 2JN,,
Department for Transport,Department for Transport,29/07/2013,CurrGrt Las in AEF/A,Local,POOLE BC,2000009101,5880.75,PASSENGER TRANSPORT BOROUGH OF POOLE,BH15 2RL,,
Department for Transport,Department for Transport,29/07/2013,CurrGrt Las in AEF/A,Local,REDCAR & CLEVELAND BC,2000009102,31204.36,Redcar & Cleveland Borough Council,TS10 5JU,,
Department for Transport,Department for Transport,29/07/2013,CurrGrt Las in AEF/A,Local,SOMERSET COUNTY COUNCIL,2000009115,4275.77,Somerset C.C - Fiveways Resource Centre,TA1 4DY,,
Department for Transport,Department for Transport,29/07/2013,CurrGrt Las in AEF/A,Local,SOMERSET COUNTY COUNCIL,2000009115,746.25,Somerset County Council - Social Services,TA1 4DY,,
Department for Transport,Department for Transport,29/07/2013,CurrGrt Las in AEF/A,Local,SOUTH GLOUCESTERSHIRE CC,2000009116,11515.6,SOUTH GLOUCESTERSHIRE COUNCIL,BS35 9BP,,
Department for Transport,Department for Transport,29/07/2013,CurrGrt Las in AEF/A,Local,Spelthorne Borough Council,2000009190,1163.48,Spelthorne Accessible Transport,TW18 1XB,,
Department for Transport,Department for Transport,29/07/2013,CurrGrt Las in AEF/A,Local,STOCKPORT MBC SOCIAL SERVICES,2000009121,4777.4,STOCKPORT MBC SOCIAL SERVICES TRANSPORT,SK3 0XT,,
Department for Transport,Department for Transport,29/07/2013,CurrGrt Las in AEF/A,Local,TELFORD & WREKIN DC,2000009128,41941.23,TELFORD & WREKIN COUNCIL,TF3 4LF,,
Department for Transport,Department for Transport,29/07/2013,CurrGrt Las in AEF/A,Local,TORBAY COUNCIL RING & RIDE,2000009130,1739.66,TORBAY COUNCIL RING & RIDE,TQ1 3DS,,
Department for Transport,Department for Transport,29/07/2013,CurrGrt Las in AEF/A,Local,WARRINGTON BC,2000009137,4523.76,WARRINGTON BOROUGH COUNCIL,WA1 1BN,,
Department for Transport,Department for Transport,29/07/2013,CurrGrt Las in AEF/A,Local,WARRINGTON BOROUGH TRANS LTD,2000009138,47035.59,Warrington Borough Transport Ltd,WA4 6PT,,
Department for Transport,Department for Transport,29/07/2013,CurrGrt Las in AEF/A,Local,WIGAN COUNCIL,2000009149,16133.49,Wigan Council,WN1 1AZ,,
Department for Transport,Department for Transport,29/07/2013,CurrGrt Las in AEF/A,Rail and Road Projects,NEXUS,2000009213,2067580,Nexus June13 Resource for Tyne &Wear Metro,NE1 4AX,,
Department for Transport,Department for Transport,29/07/2013,Data Supply - TD,Transport Direct and Travel information,BASEMAP LIMITED,2000009219,780,#,GU2 7YG,,
Department for Transport,Department for Transport,29/07/2013,Legal Consultancy,Rail and Road Projects,#,2000009204,5054.4,#,#,,
Department for Transport,Department for Transport,29/07/2013,Medical Examinations,Air Accident Investigation Branch,#,2000009218,928.78,#,#,,
Department for Transport,Department for Transport,29/07/2013,Security,General Counsel's Office,FCO SERVICES,2000009199,4742.4,#,MK19 7BH,,
Department for Transport,Department for Transport,29/07/2013,Services prov by OGD,Transport Security Strategy,FCO SERVICES,2000009199,24236.4,#,MK19 7BH,,
Department for Transport,Department for Transport,29/07/2013,Subsidies Private Se,Local,A-LINE COACHES,2000009160,15104.96,A LINE COACHES (CORNWALL),PL11 3AW,,
Department for Transport,Department for Transport,29/07/2013,Subsidies Private Se,Local,ANTHONYS TRAVEL,2000008998,1868.62,ANTHONY'S TRAVEL,WA7 5BH,,
Department for Transport,Department for Transport,29/07/2013,Subsidies Private Se,Local,CLASSIC BUS NORTH WEST LTD,2000009189,31734.68,Classic Bus North West Ltd,FY4 4QU,,
Department for Transport,Department for Transport,29/07/2013,Subsidies Private Se,Local,COASTAL & COUNTRY COACHES,2000009018,2514.3,Coastal and Country Coaches Ltd,YO22 4PU,,
Department for Transport,Department for Transport,29/07/2013,Subsidies Private Se,Local,COMPASS TRAVEL (SUSSEX) LTD,2000009025,67921.27,COMPASS TRAVEL (SUSSEX) LTD,BN13 3RB,,
Department for Transport,Department for Transport,29/07/2013,Subsidies Private Se,Local,ERIC W BOWERS COACHES LTD,2000009037,22217.04,Bowers Coaches Ltd,LE4 9HU,,
Department for Transport,Department for Transport,29/07/2013,Subsidies Private Se,Local,First Beeline Buses Ltd,2000009039,93340.64,FIRST BEELINE BUSES LTD,SA5 7BN,,
Department for Transport,Department for Transport,29/07/2013,Subsidies Private Se,Local,FIRST BRADFORD LTD,2000009040,57187.17,FIRST WEST YORKSHIRE LTD,BD4 8SP,,
Department for Transport,Department for Transport,29/07/2013,Subsidies Private Se,Local,FIRST ESSEX BUSES,2000009041,229129.1,FIRST ESSEX BUSES LTD,LE4 0DA,,
Department for Transport,Department for Transport,29/07/2013,Subsidies Private Se,Local,FIRST HALIFAX,2000009042,108868.82,FIRST HALIFAX,HX1 2RF,,
Department for Transport,Department for Transport,29/07/2013,Subsidies Private Se,Local,FIRST HUDDERSFIELD,2000009043,60715.99,FIRST HUDDERSFIELD,HD2 1AG,,
Department for Transport,Department for Transport,29/07/2013,Subsidies Private Se,Local,FIRST LEEDS LTD,2000009044,454646.92,FIRST LEEDS,LS3 1LH,,
Department for Transport,Department for Transport,29/07/2013,Subsidies Private Se,Local,FIRST MANCHESTER (WIGAN),2000009045,73686.23,FIRST MANCHESTER (BURY),LS10 1PL,,
Department for Transport,Department for Transport,29/07/2013,Subsidies Private Se,Local,FIRST MANCHESTER (WIGAN),2000009045,56319.98,First Manchester Ltd (Oldham),LS10 1PL,,
Department for Transport,Department for Transport,29/07/2013,Subsidies Private Se,Local,FIRST PMT LTD,2000009047,152623.58,FIRST POTTERIES LIMITED,LE4 0DA,,
Department for Transport,Department for Transport,29/07/2013,Subsidies Private Se,Local,FIRST WYVERN,2000009046,81872.78,FIRST MIDLAND RED BUSES LTD,LE4 0DA,,
Department for Transport,Department for Transport,29/07/2013,Subsidies Private Se,Local,#,2000009048,3250.68,#,#,,
Department for Transport,Department for Transport,29/07/2013,Subsidies Private Se,Local,GROUP TRAVEL,2000009054,26334.61,GROUP TRAVEL,PL31 2QN,,
Department for Transport,Department for Transport,29/07/2013,Subsidies Private Se,Local,HATCH GREEN COACHES,2000009157,10517.1,HATCH GREEN COACHES,TA3 6TN,,
Department for Transport,Department for Transport,29/07/2013,Subsidies Private Se,Local,INVICTABUS LTD,2000009180,1961.97,Invictabus Limited,ME20 7SP,,
Department for Transport,Department for Transport,29/07/2013,Subsidies Private Se,Local,JOHNSON BROTHERS TOURS LTD,2000009067,5966.9,JOHNSON BROTHERS TOURS LTD,S81 7BQ,,
Department for Transport,Department for Transport,29/07/2013,Subsidies Private Se,Local,LANCASHIRE UNITED LTD (TRANSDEV),2000009072,3742.87,Lancashire United Ltd (Transdev),BD21 2JX,,
Department for Transport,Department for Transport,29/07/2013,Subsidies Private Se,Local,LIBRA TRAVEL LTD,2000009075,4151.83,LIBRA TRAVEL LTD,BA11 2RG,,
Department for Transport,Department for Transport,29/07/2013,Subsidies Private Se,Local,MAGHULL COACHES,2000009080,666.37,MAGHULL COACHES LTD,L20 8AE,,
Department for Transport,Department for Transport,29/07/2013,Subsidies Private Se,Local,MOVING PEOPLE LTD,2000009145,701.87,MOVING PEOPLE,BB2 7JA,,
Department for Transport,Department for Transport,29/07/2013,Subsidies Private Se,Local,NIGHTINGALES OF BECCLES LTD,2000009159,15635.15,NIGHTINGALES OF BECCLES,MK46 5EA,,
Department for Transport,Department for Transport,29/07/2013,Subsidies Private Se,Local,RED BUS,2000009172,2065.15,Red Bus,PE22 8RG,,
Department for Transport,Department for Transport,29/07/2013,Subsidies Private Se,Local,REDROUTE BUSES,2000009103,3813.61,Redroute Buses Ltd,DA11 9AX,,
Department for Transport,Department for Transport,29/07/2013,Subsidies Private Se,Local,ROSS TRAVEL,2000009109,4446,ROSS TRAVEL,WF7 5BL,,
Department for Transport,Department for Transport,29/07/2013,Subsidies Private Se,Local,ROSSENDALE TRANSPORT LIMITED,2000009110,65300.89,Rossendale Transport Ltd,BB4 4RS,,
Department for Transport,Department for Transport,29/07/2013,Subsidies Private Se,Local,SHERWOOD TRAVEL,2000009169,4628.47,Sherwood Travel,DN40 1QR,,
Department for Transport,Department for Transport,29/07/2013,Subsidies Private Se,Local,STAGECOACH MANCHESTER,2000009119,11369.69,STAGECOACH MANCHESTER,SK3 0DU,,
Department for Transport,Department for Transport,29/07/2013,Subsidies Private Se,Local,Stagecoach Midland Red South Ltd,2000009085,15501.44,Stagecoach Midland Red(South)Ltd-Rail Replacement,NN4 8ES,,
Department for Transport,Department for Transport,29/07/2013,Subsidies Private Se,Local,STANLEY TRAVEL,2000009170,40957.24,Stanley Travel (North East) Ltd,DH9 0NQ,,
Department for Transport,Department for Transport,29/07/2013,Subsidies Private Se,Local,SUFFOLK PASSENGER TRANSPORT,2000009003,1354.27,Suffolk Passenger Transport Travel Services,IP1 5NP,,
Department for Transport,Department for Transport,29/07/2013,Subsidies Private Se,Local,SW COACHES LTD,2000009123,10511.49,SOUTH WEST COACHES LTD,BA9 9EB,,
Department for Transport,Department for Transport,29/07/2013,Subsidies Private Se,Local,Travel Master (MCR) Ltd,2000009151,13543.72,Travel Master,M31 4RA,,
Department for Transport,Department for Transport,29/07/2013,Subsidies Private Se,Local,VENTURER COACHWAYS LTD,2000009147,3125.85,VENTURER COACHWAYS LTD,IP13 6QT,,
Department for Transport,Department for Transport,29/07/2013,Subsidies Private Se,Local,WEST MIDS SPECIAL NEEDS TRANSPORT,2000009141,31614.06,WEST MIDLANDS SPECIAL NEEDS TRANSPORT LTD.,B6 5PL,,
Department for Transport,Department for Transport,29/07/2013,Subsidies Private Se,Local,WYVERN COMMUNITY TRANSPORT,2000009143,745.46,Wyvern Community Transport,SS7 1TF,,
Department for Transport,Department for Transport,29/07/2013,Subsidies Private Se,Local,AGE CONCERN DONCASTER,2000008991,1126.4,AGE CONCERN DONCASTER,DN2 5BE,,
Department for Transport,Department for Transport,29/07/2013,Subsidies Private Se,Local,AGE CONCERN IN CORNWALL & IOS,2000008994,3400.15,AGE CONCERN IN CORNWALL AND ISLES OF SCILLY,TR1 3BN,,
Department for Transport,Department for Transport,29/07/2013,Subsidies Private Se,Local,AGE CONCERN SITTINGBOURNE,2000008996,1076.32,AGE CONCERN SITTINGBOURNE,ME10 4NN,,
Department for Transport,Department for Transport,29/07/2013,Subsidies Private Se,Local,AGE UK BLACKBURN WITH DARWEN,2000009158,622.6,AGE UK BLACKBURN WITH DARWEN,BB2 2DH,,
Department for Transport,Department for Transport,29/07/2013,Subsidies Private Se,Local,AGE UK NORTH WEST KENT,2000008993,578.3,AGE UK NORTH WEST KENT - GRAVESEND,DA12 1HJ,,
Department for Transport,Department for Transport,29/07/2013,Subsidies Private Se,Local,ASHBOURNE COMMUNITY TRANSPORT,2000009000,8500.69,ASHBOURNE COMMUNITY TRANSPORT,DE6 1BW,,
Department for Transport,Department for Transport,29/07/2013,Subsidies Private Se,Local,AXE VALLEY & W DORSET RING & RIDE,2000009001,1252,AXE VALLEY RING & RIDE,EX14 1PE,,
Department for Transport,Department for Transport,29/07/2013,Subsidies Private Se,Local,BLYTH VALLEY DISABLED FORUM,2000009181,802.81,Blyth Valley Disabled Forum,NE24 2BU,,
Department for Transport,Department for Transport,29/07/2013,Subsidies Private Se,Local,CENTRE 81,2000009014,3495.72,CENTRE 81,NR30 1QR,,
Department for Transport,Department for Transport,29/07/2013,Subsidies Private Se,Local,COMMUNITY ACTION MALVERN DISTRICT,2000009021,709.75,COMMUNITY ACTION MALVERN AND DISTRICT,WR14 4PZ,,
Department for Transport,Department for Transport,29/07/2013,Subsidies Private Se,Local,COMMUNITY TRANSPORT MANCHESTER,2000009022,4263.67,Community Transport (Birmingham Project),M12 6LA,,
Department for Transport,Department for Transport,29/07/2013,Subsidies Private Se,Local,COMPAID TRUST,2000009023,5667.38,COMPAID,TN12 6BU,,
Department for Transport,Department for Transport,29/07/2013,Subsidies Private Se,Local,COMPASS COMMUNITY TRANSPORT,2000009024,10129.65,COMPASS COMMUNITY TRANSPORT,SR2 9TP,,
Department for Transport,Department for Transport,29/07/2013,Subsidies Private Se,Local,DASH,2000009074,579.54,DASH,GU17 9BW,,
Department for Transport,Department for Transport,29/07/2013,Subsidies Private Se,Local,Dorset Community Transport Ltd,2000009195,30550.78,Dorset Community Transport,DT11 8ST,,
Department for Transport,Department for Transport,29/07/2013,Subsidies Private Se,Local,EAST SURREY RURAL TRANSPORT P'SHIP,2000009031,8019.06,East Surrey Rural Transport Partnership,RM8 0BT,,
Department for Transport,Department for Transport,29/07/2013,Subsidies Private Se,Local,ELY SOHAM & DISTRICT COMM TRANSPORT,2000009035,11529.7,ELY SOHAM & DISTRICT COMMUNITY TRANSPORT,CB6 2HZ,,
Department for Transport,Department for Transport,29/07/2013,Subsidies Private Se,Local,EREWASH COMMUNITY TRANSPORT,2000009036,13256.61,EREWASH COMMUNITY TRANSPORT LTD,DE7 4AZ,,
Department for Transport,Department for Transport,29/07/2013,Subsidies Private Se,Local,GRACE EYRE FOUNDATION,2000009051,1937.89,The Grace Eyre Foundation,BN3 6ER,,
